{"text_format":"1","workbook":"xlsx","n_sheets":8,"sheets":["Bienvenue","Périmètre","Déclaration tonnages","Notices","Synthèse","Calculs","Grille questions par catégorie","Références"],"not_rendered":{"charts":0,"images":22,"macros":1,"external_links":0,"defined_names":43,"comments":0,"pivot_tables":0},"unopened":[],"bounds":{"document_bytes":16777216,"sheet_cells":100000,"rows_first":2000,"rows_last":500,"rows_between":2000,"halvings":0,"cell_chars":16384,"cell_head_chars":4096},"cells_cut":0,"cells_raw":0,"read":"whole","date_system":"1900"}

{"sheet":"Bienvenue","index":0,"n_rows":142,"n_cols":13,"rows_kept":142,"cut":false,"hidden":false,"merged":[[2,3,2,4],[2,6,2,8],[24,1,24,3],[25,1,25,3],[3,3,3,4],[10,1,10,5],[5,3,5,4],[11,1,11,9],[7,1,7,9],[3,6,3,8]]}
[]
[null,null,null,null,null,null,null,null,null,null,null,null,2022]
[null,null,null,"Historique",null,null,"Identifiant nouveau portail"]
[null,"N° Client * ",null,null,null,"-"]
[]
[null,"Société * "]
[null,null,null,null,null,null,null,null,null,"* Champs obligatoires"]
[null,"Vous vous apprêtez à déclarer votre Déclaration papier"]
[]
[null,"Pour utiliser convenablement le fichier et bénéficier de toutes ses fonctionnalités, il est nécessaire d'activer les macros."]
[null,"Accédez à l'aide pour suivre la procédure d'activation des macros."]
[null,"Le présent document demeure la propriété de Citeo. Citeo ne garantit ni la pérennité ni l’exhaustivité des informations contenues dans ce document au regard notamment des évolutions et interprétations réglementaires en vigueur, et des dispositifs des REP Emballages ménagers et Papier. A ce titre, le détenteur reste seul responsable de son utilisation et ne pourra pas exercer de recours contre Citeo dans le cadre de l’utilisation de ce document."]
[null,null,null,null,null,null,null,null,null,null,"Version 01.11A"]
["Etape 1 : Complétez votre Déclaration Papier"]
[]
[null,"Déclaration de votre Périmètre"]
[]
[null,"Déclaration de vos Tonnages"]
[]
[null,"Déclaration simplifiée de vos Notices"]
[]
[]
["Aide : Procédure d'activation des macros"]
[]
[null,"> Débloquer votre fichier Excel "]
[null,"> Activer les macros sous Excel"]
[]
[]
[]
[null,"Suite à la mise à jour Microsoft, les fichiers Excel venant de l'extérieur peuvent être bloqués à l'utilisation. "]
[null,"Pour débloquer l'ensemble des fonctionnalités, il vous faudra cocher la case \"Débloquer\" dans les Propriétés de votre fichier déclaratif"]
[]
[null,null,"1/ Réalisez un clic droit sur votre fichier, puis cliquez sur propriétés"]
[]
[]
[]
[]
[]
[]
[]
[]
[]
[]
[]
[]
[]
[]
[]
[]
[]
[]
[]
[]
[]
[]
[]
[]
[]
[]
[null,null,"2/ Cochez la case \"Débloquer\" afin d'acceder à l'ensemble des fonctionnalités de votre fichier déclaratif"]
[]
[]
[]
[]
[]
[]
[]
[]
[]
[]
[]
[]
[]
[]
[]
[]
[]
[]
[]
[]
[]
[]
[]
[]
[]
[]
[]
[]
[]
[]
[]
[]
[null,"Activer les macros sous Excel"]
[]
[null,null,"1 - Cliquer sur l'onglet \"Fichier\" puis sur \"Options\" (1)"]
[]
[]
[]
[]
[]
[]
[]
[]
[]
[]
[]
[]
[]
[]
[]
[]
[]
[]
[]
[]
[]
[null,null,"2 - Cliquez sur \"Centre de gestion de la confidentialité\" (2), puis cliquez sur \"Paramètres de Centre de gestion de la confidentialité…\" (3)"]
[]
[]
[]
[]
[]
[]
[]
[]
[]
[]
[]
[]
[]
[]
[]
[]
[]
[]
[]
[]
[]
[]
[]
[]
[null,null,"3 - Activez les macros VBA pour votre fichier (4), puis cliquez sur \"OK\" (5)"]

{"sheet":"Périmètre","index":1,"n_rows":14,"n_cols":21,"rows_kept":14,"cut":false,"hidden":false,"merged":[[11,1,12,1],[11,2,12,2],[11,3,12,3],[11,5,12,5],[11,6,12,6],[11,4,12,4],[11,14,12,14],[11,15,12,15],[11,16,12,16],[11,19,11,20],[2,2,2,3],[11,7,12,7],[11,18,12,18],[11,8,12,8],[11,9,12,9],[11,10,12,10],[11,11,12,11],[11,12,12,12],[11,13,12,13]]}
[null,null,3,4,5,6,"yjgf",8,9,10,11,12,13,14,15,16,17]
[null,null,null,null,null,null,null,null,null,null,null,null,null,null,null,null,null,null,45]
[null,null,7187]
[]
[]
[]
[null,"Votre périmètre correspond aux entreprises/filiales pour lesquelles vous faites une déclaration sous un même contrat. "]
[null,"Merci de les renseigner ci-dessous."]
[]
[]
[null,"*",null,"*","*","*","*","*","*",null,"*","*","*","*","*","*","*"]
[null,"Raison sociale du mandant","Nom du réseau / enseigne / groupe","SIRET du mandant","Le mandant est il domicilié en France (DOM y compris) ?","Statut juridique","Code APE","Etes-vous émetteur de publication de presse ? ","Adresse","Complément d'adresse","Code postal","Localité","Pays","Téléphone","Adresse email","Secteur d'activité Citeo","Sous-secteur d'activité Citeo",null,"Doublons SIRET entité émettrice","ZONE DE CONTRÔLE"]
[null,null,null,null,null,null,null,null,null,null,null,null,null,null,null,null,null,null,null,"Nb d'Erreurs Bloquantes","Nb d'Erreurs Non Bloquantes"]
[null,"Filtre","Filtre","Filtre","Filtre","Filtre","Filtre","Filtre","Filtre","Filtre","Filtre","Filtre","Filtre","Filtre","Filtre","Filtre","Filtre",null,null,"ErrBlo","ErrNBlo"]

{"sheet":"Déclaration tonnages","index":2,"n_rows":20,"n_cols":23,"rows_kept":20,"cut":false,"hidden":false,"merged":[[9,16,9,18],[8,9,8,19],[9,21,9,22],[9,14,9,15],[9,4,9,5],[9,7,9,8],[9,11,9,13],[9,9,9,10]]}
[null,null,null,null,null,null,null,null,null,null,null,null,null,null,null,null,null,null,null,null,null,22,23]
[]
[]
[]
[]
[]
[]
[]
[null,null,null,null,null,null,"*","*","*","Le caractère obligatoire ou non de chacune des questions techniques se rapportant aux éléments perturbateurs dépend de la catégorie de papiers choisie pour la ligne considérée."]
[null,"*","*","*","Non importé",null,"Tonnage","Origine de la fibre",null,"Teinte de la fibre",null,"Encres",null,null,"Colles",null,"Eléments non fibreux",null,null,"Réduction des débouchés de recyclage",null,"ZONE DE CONTRÔLE"]
[null,"Raison sociale du mandant","Libellé Code catégorie de papiers (Citeo)","Code catégorie de papiers (Citeo)","Liste personnelle","Commentaires","Tonnage mis sur le marché (t)","Tonnage Fibre recyclée (t)","Tonnage Fibre issue de forêts gérées durablement (t)","Tonnage papier kraft (t)","Tonnage papier teinté masse (t)","Tonnage imprimé à partir d’encres offset UV (t)","Tonnage imprimé par flexographie (t)","Tonnage imprimé par jet d'encre (t)","Tonnage avec colle fermeture (enveloppes) (t)","Tonnage avec présence de colle (t)","Tonnage avec vernis UV (t)","Tonnage avec él. non pulpables inserts & blisters (t)","Tonnage avec él. non pulpables plastiques & REH (t)","Tonnage 2022 d'impressions avec huiles minérales (hors presse)",null,"Nb d'Erreurs Bloquantes","Nb d'Erreurs Non Bloquantes"]
[null,"EF-005",null,"EF-006","EF-008","EF-011","EF-019","EF-023","EF-024","EF-026","EF-025","EF-080","EF-031","EF-034","EF-037","EF-040","EF-046","EF-047","EF-050","EF-111",null,"ErrBlo","ErrNBlo"]
[null,"LA POSTE","Papiers à en-tête et formulaires administratifs ","I-06",5900005,"FLES NON LIGNEES A3 (42*29,7)",null,0,"OUI",0,0,"OUI",0,0,0,0,0,0,0,0]
[null,"LA POSTE","Papiers à en-tête et formulaires administratifs ","I-06",5900010,"FEUILLE NON LIGNEE  A4",null,0,"OUI",0,0,"OUI",0,0,0,0,0,0,0,0]
[null,"LA POSTE","Papiers à en-tête et formulaires administratifs ","I-06",5900060,"EC PAGE DE GARDE 21 X 29,7",null,0,"OUI",0,0,"OUI",0,0,0,0,0,0,0,0]
[null,"LA POSTE","Papiers à en-tête et formulaires administratifs ","I-06",5900061,"TABLE ALPHABETIQUE 21 X 29,7",null,0,"OUI",0,0,"OUI",0,0,0,0,0,0,0,0]
[null,"LA POSTE","Papiers à en-tête et formulaires administratifs ","I-06",5900062,"EC JEU 2 COUVERTURES 21 X 29,7",null,0,"OUI",0,0,"OUI",0,0,0,0,0,0,0,0]
[null,"LA POSTE","Papiers à en-tête et formulaires administratifs ","I-06",5900059,"EC REGISTRE 10 FLLES LIGNEES",null,0,"OUI",0,0,"OUI",0,0,0,0,0,0,0,0]
[null,"LA POSTE","Papiers à en-tête et formulaires administratifs ","I-06",5900063,"FEUILLES LIGNEES A4 (21*29,7)",null,0,"OUI",0,0,"OUI",0,0,0,0,0,0,0,0]
[null,"LA POSTE","Papiers à en-tête et formulaires administratifs ","I-06",5900110,"FLES NON LIGNEES A4 (CONDI 100)",null,0,"OUI",0,0,"OUI",0,0,0,0,0,0,0,0]

{"sheet":"Notices","index":3,"n_rows":54,"n_cols":12,"rows_kept":54,"cut":false,"hidden":false,"merged":[[9,3,9,4],[9,6,9,8],[9,10,9,11]]}
[]
[]
[]
[]
[]
[]
[]
[]
[null,null,null,"*","*"]
[null,null,"Commentaires","Notice - Déclaration forfaitaire",null,null,null,null,null,null,"ZONE DE CONTRÔLE"]
[null,"Raison sociale du mandant\n(Pré-remplir l'onglet Périmètre avant la saisie)",null,"Type de notice ","Nombre d'unités mises sur le marché",null,null,null,null,null,"Nb d'Erreurs Bloquantes","Nb d'Erreurs Non Bloquantes"]
[null,"EF-005","EF-022","EF-060","EF-015",null,null,null,null,null,"ErrBlo","ErrNBlo"]
[null,null,null,null,null,null,{"$f":"IF(ISERROR(VLOOKUP(D13,Poids_ProduitsNotice,3,FALSE)),\"\",VLOOKUP(D13,Poids_ProduitsNotice,3,FALSE)*E13/1000000)","v":""},{"$f":"IF(ISERROR(G13*TarifTonne),\"\",ROUND(G13*TarifTonne,2))","v":""},{"$f":"IF(D13=\"\",\"\",IF(ISERROR(H13*0.15),\"\",H13*0.15)+IF(VLOOKUP(D13,Poids_ProduitsNotice,4,FALSE)=\"X\",H13*0.2,0))","v":""}]
[null,null,null,null,null,null,{"$f":"IF(ISERROR(VLOOKUP(D14,Poids_ProduitsNotice,3,FALSE)),\"\",VLOOKUP(D14,Poids_ProduitsNotice,3,FALSE)*E14/1000000)","v":""},{"$f":"IF(ISERROR(G14*TarifTonne),\"\",ROUND(G14*TarifTonne,2))","v":""},{"$f":"IF(D14=\"\",\"\",IF(ISERROR(H14*0.15),\"\",H14*0.15)+IF(VLOOKUP(D14,Poids_ProduitsNotice,4,FALSE)=\"X\",H14*0.2,0))","v":""}]
[null,null,null,null,null,null,"","",""]
[null,null,null,null,null,null,"","",""]
[null,null,null,null,null,null,"","",""]
[null,null,null,null,null,null,"","",""]
[null,null,null,null,null,null,"","",""]
[null,null,null,null,null,null,"","",""]
[null,null,null,null,null,null,"","",""]
[null,null,null,null,null,null,"","",""]
[null,null,null,null,null,null,"","",""]
[null,null,null,null,null,null,"","",""]
[null,null,null,null,null,null,"","",""]
[null,null,null,null,null,null,"","",""]
[null,null,null,null,null,null,"","",""]
[null,null,null,null,null,null,"","",""]
[null,null,null,null,null,null,"","",""]
[null,null,null,null,null,null,"","",""]
[null,null,null,null,null,null,"","",""]
[null,null,null,null,null,null,"","",""]
[null,null,null,null,null,null,"","",""]
[null,null,null,null,null,null,"","",""]
[null,null,null,null,null,null,"","",""]
[null,null,null,null,null,null,"","",""]
[null,null,null,null,null,null,"","",""]
[null,null,null,null,null,null,"","",""]
[null,null,null,null,null,null,"","",""]
[null,null,null,null,null,null,"","",""]
[null,null,null,null,null,null,"","",""]
[null,null,null,null,null,null,"","",""]
[null,null,null,null,null,null,"","",""]
[null,null,null,null,null,null,"","",""]
[null,null,null,null,null,null,"","",""]
[null,null,null,null,null,null,"","",""]
[null,null,null,null,null,null,"","",""]
[null,null,null,null,null,null,"","",""]
[null,null,null,null,null,null,"","",""]
[null,null,null,null,null,null,"","",""]
[null,null,null,null,null,null,"","",""]
[null,null,null,null,null,null,"","",""]
[null,null,null,null,null,null,"","",""]
[null,null,null,null,null,null,"","",""]

{"sheet":"Synthèse","index":4,"n_rows":38,"n_cols":11,"rows_kept":38,"cut":false,"hidden":false,"merged":[[4,1,4,9],[5,1,5,9],[6,1,6,9],[11,4,11,5]]}
[null,"SYNTHESE"]
[]
[]
[null,"A noter : "]
[null,"Toutes vos données sont calculées en tenant compte des critères de l'éco-modulation. Si vous souhaitez déclarer au régime simplifié pour vos mandants mettant moins de 25 tonnes en marché, vous pourrez choisir cette option après intégration de votre fichier. Le choix de cette option sur le site entraîne une majoration de 5% sur les tonnages concernés."]
[null,"Par défaut, le fichier applique un abattement de 37,60% pour les papiers à copier et les enveloppes vierges. Si vous ne souhaitez pas prendre en compte cet abattement, vous aurez la possibilité de le modifier directement sur le site une fois le fichier intégré."]
[null,"Par défaut, le fichier applique un abattement de 10 % pour la presse payante sur papier journal et de 15 % pour la presse magazine. \nLa modification de ces taux ne peut se faire qu'en ligne, une fois le fichier intégré."]
[]
[]
[null,"Estimation de votre contribution","Montant en Euros",null,"Informations sur votre contribution :"]
[null,"Contribution de base totale",null,null,"Tonnage total mis sur le marché"]
[null,"Montant des bonus",null,null,"Tonnage total contribuant avant abattement"]
[null,"Montant des malus ",null,null,"Tonnage total contribuant"]
[null,"Eco-contribution totale",null,null,"Eco-contribution moyenne par tonne"]
[]
[]
[null,"Détail par catégorie"]
[null,"Catégories",null,"Code","Tonnage \navant abattement","Tonnage \ncontribuant","Montant \nde base","Bonus","Malus","Contribution \ntotale","Contribution / t"]
[null,"Journaux gratuits d’annonces",null,"I-01"]
[null,"Imprimés publicitaires",null,"I-02"]
[null,"Annuaires",null,"I-03"]
[null,"Magazines de marque, publications d’entreprises et d’entités publiques",null,"I-04"]
[null,"Mailings, publipostages et courriers de gestion ",null,"I-05"]
[null,"Papiers à en-tête et formulaires administratifs ",null,"I-06"]
[null,"Catalogues de vente",null,"I-07"]
[null,"Encarts publicitaires presse non annoncés au sommaire",null,"I-08"]
[null,"Enveloppes et pochettes postales personnalisées",null,"I-10"]
[null,"Autres ",null,"I-12"]
[null,"Notices d’utilisation, et modes d’emploi - déclaration au réel ",null,"I-13a"]
[null,"Notices d’utilisation, et modes d’emploi - déclaration simplifiée ",null,"I-13b"]
[null,"Affiches",null,"I-14"]
[null,"Papiers décoratifs",null,"I-15"]
[null,"Papiers fiduciaires : moyens et justificatifs de paiements, billetterie",null,"I-16"]
[null,"Publications de presse - presse payante sur papier journal ",null,"I-17a"]
[null,"Publications de presse - presse gratuite d'information",null,"I-17b"]
[null,"Publications de presse - presse magazine",null,"I-17c"]
[null,"Papiers à copier",null,"V-01"]
[null,"Enveloppes et pochettes postales",null,"V-02"]

{"sheet":"Calculs","index":5,"n_rows":17,"n_cols":33,"rows_kept":17,"cut":false,"hidden":true,"merged":[[8,27,8,31],[7,4,7,15],[8,20,8,21],[8,22,8,24],[8,18,8,19]]}
[]
[]
[]
[]
[]
[]
[]
[null,null,null,null,"BASE DE CALCUL"]
[null,null,null,null,"Pas de malus de 15% sur les tonnages renseignés. En revanche + 15% de malus pour les tonnages qui ne sont ni en fibre recyclée, ni en IFGD (papiers non tracés)","5% de malus","5% de malus sur les tonnages renseignés moins ceux qui ont eux un score de 5 au test colorant","5% de malus moins ceux qui ont eux un score supérieur aux tests offset","5% de malus moins ceux qui ont eux un score supérieur aux tests flexographie","5% de malus moins ceux qui ont eux un score supérieur aux tests jet d'encre","5% de malus sur les tonnages renseignés moins ceux qui peuvent justifier d'un test d'exonération du malus","5% de malus sur les tonnages renseignés moins ceux qui peuvent justifier d'un test d'exonération du malus","5% de malus sur les tonnages renseignés","5% de malus sur les tonnages renseignés","5% de malus sur les tonnages renseignés","20% de malus sur les tonnages renseignés","Bonus 10%",null,"ABATTEMENT",null,"CALCUL TONNAGE (t)",null,"TONNAGE MALUS (t) \naprès abattement",null,null,"TONNAGE BONUS (t)\naprès abattement",null,"MONTANT\nArrondi 2 décimales"]
[null,null,null,"Tonnages mis sur le marché (t)","Tonnages mis sur le marché (t) hors-Fibres reycles et IFGD","Tonnage papier kraft (t)","Tonnage papier teinté masse (t)","Tonnage imprimé en offset UV (t)","Tonnage imprimé par flexographie (t)","Tonnage imprimé par jet d'encre (t)","Tonnage avec colle fermeture (enveloppes) (t)","Tonnage avec présence de colle (t)","Tonnage avec vernis UV (t)","Tonnage avec él. non pulpables inserts & blisters (t)","Tonnage avec él. non pulpables plastiques & REH (t)","HM hors presse\n(20% sur les tonnage ac HM)","Tonnage fibre recyclé\nArrondi 3 décimales",null,"Taux d'abattement\nV-01 & V-02","Taux d'abattement\n1-17A & 1-17C","Total tonnage MSM avant abattement","Total tonnage MSM après abattement","\nMALUS 5%\nTotal Tonnage des 3 + élevés\nArrondi 3 décimales","\nMALUS 15%\nTotal Tonnage\nArrondi 3 décimales","\nMALUS 20%\nTotal Tonnage\nArrondi 3 décimales","BONUS 10%\nArrondi 3 décimales",null,"Montant de base ","Montant \nMALUS","Montant \nBONUS","Montant \nTOTAL","Montant TOTAL\nContribution/t"]
[null,null,"Cde Cat. Pap","EF-019","EF-019","EF-026","EF-025","EF-080","EF-031","EF-034","EF-037","EF-040","EF-046","EF-047","EF-050","EF-111","EF-023",null,null,null,"EF-019",null,"M005","M015","M020","B010"]
[null,"Mandant","Colonne Tonnage",{"$f":"IFERROR(MATCH(D11,'Déclaration tonnages'!12:12,0),\"\")","v":7},{"$f":"IFERROR(MATCH(E11,'Déclaration tonnages'!12:12,0),\"\")","v":7},{"$f":"IFERROR(MATCH(F11,'Déclaration tonnages'!12:12,0),\"\")","v":10},{"$f":"IFERROR(MATCH(G11,'Déclaration tonnages'!12:12,0),\"\")","v":11},{"$f":"IFERROR(MATCH(H11,'Déclaration tonnages'!12:12,0),\"\")","v":12},{"$f":"IFERROR(MATCH(I11,'Déclaration tonnages'!12:12,0),\"\")","v":13},{"$f":"IFERROR(MATCH(J11,'Déclaration tonnages'!12:12,0),\"\")","v":14},{"$f":"IFERROR(MATCH(K11,'Déclaration tonnages'!12:12,0),\"\")","v":15},{"$f":"IFERROR(MATCH(L11,'Déclaration tonnages'!12:12,0),\"\")","v":16},{"$f":"IFERROR(MATCH(M11,'Déclaration tonnages'!12:12,0),\"\")","v":17},{"$f":"IFERROR(MATCH(N11,'Déclaration tonnages'!12:12,0),\"\")","v":18},{"$f":"IFERROR(MATCH(O11,'Déclaration tonnages'!12:12,0),\"\")","v":19},{"$f":"IFERROR(MATCH(P11,'Déclaration tonnages'!12:12,0),\"\")","v":20},{"$f":"IFERROR(MATCH(Q11,'Déclaration tonnages'!12:12,0),\"\")","v":8},{"$f":"IFERROR(MATCH(R11,'Déclaration tonnages'!12:12,0),\"\")","v":""},{"$f":"IFERROR(MATCH(S11,'Déclaration tonnages'!12:12,0),\"\")","v":""},{"$f":"IFERROR(MATCH(T11,'Déclaration tonnages'!12:12,0),\"\")","v":""},{"$f":"IFERROR(MATCH(U11,'Déclaration tonnages'!12:12,0),\"\")","v":7},{"$f":"IFERROR(MATCH(V11,'Déclaration tonnages'!12:12,0),\"\")","v":""},{"$f":"IFERROR(MATCH(W11,'Déclaration tonnages'!12:12,0),\"\")","v":""},{"$f":"IFERROR(MATCH(X11,'Déclaration tonnages'!12:12,0),\"\")","v":""},{"$f":"IFERROR(MATCH(Y11,'Déclaration tonnages'!12:12,0),\"\")","v":""},{"$f":"IFERROR(MATCH(Z11,'Déclaration tonnages'!12:12,0),\"\")","v":""},{"$f":"IFERROR(MATCH(AA11,'Déclaration tonnages'!12:12,0),\"\")","v":""},{"$f":"IFERROR(MATCH(AB11,'Déclaration tonnages'!12:12,0),\"\")","v":""},{"$f":"IFERROR(MATCH(AC11,'Déclaration tonnages'!12:12,0),\"\")","v":""},{"$f":"IFERROR(MATCH(AD11,'Déclaration tonnages'!12:12,0),\"\")","v":""},{"$f":"IFERROR(MATCH(AE11,'Déclaration tonnages'!12:12,0),\"\")","v":""},{"$f":"IFERROR(MATCH(AF11,'Déclaration tonnages'!12:12,0),\"\")","v":""},{"$f":"IFERROR(MATCH(AG11,'Déclaration tonnages'!12:12,0),\"\")","v":""}]
[null,"FFF","V-01",{"$f":"SUMIFS('Déclaration tonnages'!$G:$G,'Déclaration tonnages'!$B:$B,B13,'Déclaration tonnages'!$D:$D,C13)","v":0},{"$f":"SUMIFS('Déclaration tonnages'!$G:$G,'Déclaration tonnages'!$B:$B,B13,'Déclaration tonnages'!$D:$D,C13)-SUM(SUMIFS('Déclaration tonnages'!$H:$H,'Déclaration tonnages'!$B:$B,B13,'Déclaration tonnages'!$D:$D,C13)+SUMIFS('Déclaration tonnages'!$I:$I,'Déclaration tonnages'!$B:$B,B13,'Déclaration tonnages'!$D:$D,C13))","v":0},{"$f":"SUMIFS('Déclaration tonnages'!$J:$J,'Déclaration tonnages'!$B:$B,B13,'Déclaration tonnages'!$D:$D,C13)","v":0},{"$f":"SUMIFS('Déclaration tonnages'!$K:$K,'Déclaration tonnages'!$B:$B,B13,'Déclaration tonnages'!$D:$D,C13)","v":0},{"$f":"SUMIFS('Déclaration tonnages'!$L:$L,'Déclaration tonnages'!$B:$B,B13,'Déclaration tonnages'!$D:$D,C13)","v":0},{"$f":"SUMIFS('Déclaration tonnages'!$M:$M,'Déclaration tonnages'!$B:$B,B13,'Déclaration tonnages'!$D:$D,C13)","v":0},{"$f":"SUMIFS('Déclaration tonnages'!$N:$N,'Déclaration tonnages'!$B:$B,B13,'Déclaration tonnages'!$D:$D,C13)","v":0},{"$f":"SUMIFS('Déclaration tonnages'!$O:$O,'Déclaration tonnages'!$B:$B,B13,'Déclaration tonnages'!$D:$D,C13)","v":0},{"$f":"SUMIFS('Déclaration tonnages'!$P:$P,'Déclaration tonnages'!$B:$B,B13,'Déclaration tonnages'!$D:$D,C13)","v":0},{"$f":"SUMIFS('Déclaration tonnages'!$Q:$Q,'Déclaration tonnages'!$B:$B,B13,'Déclaration tonnages'!$D:$D,C13)","v":0},{"$f":"SUMIFS('Déclaration tonnages'!$R:$R,'Déclaration tonnages'!$B:$B,B13,'Déclaration tonnages'!$D:$D,C13)","v":0},{"$f":"SUMIFS('Déclaration tonnages'!$S:$S,'Déclaration tonnages'!$B:$B,B13,'Déclaration tonnages'!$D:$D,C13)","v":0},{"$f":"SUMIFS('Déclaration tonnages'!$T:$T,'Déclaration tonnages'!$B:$B,B13,'Déclaration tonnages'!$D:$D,C13)","v":0},{"$f":"SUMIFS('Déclaration tonnages'!$H:$H,'Déclaration tonnages'!$B:$B,B13,'Déclaration tonnages'!$D:$D,C13)","v":0},null,{"$f":"IFERROR(VLOOKUP($C:$C,CodeLibCategoriePapier,3,0),1)","v":0.624},{"$f":"IFERROR(VLOOKUP($C:$C,CodeLibCategoriePapier,4,0),1)","v":1},{"$f":"SUMIFS('Déclaration tonnages'!$G:$G,'Déclaration tonnages'!$B:$B,B13,'Déclaration tonnages'!$D:$D,C13)*$S:$S","v":0},{"$f":"$U13*$T:$T","v":0},{"$f":"SUM(LARGE(F13:O13,{1,2,3}))*$S:$S*$T:$T*0.05","v":0},{"$f":"$E13*$S:$S*$T:$T*0.15","v":0},{"$f":"$P13*$S:$S*$T:$T*0.2","v":0},{"$f":"$Q13*$S:$S*$T:$T*-0.1","v":0},null,{"$f":"ROUND(V13*65,2)","v":0},{"$f":"ROUND(SUM(W13:Y13)*65,2)","v":0},{"$f":"ROUND(Z13*65,2)","v":0},{"$f":"ROUND(SUM(AB13:AD13),2)","v":0},{"$f":"ROUND(AE13/V13,2)","v":{"$error":"#DIV/0!"}}]
[null,"FFF","V-02",{"$f":"SUMIFS('Déclaration tonnages'!$G:$G,'Déclaration tonnages'!$B:$B,B14,'Déclaration tonnages'!$D:$D,C14)","v":0},{"$f":"SUMIFS('Déclaration tonnages'!$G:$G,'Déclaration tonnages'!$B:$B,B14,'Déclaration tonnages'!$D:$D,C14)-SUM(SUMIFS('Déclaration tonnages'!$H:$H,'Déclaration tonnages'!$B:$B,B14,'Déclaration tonnages'!$D:$D,C14)+SUMIFS('Déclaration tonnages'!$I:$I,'Déclaration tonnages'!$B:$B,B14,'Déclaration tonnages'!$D:$D,C14))","v":0},{"$f":"SUMIFS('Déclaration tonnages'!$J:$J,'Déclaration tonnages'!$B:$B,B14,'Déclaration tonnages'!$D:$D,C14)","v":0},{"$f":"SUMIFS('Déclaration tonnages'!$K:$K,'Déclaration tonnages'!$B:$B,B14,'Déclaration tonnages'!$D:$D,C14)","v":0},{"$f":"SUMIFS('Déclaration tonnages'!$L:$L,'Déclaration tonnages'!$B:$B,B14,'Déclaration tonnages'!$D:$D,C14)","v":0},{"$f":"SUMIFS('Déclaration tonnages'!$M:$M,'Déclaration tonnages'!$B:$B,B14,'Déclaration tonnages'!$D:$D,C14)","v":0},{"$f":"SUMIFS('Déclaration tonnages'!$N:$N,'Déclaration tonnages'!$B:$B,B14,'Déclaration tonnages'!$D:$D,C14)","v":0},{"$f":"SUMIFS('Déclaration tonnages'!$O:$O,'Déclaration tonnages'!$B:$B,B14,'Déclaration tonnages'!$D:$D,C14)","v":0},{"$f":"SUMIFS('Déclaration tonnages'!$P:$P,'Déclaration tonnages'!$B:$B,B14,'Déclaration tonnages'!$D:$D,C14)","v":0},{"$f":"SUMIFS('Déclaration tonnages'!$Q:$Q,'Déclaration tonnages'!$B:$B,B14,'Déclaration tonnages'!$D:$D,C14)","v":0},{"$f":"SUMIFS('Déclaration tonnages'!$R:$R,'Déclaration tonnages'!$B:$B,B14,'Déclaration tonnages'!$D:$D,C14)","v":0},{"$f":"SUMIFS('Déclaration tonnages'!$S:$S,'Déclaration tonnages'!$B:$B,B14,'Déclaration tonnages'!$D:$D,C14)","v":0},{"$f":"SUMIFS('Déclaration tonnages'!$T:$T,'Déclaration tonnages'!$B:$B,B14,'Déclaration tonnages'!$D:$D,C14)","v":0},{"$f":"SUMIFS('Déclaration tonnages'!$H:$H,'Déclaration tonnages'!$B:$B,B14,'Déclaration tonnages'!$D:$D,C14)","v":0},null,{"$f":"IFERROR(VLOOKUP($C:$C,CodeLibCategoriePapier,3,0),1)","v":0.624},{"$f":"IFERROR(VLOOKUP($C:$C,CodeLibCategoriePapier,4,0),1)","v":1},{"$f":"SUMIFS('Déclaration tonnages'!$G:$G,'Déclaration tonnages'!$B:$B,B14,'Déclaration tonnages'!$D:$D,C14)*$S:$S","v":0},0,{"$f":"SUM(LARGE(F14:O14,{1,2,3}))*$S:$S*$T:$T*0.05","v":0},0,0,0,null,0,0,0,0,{"$error":"#DIV/0!"}]
[null,"FFF","I-04",{"$f":"SUMIFS('Déclaration tonnages'!$G:$G,'Déclaration tonnages'!$B:$B,B15,'Déclaration tonnages'!$D:$D,C15)","v":0},{"$f":"SUMIFS('Déclaration tonnages'!$G:$G,'Déclaration tonnages'!$B:$B,B15,'Déclaration tonnages'!$D:$D,C15)-SUM(SUMIFS('Déclaration tonnages'!$H:$H,'Déclaration tonnages'!$B:$B,B15,'Déclaration tonnages'!$D:$D,C15)+SUMIFS('Déclaration tonnages'!$I:$I,'Déclaration tonnages'!$B:$B,B15,'Déclaration tonnages'!$D:$D,C15))","v":0},{"$f":"SUMIFS('Déclaration tonnages'!$J:$J,'Déclaration tonnages'!$B:$B,B15,'Déclaration tonnages'!$D:$D,C15)","v":0},{"$f":"SUMIFS('Déclaration tonnages'!$K:$K,'Déclaration tonnages'!$B:$B,B15,'Déclaration tonnages'!$D:$D,C15)","v":0},{"$f":"SUMIFS('Déclaration tonnages'!$L:$L,'Déclaration tonnages'!$B:$B,B15,'Déclaration tonnages'!$D:$D,C15)","v":0},{"$f":"SUMIFS('Déclaration tonnages'!$M:$M,'Déclaration tonnages'!$B:$B,B15,'Déclaration tonnages'!$D:$D,C15)","v":0},{"$f":"SUMIFS('Déclaration tonnages'!$N:$N,'Déclaration tonnages'!$B:$B,B15,'Déclaration tonnages'!$D:$D,C15)","v":0},{"$f":"SUMIFS('Déclaration tonnages'!$O:$O,'Déclaration tonnages'!$B:$B,B15,'Déclaration tonnages'!$D:$D,C15)","v":0},{"$f":"SUMIFS('Déclaration tonnages'!$P:$P,'Déclaration tonnages'!$B:$B,B15,'Déclaration tonnages'!$D:$D,C15)","v":0},{"$f":"SUMIFS('Déclaration tonnages'!$Q:$Q,'Déclaration tonnages'!$B:$B,B15,'Déclaration tonnages'!$D:$D,C15)","v":0},{"$f":"SUMIFS('Déclaration tonnages'!$R:$R,'Déclaration tonnages'!$B:$B,B15,'Déclaration tonnages'!$D:$D,C15)","v":0},{"$f":"SUMIFS('Déclaration tonnages'!$S:$S,'Déclaration tonnages'!$B:$B,B15,'Déclaration tonnages'!$D:$D,C15)","v":0},{"$f":"SUMIFS('Déclaration tonnages'!$T:$T,'Déclaration tonnages'!$B:$B,B15,'Déclaration tonnages'!$D:$D,C15)","v":0},{"$f":"SUMIFS('Déclaration tonnages'!$H:$H,'Déclaration tonnages'!$B:$B,B15,'Déclaration tonnages'!$D:$D,C15)","v":0},null,{"$f":"IFERROR(VLOOKUP($C:$C,CodeLibCategoriePapier,3,0),1)","v":1},{"$f":"IFERROR(VLOOKUP($C:$C,CodeLibCategoriePapier,4,0),1)","v":1},{"$f":"SUMIFS('Déclaration tonnages'!$G:$G,'Déclaration tonnages'!$B:$B,B15,'Déclaration tonnages'!$D:$D,C15)*$S:$S","v":0},0,{"$f":"SUM(LARGE(F15:O15,{1,2,3}))*$S:$S*$T:$T*0.05","v":0},0,0,0,null,0,0,0,0,{"$error":"#DIV/0!"}]
[null,"FFF","I-07",{"$f":"SUMIFS('Déclaration tonnages'!$G:$G,'Déclaration tonnages'!$B:$B,B16,'Déclaration tonnages'!$D:$D,C16)","v":0},{"$f":"SUMIFS('Déclaration tonnages'!$G:$G,'Déclaration tonnages'!$B:$B,B16,'Déclaration tonnages'!$D:$D,C16)-SUM(SUMIFS('Déclaration tonnages'!$H:$H,'Déclaration tonnages'!$B:$B,B16,'Déclaration tonnages'!$D:$D,C16)+SUMIFS('Déclaration tonnages'!$I:$I,'Déclaration tonnages'!$B:$B,B16,'Déclaration tonnages'!$D:$D,C16))","v":0},{"$f":"SUMIFS('Déclaration tonnages'!$J:$J,'Déclaration tonnages'!$B:$B,B16,'Déclaration tonnages'!$D:$D,C16)","v":0},{"$f":"SUMIFS('Déclaration tonnages'!$K:$K,'Déclaration tonnages'!$B:$B,B16,'Déclaration tonnages'!$D:$D,C16)","v":0},{"$f":"SUMIFS('Déclaration tonnages'!$L:$L,'Déclaration tonnages'!$B:$B,B16,'Déclaration tonnages'!$D:$D,C16)","v":0},{"$f":"SUMIFS('Déclaration tonnages'!$M:$M,'Déclaration tonnages'!$B:$B,B16,'Déclaration tonnages'!$D:$D,C16)","v":0},{"$f":"SUMIFS('Déclaration tonnages'!$N:$N,'Déclaration tonnages'!$B:$B,B16,'Déclaration tonnages'!$D:$D,C16)","v":0},{"$f":"SUMIFS('Déclaration tonnages'!$O:$O,'Déclaration tonnages'!$B:$B,B16,'Déclaration tonnages'!$D:$D,C16)","v":0},{"$f":"SUMIFS('Déclaration tonnages'!$P:$P,'Déclaration tonnages'!$B:$B,B16,'Déclaration tonnages'!$D:$D,C16)","v":0},{"$f":"SUMIFS('Déclaration tonnages'!$Q:$Q,'Déclaration tonnages'!$B:$B,B16,'Déclaration tonnages'!$D:$D,C16)","v":0},{"$f":"SUMIFS('Déclaration tonnages'!$R:$R,'Déclaration tonnages'!$B:$B,B16,'Déclaration tonnages'!$D:$D,C16)","v":0},{"$f":"SUMIFS('Déclaration tonnages'!$S:$S,'Déclaration tonnages'!$B:$B,B16,'Déclaration tonnages'!$D:$D,C16)","v":0},{"$f":"SUMIFS('Déclaration tonnages'!$T:$T,'Déclaration tonnages'!$B:$B,B16,'Déclaration tonnages'!$D:$D,C16)","v":0},{"$f":"SUMIFS('Déclaration tonnages'!$H:$H,'Déclaration tonnages'!$B:$B,B16,'Déclaration tonnages'!$D:$D,C16)","v":0},null,{"$f":"IFERROR(VLOOKUP($C:$C,CodeLibCategoriePapier,3,0),1)","v":1},{"$f":"IFERROR(VLOOKUP($C:$C,CodeLibCategoriePapier,4,0),1)","v":1},{"$f":"SUMIFS('Déclaration tonnages'!$G:$G,'Déclaration tonnages'!$B:$B,B16,'Déclaration tonnages'!$D:$D,C16)*$S:$S","v":0},0,{"$f":"SUM(LARGE(F16:O16,{1,2,3}))*$S:$S*$T:$T*0.05","v":0},0,0,0,null,0,0,0,0,{"$error":"#DIV/0!"}]
[null,"FFF","I-08",{"$f":"SUMIFS('Déclaration tonnages'!$G:$G,'Déclaration tonnages'!$B:$B,B17,'Déclaration tonnages'!$D:$D,C17)","v":0},{"$f":"SUMIFS('Déclaration tonnages'!$G:$G,'Déclaration tonnages'!$B:$B,B17,'Déclaration tonnages'!$D:$D,C17)-SUM(SUMIFS('Déclaration tonnages'!$H:$H,'Déclaration tonnages'!$B:$B,B17,'Déclaration tonnages'!$D:$D,C17)+SUMIFS('Déclaration tonnages'!$I:$I,'Déclaration tonnages'!$B:$B,B17,'Déclaration tonnages'!$D:$D,C17))","v":0},{"$f":"SUMIFS('Déclaration tonnages'!$J:$J,'Déclaration tonnages'!$B:$B,B17,'Déclaration tonnages'!$D:$D,C17)","v":0},{"$f":"SUMIFS('Déclaration tonnages'!$K:$K,'Déclaration tonnages'!$B:$B,B17,'Déclaration tonnages'!$D:$D,C17)","v":0},{"$f":"SUMIFS('Déclaration tonnages'!$L:$L,'Déclaration tonnages'!$B:$B,B17,'Déclaration tonnages'!$D:$D,C17)","v":0},{"$f":"SUMIFS('Déclaration tonnages'!$M:$M,'Déclaration tonnages'!$B:$B,B17,'Déclaration tonnages'!$D:$D,C17)","v":0},{"$f":"SUMIFS('Déclaration tonnages'!$N:$N,'Déclaration tonnages'!$B:$B,B17,'Déclaration tonnages'!$D:$D,C17)","v":0},{"$f":"SUMIFS('Déclaration tonnages'!$O:$O,'Déclaration tonnages'!$B:$B,B17,'Déclaration tonnages'!$D:$D,C17)","v":0},{"$f":"SUMIFS('Déclaration tonnages'!$P:$P,'Déclaration tonnages'!$B:$B,B17,'Déclaration tonnages'!$D:$D,C17)","v":0},{"$f":"SUMIFS('Déclaration tonnages'!$Q:$Q,'Déclaration tonnages'!$B:$B,B17,'Déclaration tonnages'!$D:$D,C17)","v":0},{"$f":"SUMIFS('Déclaration tonnages'!$R:$R,'Déclaration tonnages'!$B:$B,B17,'Déclaration tonnages'!$D:$D,C17)","v":0},{"$f":"SUMIFS('Déclaration tonnages'!$S:$S,'Déclaration tonnages'!$B:$B,B17,'Déclaration tonnages'!$D:$D,C17)","v":0},{"$f":"SUMIFS('Déclaration tonnages'!$T:$T,'Déclaration tonnages'!$B:$B,B17,'Déclaration tonnages'!$D:$D,C17)","v":0},{"$f":"SUMIFS('Déclaration tonnages'!$H:$H,'Déclaration tonnages'!$B:$B,B17,'Déclaration tonnages'!$D:$D,C17)","v":0},null,{"$f":"IFERROR(VLOOKUP($C:$C,CodeLibCategoriePapier,3,0),1)","v":1},{"$f":"IFERROR(VLOOKUP($C:$C,CodeLibCategoriePapier,4,0),1)","v":1},{"$f":"SUMIFS('Déclaration tonnages'!$G:$G,'Déclaration tonnages'!$B:$B,B17,'Déclaration tonnages'!$D:$D,C17)*$S:$S","v":0},0,{"$f":"SUM(LARGE(F17:O17,{1,2,3}))*$S:$S*$T:$T*0.05","v":0},0,0,0,null,0,0,0,0,{"$error":"#DIV/0!"}]

{"sheet":"Grille questions par catégorie","index":6,"n_rows":31,"n_cols":16,"rows_kept":31,"cut":false,"hidden":false,"merged":[[26,0,28,0],[7,3,7,4],[7,5,7,14],[21,0,22,0]]}
[]
[]
[]
[null,"Date de mise à jour : ","2018-11-01",null,null,null,"Obligatoire","--> une valeur doit être saisie obligatoirement pour cette question. Mettre \"0\" si le produit n'est pas concerné par ce critère."]
[null,null,null,null,null,null,null,"--> question non posée par défaut pour ce type de produit. N'est à renseigner que si votre produit est concerné par ce critère."]
[null,null,null,null,null,null,null,"--> question non posée pour ce type de produit. "]
[]
[null,null,null,"Origine de la fibre",null,"Eléments perturbateurs",null,null,null,null,null,null,null,null,null,"Réduction des débouchés de recyclage"]
[null,null,null,"EF-023","EF-024","EF-026","EF-025","EF-080","EF-031","EF-034","EF-037","EF-040","EF-046","EF-047","EF-050","EF-111"]
["Groupement","Code catégorie de papiers","Libellés catégorie de papiers","Tonnage Fibre recyclée","Tonnage Fibre issue de forêts gérées durablement","Tonnage papier kraft","Tonnage papier teinté masse","Tonnage imprimé à partir d’encres offset UV","Tonnage imprimé par flexographie","Tonnage imprimé par jet d'encre","Tonnage avec colle fermeture (enveloppes)","Tonnage avec présence de colle","Tonnage avec vernis UV","Tonnage avec él. non pulpables inserts & blisters","Tonnage avec él. non pulpables plastiques & REH","Tonnages 2021 d'impressions avec huiles minérales \n(hors presse)"]
[null,null,"Colonnes",{"$f":"IFERROR(MATCH(D9,'Déclaration tonnages'!12:12,0),\"\")","v":8},{"$f":"IFERROR(MATCH(E9,'Déclaration tonnages'!12:12,0),\"\")","v":9},{"$f":"IFERROR(MATCH(F9,'Déclaration tonnages'!12:12,0),\"\")","v":10},{"$f":"IFERROR(MATCH(G9,'Déclaration tonnages'!12:12,0),\"\")","v":11},{"$f":"IFERROR(MATCH(H9,'Déclaration tonnages'!12:12,0),\"\")","v":12},{"$f":"IFERROR(MATCH(I9,'Déclaration tonnages'!12:12,0),\"\")","v":13},{"$f":"IFERROR(MATCH(J9,'Déclaration tonnages'!12:12,0),\"\")","v":14},{"$f":"IFERROR(MATCH(K9,'Déclaration tonnages'!12:12,0),\"\")","v":15},{"$f":"IFERROR(MATCH(L9,'Déclaration tonnages'!12:12,0),\"\")","v":16},{"$f":"IFERROR(MATCH(M9,'Déclaration tonnages'!12:12,0),\"\")","v":17},{"$f":"IFERROR(MATCH(N9,'Déclaration tonnages'!12:12,0),\"\")","v":18},{"$f":"IFERROR(MATCH(O9,'Déclaration tonnages'!12:12,0),\"\")","v":19},{"$f":"IFERROR(MATCH(P9,'Déclaration tonnages'!12:12,0),\"\")","v":20}]
[null,"I-01","Journaux gratuits d’annonces","Obligatoire","Obligatoire",null,null,null,null,null,null,null,null,null,null,"Obligatoire"]
[null,"I-02","Imprimés publicitaires","Obligatoire","Obligatoire",null,null,"Obligatoire",null,null,null,"Obligatoire",null,"Obligatoire","Obligatoire","Obligatoire"]
[null,"I-03","Annuaires","Obligatoire","Obligatoire",null,null,null,null,null,null,null,null,"Obligatoire","Obligatoire","Obligatoire"]
[null,"I-04","Magazines de marque, publications d’entreprises et d’entités publiques","Obligatoire","Obligatoire",null,null,"Obligatoire",null,null,null,"Obligatoire","Obligatoire","Obligatoire","Obligatoire","Obligatoire"]
[null,"I-05","Mailings, publipostages et courriers de gestion ","Obligatoire","Obligatoire",null,"Obligatoire","Obligatoire",null,"Obligatoire",null,"Obligatoire",null,"Obligatoire","Obligatoire","Obligatoire"]
[null,"I-06","Papiers à en-tête et formulaires administratifs ","Obligatoire","Obligatoire",null,"Obligatoire","Obligatoire",null,null,null,null,null,null,null,"Obligatoire"]
[null,"I-07","Catalogues de vente","Obligatoire","Obligatoire",null,null,null,null,null,null,null,"Obligatoire","Obligatoire","Obligatoire","Obligatoire"]
[null,"I-08","Encarts publicitaires presse non annoncés au sommaire","Obligatoire","Obligatoire",null,null,"Obligatoire",null,null,null,"Obligatoire",null,"Obligatoire",null,"Obligatoire"]
[null,"I-10","Enveloppes et pochettes postales personnalisées","Obligatoire","Obligatoire","Obligatoire","Obligatoire","Obligatoire","Obligatoire",null,"Obligatoire",null,null,null,"Obligatoire","Obligatoire"]
[null,"I-12","Autres ","Obligatoire","Obligatoire","Obligatoire","Obligatoire","Obligatoire","Obligatoire","Obligatoire","Obligatoire","Obligatoire","Obligatoire","Obligatoire","Obligatoire","Obligatoire"]
["Notices","I-13a","Notices d’utilisation, et modes d’emploi - déclaration au réel ","Obligatoire","Obligatoire",null,"Obligatoire",null,null,null,null,null,"Obligatoire","Obligatoire",null,"Obligatoire"]
[null,"I-13b","Notices d’utilisation, et modes d’emploi - déclaration simplifiée ","A REMPLIR DANS L'ONGLET NOTICE"]
[null,"I-14","Affiches","Obligatoire","Obligatoire",null,null,"Obligatoire",null,null,null,null,"Obligatoire",null,"Obligatoire","Obligatoire"]
[null,"I-15","Papiers décoratifs","Obligatoire","Obligatoire","Obligatoire","Obligatoire",null,null,null,null,"Obligatoire","Obligatoire",null,"Obligatoire","Obligatoire"]
[null,"I-16","Papiers fiduciaires : moyens et justificatifs de paiements, billetterie (transport, spectacles),","Obligatoire","Obligatoire",null,null,null,null,"Obligatoire",null,null,null,null,"Obligatoire","Obligatoire"]
["Publications de presse","I-17a","Publications de presse - presse payante sur papier journal ","Obligatoire","Obligatoire",null,"Obligatoire","Obligatoire","Obligatoire",null,null,"Obligatoire","Obligatoire","Obligatoire","Obligatoire"]
[null,"I-17b","Publications de presse - presse gratuite d'information","Obligatoire","Obligatoire",null,"Obligatoire","Obligatoire","Obligatoire",null,null,"Obligatoire","Obligatoire","Obligatoire","Obligatoire"]
[null,"I-17c","Publications de presse - presse magazine","Obligatoire","Obligatoire",null,"Obligatoire","Obligatoire","Obligatoire",null,null,"Obligatoire","Obligatoire","Obligatoire","Obligatoire"]
[null,"V-01","Papiers à copier","Obligatoire","Obligatoire",null,"Obligatoire"]
[null,"V-02","Enveloppes et pochettes postales","Obligatoire","Obligatoire","Obligatoire","Obligatoire",null,"Obligatoire",null,"Obligatoire",null,null,null,"Obligatoire","Obligatoire"]

{"sheet":"Références","index":7,"n_rows":734,"n_cols":47,"rows_kept":734,"cut":false,"hidden":true,"merged":[[1,7,1,8]]}
[]
[null,"Catégorie","Libellé catégorie de papiers","Taux de pré-abattement","Taux d'abattement","Tri ordre AZ des libellés",null,"Liste des types de notice",null,"Poids unitaire Notice (grammes)","Malus",null,"Code colonne","Libellé colonne","Obligatoire oui/non","Description de la colonne",null,"Année","Tarif Tonne","Valeurs","Statut juridique","Libellé Catégorie Papier","CdeCat2","Catégorie","Couverture","Périodicité","Thèmes",null,"Secteur d'activité Citeo","Sous-secteur d'activité Citeo",null,"SECTEURS","Asso","Comm","Edit","Indu","Serv","Indé",null,"Question Boucle papiers",null,"Activité Niv. 1","Activité Niv. 2","Activité","Code APE",null,"Pays"]
[null,"I-01","Journaux gratuits d’annonces",1,1,{"$f":"_xlfn._xlws.SORT(C3:C21)","v":"Affiches"},null,"Produits médicamenteux",null,2.2999999999999998,"X",null,"EF-001","Année de mise sur le marché","oui","Année de mise sur le marché des papiers.",null,2022,65,"Oui","SARL","Journaux gratuits d’annonces","I-01","presse payante papier journal","Régionale","Quotidien","Presse Quotidienne Nationale",null,"Association / Collectivités / Services publics","Organisations Patronales / Syndicales / Professionnelles",null,"Association / Collectivités / Services publics","Organisations Patronales / Syndicales / Professionnelles","Grandes Surfaces Alimentaires (GSA)","Annuaires","Industrie papetière","Autres Services","Indéterminé",null,"oui",null,"Constructions et travaux de construction","Construction de bâtiments","Promotion immobilière de logements","41.10A",null,"FRANCE"]
[null,"I-02","Imprimés publicitaires",1,1,"Annuaires",null,"Produits de santé, de parapharmacie et cosmétique",null,4.0999999999999996,"X",null,"EF-002","N° compte adhérent CITEO","oui","Correspond à l'entité titulaire du contrat d'adhésion au dispositif CITEO Papiers (un numéro unique de compte lui est attribué par CITEO)",null,null,null,"Non","EURL","Imprimés publicitaires","I-02","presse gratuite d'information","Nationale","Hebdomadaire","Presse Quotidienne Régionale et Départementale",null,"Association / Collectivités / Services publics","Ministères et services de l'état",null,"Commerce / Distribution","Ministères et services de l'état","Grandes Surfaces Spécialisées (GSS)","Autres produits d'édition","Biens ménagers","Banques / Assurances",null,null,"non",null,"Constructions et travaux de construction","Construction de bâtiments","Promotion immobilière de bureaux","41.10B",null,"ALLEMAGNE"]
[null,"I-03","Annuaires",1,1,"Autres ",null,"Cartouches d'encres",null,6,"X",null,"EF-003","Raison sociale adhérent","non","Champ libre à titre informatif. Non importé.",null,null,null,null,"SNC","Annuaires","I-03","presse magazine",null,"Bi hebdomadaire","Presse Hebdomadaire Régionale",null,"Association / Collectivités / Services publics","Association Commerçants / Tourisme",null,"Edition","Association Commerçants / Tourisme","Autres commerces","Publications de presse","Hygiène beauté","Loisirs / Spectacles",null,null,"NSP",null,"Constructions et travaux de construction","Construction de bâtiments","Promotion immobilière d'autres bâtiments","41.10C",null,"AUTRICHE"]
[null,"I-04","Magazines de marque, publications d’entreprises et d’entités publiques",1,1,"Catalogues de vente",null,"Ameublements",null,20,"X",null,"EF-004","Siret entité émettrice","oui","N° de siret de l'entité émettrice (9 chiffres).\nSi l'entité ne possède pas de Siret, voir description de la colonne EF-005.",null,null,null,null,"SA","Magazines de marque, publications d’entreprises et d’entités publiques","I-04",null,null,"Mensuel","Presse Gratuite d'Information",null,"Association / Collectivités / Services publics","Autres organisations associatives",null,"Industrie","Autres organisations associatives","E-commerce / VAD / VPC","Journaux gratuits d'annonce","Frais","Tourisme / Transports",null,null,null,null,"Constructions et travaux de construction","Construction de bâtiments","Supports juridiques de programmes","41.10D",null,"BELGIQUE"]
[null,"I-05","Mailings, publipostages et courriers de gestion ",1,1,"Encarts publicitaires presse non annoncés au sommaire",null,"Outillage de jardin et de bricolage",null,20,"X",null,"EF-005","Raison sociale entité émettrice","non sauf si pas de siret","Permet de gérer le cas où l'entité émettrice ne possède pas de Siret : dans ce cas, laisser vide la colonne EF-004 et renseigner obligatoirement cette colonne EF-005 en inscrivant précisément la raison sociale de l'entité, telle qu'elle apparaît dans l'écran \"Périmètre\" de l'outil MesPapiers.",null,null,null,null,"SAS","Mailings, publipostages et courriers de gestion ","I-05",null,"    ","Bi mensuel","Presse News",null,"Association / Collectivités / Services publics","Collectivités territoriales",null,"Services","Collectivités territoriales","Commerce de gros",null,"Epicerie","Impression / Communication / Marketing",null,null,null,null,"Constructions et travaux de construction","Construction de bâtiments","Construction de maisons individuelles","41.20A",null,"BULGARIE"]
[null,"I-06","Papiers à en-tête et formulaires administratifs ",1,1,"Enveloppes et pochettes postales",null,"Gros Appareils Ménagers (EEE)","Gros appareils ménagers froid et hors froid",80,"X",null,"EF-006","Code catégorie de papiers (Citeo)","oui","Catégorie de produits papiers utilisée pour la déclaration annuelle.\nUtiliser uniquement la codification indiquée dans l'onglet \"Liste catégories papiers\". Exemple : pour indiquer \"journeaux gratuits d'annonces\", saisir \"I-01\".",null,null,null,null,"Société civile","Papiers à en-tête et formulaires administratifs ","I-06",null,"    ","Trimestriel","Presse d'Actualité Générale - Société",null,"Association / Collectivités / Services publics","Groupement politique",null,"Indéterminé","Groupement politique","Restauration",null,"Boissons","Formation / Enseignement",null,null,null,null,"Constructions et travaux de construction","Construction de bâtiments","Construction d'autres bâtiments","41.20B",null,"CHYPRE"]
[null,"I-07","Catalogues de vente",1,1,"Enveloppes et pochettes postales personnalisées",null,"Petits Appareils Ménagers (EEE)","Petits appareils ménagers ",60,"X",null,"EF-007","Liste perso 1 ","non","Champ facultatif dont les valeurs ne sont pas importées dans l'application MesPapiers",null,null,null,null,"Société en commandite","Catalogues de vente","I-07",null,"    ","Semestriel","Presse de l'Economie",null,"Association / Collectivités / Services publics","Fédération sportive",null,null,"Fédération sportive",null,null,null,null,null,null,null,null,"Constructions et travaux de construction","Génie civil","Construction de routes et autoroutes","42.11Z",null,"DANEMARK"]
[null,"I-08","Encarts publicitaires presse non annoncés au sommaire",1,1,"Imprimés publicitaires",null,"Equipement informatique et télécommunication (EEE)","Equipements Informatiques et de télécommunications",60,"X",null,"EF-008","Liste perso 2","non","Champ facultatif dont les valeurs ne sont pas importées dans l'application MesPapiers",null,null,null,null,"GIE","Encarts publicitaires presse non annoncés au sommaire","I-08",null,null,"Annuel","Presse People",null,"Commerce / Distribution","Grandes Surfaces Alimentaires (GSA)",null,null,null,null,null,null,null,null,null,null,null,"Constructions et travaux de construction","Génie civil","Construction de voies ferrées de surface et souterraines","42.12Z",null,"ESPAGNE"]
[null,"I-10","Enveloppes et pochettes postales personnalisées",1,1,"Journaux gratuits d’annonces",null,"Matériel Grand Public (EEE)","Matériel grand : Ecrans, moniteurs et équipements comprenant des écrans ",90,"X",null,"EF-009","Liste perso 3","non","Champ facultatif dont les valeurs ne sont pas importées dans l'application MesPapiers",null,null,null,null,"GEIE","Enveloppes et pochettes postales personnalisées","I-10",null,null,"Autre","Presse Télévision",null,"Commerce / Distribution","Grandes Surfaces Spécialisées (GSS)",null,null,null,null,null,null,null,null,null,null,null,"Constructions et travaux de construction","Génie civil","Construction d'ouvrages d'art","42.13A",null,"ESTONIE"]
[null,"I-12","Autres ",1,1,"Magazines de marque, publications d’entreprises et d’entités publiques",null,"Matériels d'éclairage (EEE)","Matériel d’éclairage",20,"X",null,"EF-010","Liste perso 4","non","Champ facultatif dont les valeurs ne sont pas importées dans l'application MesPapiers",null,null,null,null,"Société mutuelle","Autres ","I-12",null,null,null,"Presse Masculine",null,"Commerce / Distribution","Autres commerces",null,null,null,null,null,null,null,null,null,null,null,"Constructions et travaux de construction","Génie civil","Construction et entretien de tunnels","42.13B",null,"FINLANDE"]
[null,"I-13a","Notices d’utilisation, et modes d’emploi - déclaration au réel ",1,1,"Mailings, publipostages et courriers de gestion ",null,"Outillages électriques et électroniques (EEE)","Outils électriques et électronique",80,"X",null,"EF-011","Liste perso 5","non","Champ facultatif dont les valeurs ne sont pas importées dans l'application MesPapiers",null,null,null,null,"Association","Notices d’utilisation, et modes d’emploi - déclaration au réel ","I-13a",null,null,null,"Presse Féminine Généraliste, Mode et Santé",null,"Commerce / Distribution","E-commerce / VAD / VPC",null,null,null,null,null,null,null,null,null,null,null,"Constructions et travaux de construction","Génie civil","Construction de réseaux pour fluides","42.21Z",null,"GRANDE BRETAGNE"]
[null,"I-14","Affiches",1,1,"Notices d’utilisation, et modes d’emploi - déclaration au réel ",null,"Jouets, équipements de loisir et de sport (EEE)","Jouets, équipements de loisir et de sports",20,"X",null,"EF-012","Ref interne","non","Champ facultatif libre (128 caractères max)",null,null,null,null,"Fédération","Affiches","I-14",null,null,null,"Presse de la Famille : Généraliste, Parentale et Senior",null,"Commerce / Distribution","Commerce de gros",null,null,null,null,null,null,null,null,null,null,null,"Constructions et travaux de construction","Génie civil","Construction de réseaux électriques et de télécommunications","42.22Z",null,"GRECE"]
[null,"I-15","Papiers décoratifs",1,1,"Papiers à copier",null,"Dispositifs médicaux (EEE)","Dispositifs médicaux",80,"X",null,"EF-013","Date impr./fabric.","non"," Date à saisir à l'aide du calendrier ou au format JJ/MM/AAAA",null,null,null,null,"Collectivité territoriale - Commune","Papiers décoratifs","I-15",null,null,null,"Presse des Ados, Enseignement et Pédagogie",null,"Commerce / Distribution","Restauration",null,null,null,null,null,null,null,null,null,null,null,"Constructions et travaux de construction","Génie civil","Construction d'ouvrages maritimes et fluviaux","42.91Z",null,"HONGRIE"]
[null,"I-16","Papiers fiduciaires : moyens et justificatifs de paiements, billetterie (transport, spectacles)",1,1,"Papiers à en-tête et formulaires administratifs ",null,"Instruments de contrôle et surveillance (EEE)","Instruments de surveillance et de contrôle",20,"X",null,"EF-014","Poids unitaire (g)","non","Poids d'une unité d'œuvre du produit telle que définie dans le guide du barème éco-différencié , exprimé en grammes (précision possible à 0,1g près)",null,null,null,null,"Collectivité territoriale - EPCI","Papiers fiduciaires : moyens et justificatifs de paiements, billetterie (transport, spectacles)","I-16",null,null,null,"Presse des Enfants, Illustrés",null,"Edition","Annuaires",null,null,null,null,null,null,null,null,null,null,null,"Constructions et travaux de construction","Génie civil","Construction d'autres ouvrages de génie civil n.c.a.","42.99Z",null,"IRLANDE"]
[null,"I-17a","Publications de presse - presse payante sur papier journal ",1,0.9,"Papiers décoratifs",null,"Distributeurs automatiques (EEE)","Distributeurs automatiques",80,"X",null,"EF-015","Nb d'exemplaires produits","non","Nombre total d'exemplaires imprimés ou fabriqués",null,null,null,null,"Collectivité territoriale - Région","Publications de presse - presse payante sur papier journal ","I-17a",null,null,null,"Presse Cuisine, Gastronomie",null,"Edition","Autres produits d'édition",null,null,null,null,null,null,null,null,null,null,null,"Constructions et travaux de construction","Travaux de construction spécialisés","Travaux de démolition","43.11Z",null,"ISLANDE"]
[null,"I-17b","Publications de presse - presse gratuite d'information",1,1,"Papiers fiduciaires : moyens et justificatifs de paiements, billetterie (transport, spectacles)",null,"Panneaux Photovoltaïques (EEE)","Panneaux photovoltaïques ",80,"X",null,"EF-016","Tonnage imprimé ou fabriqué (t)","non","Poids total de produits imprimés ou fabriqués, en tonnes (précision possible au kg près). Par défaut, il est calculé par le produit \"Poids unitaire\" x \"Nombre d'exemplaires\" (avec conversion en tonnes). Il est peut également être saisi directement en écrasant la formule proposée.",null,null,null,null,"Collectivité territoriale - Département","Publications de presse - presse gratuite d'information","I-17b",null,null,null,"Presse de la Maison, Décoration, Bricolage, Jardin",null,"Edition","Publications de presse",null,null,null,null,null,null,null,null,null,null,null,"Constructions et travaux de construction","Travaux de construction spécialisés","Travaux de terrassement courants et travaux préparatoires","43.12A",null,"ITALIE"]
[null,"I-17c","Publications de presse - presse magazine",1,0.85,"Publications de presse - presse gratuite d'information",null,"Jouets et articles de puériculture",null,30,null,null,"EF-017","Taux de distribution","non","Correspond au ratio \"Tonnage mis sur le marché / Tonnage imprimé ou fabriqué\". Par défaut il est initialisé à 100% et permet de déduire directement le tonnage mis sur le marché à partir du tonnage imprimé ou fabriqué.\nSi, comme évoqué dans la description de la colonne EF-019, vous forcez la saisie de ce tonnage mis sur le marché, alors le taux de distribution peut éventuellement être laissé \"vide\".",null,null,null,null,"Service public local","Publications de presse - presse magazine","I-17c",null,null,null,"Presse du Voyage, Tourisme, Gastronomie, Territoires",null,"Edition","Journaux gratuits d'annonce",null,null,null,null,null,null,null,null,null,null,null,"Constructions et travaux de construction","Travaux de construction spécialisés","Travaux de terrassement spécialisés ou de grande masse","43.12B",null,"LETTONIE"]
[null,"V-01","Papiers à copier",0.624,1,"Publications de presse - presse magazine",null,"Montres et Bijoux",null,50,null,null,"EF-018","Date de mise en distribution","non","Date de mise en distribution ou de mise sur le marché.\nDate à saisir à l'aide du calendrier ou au format JJ/MM/AAAA",null,null,null,null,"Etat (dont EPIC et EPA)","Papiers à copier","V-01",null,null,null,"Presse des Sports et de l'Actualité Sportive",null,"Industrie","Industrie papetière",null,null,null,null,null,null,null,null,null,null,null,"Constructions et travaux de construction","Travaux de construction spécialisés","Forages et sondages","43.13Z",null,"LITUANIE"]
[null,"V-02","Enveloppes et pochettes postales",0.624,1,"Publications de presse - presse payante sur papier journal ",null,"Notices pour remplir un imprimé",null,70,null,null,"EF-019","Tonnages mis sur le marché (t)","oui","Poids total de produits mis à disposition de l'utilisateur final sur le marché national, en tonnes (précision possible au kg près). Par défaut, il est calculé par le produit \"Tonnage fabriqué x taux de distribution\". Il est peut également être saisi directement en écrasant la formule proposée.",null,null,null,null,"Office de tourisme","Enveloppes et pochettes postales","V-02",null,null,null,"Presse de l'Automobile et de la Moto",null,"Industrie","Biens ménagers",null,null,null,null,null,null,null,null,null,null,null,"Constructions et travaux de construction","Travaux de construction spécialisés","Travaux d'installation électrique dans tous locaux","43.21A",null,"LUXEMBOURG"]
[null,null,null,null,null,null,null,"Articles de sport et de loisirs",null,50,null,null,"EF-020"," Utilisation TRIMAN","oui","Merci d'indiquer si vous affichez le logo TRIMAN  sur tout ou partie de vos exemplaires produits. Vous pouvez répondre \"oui\", \"non \" ou \"NSP\" si vous le ne savez pas.",null,null,null,null,"Organisme HLM",null,null,null,null,null,"Presse de la Photo, Cinéma, Vidéo, Musique et Spectacles",null,"Industrie","Hygiène beauté",null,null,null,null,null,null,null,null,null,null,null,"Constructions et travaux de construction","Travaux de construction spécialisés","Travaux d'installation électrique sur la voie publique","43.21B",null,"MALTE"]
[null,null,null,null,null,null,null,"Véhicules & moyens de locomotions motorisés",null,490,null,null,"EF-021","% utilisation Boucle papiers","non","Si vous utilisez la Boucle papiers, merci de préciser à quelle hauteur du poids total mis sur le marché (100% par défaut).",null,null,null,null,"Autre et sociétés étrangères",null,null,null,null,null,"Presse de l'Informatique, des Jeux et de l'Internet",null,"Industrie","Frais",null,null,null,null,null,null,null,null,null,null,null,"Constructions et travaux de construction","Travaux de construction spécialisés","Travaux d'installation d'eau et de gaz en tous locaux","43.22A",null,"NORVEGE"]
[null,"I-13b","Notices d’utilisation, et modes d’emploi - déclaration simplifiée ",null,null,null,null,null,null,null,null,null,"EF-022","Commentaires","non","Champ facultatif libre (256 caractères max)",null,null,null,null,null,"Notices d’utilisation, et modes d’emploi - déclaration simplifiée ","I-13b",null,null,null,"Presse des Sciences, des Connaissances et des Découvertes",null,"Industrie","Epicerie",null,null,null,null,null,null,null,null,null,null,null,"Constructions et travaux de construction","Travaux de construction spécialisés","Travaux d'installation d'équipements thermiques et de climatisation","43.22B",null,"PAYS BAS"]
[null,null,null,null,null,null,null,null,null,null,null,null,"EF-023","Tonnage Fibre recyclée (t)","oui","Valeur obligatoire, en tonnes, inférieure ou égale au tonnage mis sur le marché. Mettre \"0\" si votre produit n'est pas concerné.\nPour être éligible au bonus recyclé, votre produit papier doit pouvoir justifier d’une composition globale contenant au moins 50 % de fibres recyclées.\n• Un produit constitué de ≥ 50 % de fibres recyclées est éligible au bonus Recyclé\n• Un produit constitué de < 50 % de fibres recyclées est non éligible au bonus Recyclé",null,null,null,null,null,null,null,null,null,null,"Presse des Jeux et Mots Croisés",null,"Industrie","Boissons",null,null,null,null,null,null,null,null,null,null,null,"Constructions et travaux de construction","Travaux de construction spécialisés","Travaux d'isolation","43.29A",null,"POLOGNE"]
[null,null,null,null,null,null,null,null,null,null,null,null,"EF-024","Tonnage Fibre issue de forêts gérées durablement (t)","oui","Valeur obligatoire, en tonnes, inférieure ou égale au tonnage mis sur le marché. Mettre \"0\" si votre produit n'est pas concerné.\nPour que votre produit papier soit considéré d’origine IFGD, il doit pouvoir justifier d’une certification ou d’une labellisation relative au recours à des fibres issues de forêts gérées durablement. Ces certifications ou labellisations peuvent être :\n• Produit papier certifié FSC ou équivalent\n• Produit papier certifié PEFC ou équivalent\n• Produit papier disposant de l’Eco-label européen\nNB : si le papier utilisé est certifié \"FSC Recyclé\" ou \"PEFC Recyclé\", c'est la caractéristique \"Recyclé\" qui prévaut, les tonnages sont donc à renseigner pour la question EF-023 et non EF-024.",null,null,null,null,null,null,null,null,null,null,"Presse de la Chasse, Pêche, Nature et Animaux",null,"Services","Autres Services",null,null,null,null,null,null,null,null,null,null,null,"Constructions et travaux de construction","Travaux de construction spécialisés","Autres travaux d'installation n.c.a.","43.29B",null,"PORTUGAL"]
[null,null,null,null,null,null,null,null,null,null,null,null,"EF-026","Tonnage papier kraft (t)","Selon catégorie papiers","Valeur en tonnes, inférieure ou égale au tonnage mis sur le marché. Reportez-vous à l'onglet \"Grille questions par catégorie\" pour savoir si vous devez renseigner cette colonne pour votre produit. Si vous devez la renseigner et que votre produit n'est pas concerné, saisissez \"0\".\nPapier kraft : papier produit à partir de fibres de cellulose non blanchies.",null,null,null,null,null,null,null,null,null,null,"Presse des Associations, Syndicats et Groupements",null,"Services","Banques / Assurances",null,null,null,null,null,null,null,null,null,null,null,"Constructions et travaux de construction","Travaux de construction spécialisés","Travaux de plâtrerie","43.31Z",null,"REPUBLIQUE TCHEQUE"]
[null,null,null,null,null,null,null,null,null,null,null,null,"EF-025","Tonnage papier teinté masse (t)","Selon catégorie papiers","Valeur en tonnes, inférieure ou égale au tonnage mis sur le marché. Reportez-vous à l'onglet \"Grille questions par catégorie\" pour savoir si vous devez renseigner cette colonne pour votre produit. Si vous devez la renseigner et que votre produit n'est pas concerné, saisissez \"0\".\nPapier produit à partir de fibres de cellulose teintées dans la masse.",null,null,null,null,null,null,null,null,null,null,"Presse Agricole Nationale",null,"Services","Loisirs / Spectacles",null,null,null,null,null,null,null,null,null,null,null,"Constructions et travaux de construction","Travaux de construction spécialisés","Travaux de menuiserie bois et PVC","43.32A",null,"ROUMANIE"]
[null,null,null,null,null,null,null,null,null,null,null,null,"EF-054","Tonnage avec score de 5 au test Colorants (t)","non","Le test Colorant a pour but d’évaluer la sensibilité aux agents blanchissants d’un colorant utilisé dans la production d’un papier teinté masse.\nCe champ n'est à renseigner que si vous avez obtenu un tel score à ce test pour votre produit. Si c'est le cas, saisissez la valeur du tonnage mis sur le marché concerné par le résultat de ce test.",null,null,null,null,null,null,null,null,null,null,"Presse Agricole Régionale et Départementale",null,"Services","Tourisme / Transports",null,null,null,null,null,null,null,null,null,null,null,"Constructions et travaux de construction","Travaux de construction spécialisés","Travaux de menuiserie métallique et serrurerie","43.32B",null,"SLOVAQUIE"]
[null,null,null,null,null,null,null,null,null,null,null,null,"EF-028","Tonnage imprimé en offset sur pap. non couché (t)","Selon catégorie papiers","Valeur en tonnes, inférieure ou égale au tonnage mis sur le marché. Reportez-vous à l'onglet \"Grille questions par catégorie\" pour savoir si vous devez renseigner cette colonne pour votre produit. Si vous devez la renseigner et que votre produit n'est pas concerné, saisissez \"0\".\nProduit papier imprimé en offset (heatset ou coldset) sur du papier non couché et ayant une durée\nd’usage supérieure à 6 mois.",null,null,null,null,null,null,null,null,null,null,"Presse des Professions et Techniques",null,"Services","Impression / Communication / Marketing",null,null,null,null,null,null,null,null,null,null,null,"Constructions et travaux de construction","Travaux de construction spécialisés","Agencement de lieux de vente","43.32C",null,"SLOVENIE"]
[null,null,null,null,null,null,null,null,null,null,null,null,"EF-031","Tonnage imprimé par flexographie (t)","Selon catégorie papiers","Valeur en tonnes, inférieure ou égale au tonnage mis sur le marché. Reportez-vous à l'onglet \"Grille questions par catégorie\" pour savoir si vous devez renseigner cette colonne pour votre produit. Si vous devez la renseigner et que votre produit n'est pas concerné, saisissez \"0\".\nProduit papier dont l’impression (totale ou partielle) a été effectuée par un procédé flexographique.",null,null,null,null,null,null,null,null,null,null,"Presse du Bâtiment",null,"Services","Formation / Enseignement",null,null,null,null,null,null,null,null,null,null,null,"Constructions et travaux de construction","Travaux de construction spécialisés","Travaux de revêtement des sols et des murs","43.33Z",null,"SUEDE"]
[null,null,null,null,null,null,null,null,null,null,null,null,"EF-034","Tonnage imprimé par jet d'encre (t)","Selon catégorie papiers","Valeur en tonnes, inférieure ou égale au tonnage mis sur le marché. Reportez-vous à l'onglet \"Grille questions par catégorie\" pour savoir si vous devez renseigner cette colonne pour votre produit. Si vous devez la renseigner et que votre produit n'est pas concerné, saisissez \"0\".\nProduit papier dont l’impression (totale ou partielle) a été effectuée par un procédé jet d’encre.\nNB : les imprimés dont seul le bloc d’adresse est imprimé en jet d’encre (adressage postal personnalisé) sont exonérés du malus « Impression jet d’encre » et ne doivent donc pas être déclarés pour cette question.",null,null,null,null,null,null,null,null,null,null,"Presse de l'Automobile",null,"Indeterminé","Indeterminé",null,null,null,null,null,null,null,null,null,null,null,"Constructions et travaux de construction","Travaux de construction spécialisés","Travaux de peinture et vitrerie","43.34Z",null,"SUISSE"]
[null,null,null,null,null,null,null,null,null,null,null,null,"EF-030","Offset : tonnage avec score > 70 au test INGEDE 11 (t)","non","Le test INGEDE 11 correspond à une méthode de laboratoire développée par l’association européenne des désencreurs INGEDE. Il a pour but d’évaluer l’aptitude au désencrage d’un imprimé.\nCe champ n'est à renseigner que si vous avez obtenu un tel score à ce test pour votre produit, concernant l'encre utilisée pour l'impression en offset. Si c'est le cas, saisissez la valeur du tonnage mis sur le marché concerné par le résultat de ce test.",null,null,null,null,null,null,null,null,null,null,"Presse du Tourisme",null,null,null,null,null,null,null,null,null,null,null,null,null,null,"Constructions et travaux de construction","Travaux de construction spécialisés","Autres travaux de finition","43.39Z",null,"AFGHANISTAN"]
[null,null,null,null,null,null,null,null,null,null,null,null,"EF-033","Flexo : tonnage avec score > 70 au test INGEDE 11 (t)","non","Le test INGEDE 11 correspond à une méthode de laboratoire développée par l’association européenne des désencreurs INGEDE. Il a pour but d’évaluer l’aptitude au désencrage d’un imprimé.\nCe champ n'est à renseigner que si vous avez obtenu un tel score à ce test pour votre produit, concernant l'encre utilisée pour l'impression en flexographie. Si c'est le cas, saisissez la valeur du tonnage mis sur le marché concerné par le résultat de ce test.",null,null,null,null,null,null,null,null,null,null,"Presse Financière et Economique",null,null,null,null,null,null,null,null,null,null,null,null,null,null,"Constructions et travaux de construction","Travaux de construction spécialisés","Travaux de charpente","43.91A",null,"AFRIQUE DU SUD"]
[null,null,null,null,null,null,null,null,null,null,null,null,"EF-036","Jet d'encre : tonnage avec score > 70 au test INGEDE 11 (t)","non","Le test INGEDE 11 correspond à une méthode de laboratoire développée par l’association européenne des désencreurs INGEDE. Il a pour but d’évaluer l’aptitude au désencrage d’un imprimé.\nCe champ n'est à renseigner que si vous avez obtenu un tel score à ce test pour votre produit, concernant l'encre utilisée pour l'impression en jet d'encre. Si c'est le cas, saisissez la valeur du tonnage mis sur le marché concerné par le résultat de ce test.",null,null,null,null,null,null,null,null,null,null,"Presse Médicale",null,null,null,null,null,null,null,null,null,null,null,null,null,null,"Constructions et travaux de construction","Travaux de construction spécialisés","Travaux de couverture par éléments","43.91B",null,"ALBANIE"]
[null,null,null,null,null,null,null,null,null,null,null,null,"EF-037","Tonnage avec colle fermeture (enveloppes) (t)","Selon catégorie papiers","Valeur en tonnes, inférieure ou égale au tonnage mis sur le marché. Reportez-vous à l'onglet \"Grille questions par catégorie\" pour savoir si vous devez renseigner cette colonne pour votre produit. Si vous devez la renseigner et que votre produit n'est pas concerné, saisissez \"0\".\nProduit papier sur lequel est apposée une colle pour sa fermeture.\nExemple : colles de fermeture d'enveloppes.\nNB : les produits papiers n’intégrant que des colles thermofusibles (non sensibles à la pression) ne sont pas soumis à un malus, et ne doivent donc pas être déclarés pour cette question.",null,null,null,null,null,null,null,null,null,null,"Presse des Associations",null,null,null,null,null,null,null,null,null,null,null,null,null,null,"Constructions et travaux de construction","Travaux de construction spécialisés","Travaux d'étanchéification","43.99A",null,"ALGÉRIE"]
[null,null,null,null,null,null,null,null,null,null,null,null,"EF-040","Tonnage avec présence de colle (t)","Selon catégorie papiers","Valeur en tonnes, inférieure ou égale au tonnage mis sur le marché. Reportez-vous à l'onglet \"Grille questions par catégorie\" pour savoir si vous devez renseigner cette colonne pour votre produit. Si vous devez la renseigner et que votre produit n'est pas concerné, saisissez \"0\".\nProduit papier sur lequel est apposée une colle que ce soit pour son façonnage, sa reliure, sa fermeture (hors colle de fermeture d'enveloppes) ou pour fixer des inserts.\nExemples : colles de fixation, d'échantillons / d'inserts.\nNB : les produits papiers n’intégrant que des colles thermofusibles (non sensibles à la pression) ne sont pas soumis à un malus, et ne doivent donc pas être déclarés pour cette question.",null,null,null,null,null,null,null,null,null,null,"Autres",null,null,null,null,null,null,null,null,null,null,null,null,null,null,"Constructions et travaux de construction","Travaux de construction spécialisés","Travaux de montage de structures métalliques","43.99B",null,"ALLEMAGNE"]
[null,null,null,null,null,null,null,null,null,null,null,null,"EF-039","Colle fermeture envel. : tonnage avec score > 70 au test INGEDE 12 ou tonnage avec score d’impact ≥ 80 et niveau de dispersabilité ≥ 85 au test de dispersabilité (t)","non","En fonction des caractéristiques de dispersion de la colle de fermeture d’enveloppes utilisée, deux tests sont envisageables afin de vérifier leur compatibilité avec le recyclage :\n- Pour les colles qui présentent une faible dispersabilité : le test INGEDE 12 correspond à une méthode de laboratoire développée par l’association européenne des désencreurs INGEDE. \n- Pour les colles qui présentent une forte dispersabilité : le test dit de « dispersabilité » développé par le CTP en collaboration avec Citeo.\nCe champ n'est à renseigner que si vous avez obtenu un score suffisant au test applicable à votre produit, concernant la colle de fermeture d'enveloppes utilisée. Si c'est le cas, saisissez la valeur du tonnage mis sur le marché concerné par le résultat du test correspondant.",null,null,null,null,null,null,null,null,null,null,null,null,null,null,null,null,null,null,null,null,null,null,null,null,null,"Constructions et travaux de construction","Travaux de construction spécialisés","Travaux de maçonnerie générale et gros œuvre de bâtiment","43.99C",null,"ANDORRE"]
[null,null,null,null,null,null,null,null,null,null,null,null,"EF-042","Colle : tonnage avec score > 70 au test INGEDE 12 ou tonnage avec score d’impact ≥ 80 et niveau de dispersabilité ≥ 85 au test de dispersabilité (t)","non","En fonction des caractéristiques de dispersion de la (ou des) colles utilisées, deux tests sont envisageables afin de vérifier leur compatibilité avec le recyclage :\n- Pour les colles qui présentent une faible dispersabilité : le test INGEDE 12 correspond à une méthode de laboratoire développée par l’association européenne des désencreurs INGEDE. \n- Pour les colles qui présentent une forte dispersabilité : le test dit de « dispersabilité » développé par le CTP en collaboration avec Citeo.\nCe champ n'est à renseigner que si vous avez obtenu un score suffisant au test applicable à votre produit, concernant la (ou les) colle(s) utilisée(s) dans votre produit (hors colles de fermeture d’enveloppes). Si c'est le cas, saisissez la valeur du tonnage mis sur le marché concerné par le résultat du (ou des) test(s) correspondant(s).",null,null,null,null,null,null,null,null,null,null,null,null,null,null,null,null,null,null,null,null,null,null,null,null,null,"Constructions et travaux de construction","Travaux de construction spécialisés","Autres travaux spécialisés de construction","43.99D",null,"ANGOLA"]
[null,null,null,null,null,null,null,null,null,null,null,null,"EF-046","Tonnage avec vernis UV (t)","Selon catégorie papiers","Valeur en tonnes, inférieure ou égale au tonnage mis sur le marché. Reportez-vous à l'onglet \"Grille questions par catégorie\" pour savoir si vous devez renseigner cette colonne pour votre produit. Si vous devez la renseigner et que votre produit n'est pas concerné, saisissez \"0\".\nImprimé dont une partie des pages (en général la couverture) bénéficie d’une finition par vernis nécessitant un séchage par lampes UV.",null,null,null,null,null,null,null,null,null,null,null,null,null,null,null,null,null,null,null,null,null,null,null,null,null,"Constructions et travaux de construction","Travaux de construction spécialisés","Location avec opérateur de matériel de construction","43.99E",null,"ANGUILLA"]
[null,null,null,null,null,null,null,null,null,null,null,null,"EF-047","Tonnage avec él. non pulpables inserts & blisters (t)","Selon catégorie papiers","Valeur en tonnes, inférieure ou égale au tonnage mis sur le marché. Reportez-vous à l'onglet \"Grille questions par catégorie\" pour savoir si vous devez renseigner cette colonne pour votre produit. Si vous devez la renseigner et que votre produit n'est pas concerné, saisissez \"0\".\nInserts non papier qui sont solidaires du produit, c’est à dire qui ne se détachent pas du produit papier lorsqu’on le secoue.\nExemples : CD-ROM, échantillons, carte plastique…\nNB : Les inserts non fixés (non solidaires) au produit papier ne sont pas concernés.\nLes inserts à usage fiduciaires sont exonérés de malus (cartes de crédit, carte de paiement…).",null,null,null,null,null,null,null,null,null,null,null,null,null,null,null,null,null,null,null,null,null,null,null,null,null,"Commerce de gros et de détail ; réparation de véhicules automobiles et de motocycles","Commerce et réparation d'automobiles et de motocycles","Commerce de voitures et de véhicules automobiles légers","45.11Z",null,"ANTARCTIQUE"]
[null,null,null,null,null,null,null,null,null,null,null,null,"EF-050","Tonnage avec él. non pulpables plastiques & REH (t)","Selon catégorie papiers","Valeur en tonnes, inférieure ou égale au tonnage mis sur le marché. Reportez-vous à l'onglet \"Grille questions par catégorie\" pour savoir si vous devez renseigner cette colonne pour votre produit. Si vous devez la renseigner et que votre produit n'est pas concerné, saisissez \"0\".\nMatériaux non papier constitutifs du produit et les papiers dits REH (Résistant à l'Etat Humide).\nExemples : pelliculage de couverture, fenêtre plastique, couverture plastique…\nNB : Les éléments non pulpables de reliure (colle du dos carré-collé, spirale, couture, agrafes…) ne sont pas concernés par le malus, et ne doivent donc pas être déclarés pour cette question.",null,null,null,null,null,null,null,null,null,null,null,null,null,null,null,null,null,null,null,null,null,null,null,null,null,"Commerce de gros et de détail ; réparation de véhicules automobiles et de motocycles","Commerce et réparation d'automobiles et de motocycles","Commerce d'autres véhicules automobiles","45.19Z",null,"ANTIGUA/BARBUDA"]
[null,null,null,null,null,null,null,null,null,null,null,null,"EF-070","Tonnage de publication exclusivement en recyclé ou IFGD","Publications de presse","Valeurs en tonnes inférieure ou égale au tonnage mis sur le marché. \nTonnage de publications composées exclusivement de papier recyclé ou IFGD",null,null,null,null,null,null,null,null,null,null,null,null,null,null,null,null,null,null,null,null,null,null,null,null,null,"Commerce de gros et de détail ; réparation de véhicules automobiles et de motocycles","Commerce et réparation d'automobiles et de motocycles","Entretien et réparation de véhicules automobiles légers","45.20A",null,"ANTILLES NÉERL."]
[null,null,null,null,null,null,null,null,null,null,null,null,"EF-071","Tonnage   de publication avec au plus  1 perturbateur (hors film de routage)","Publications de presse","Valeurs en tonnes inférieure ou égale au tonnage mis sur le marché. \nTonnage de publications qui ne contiennent pas plus d'1 élément perturbateur. (Le film de routage abonnés n'est pas à comptabiliser dans le nombre de perturbateurs)",null,null,null,null,null,null,null,null,null,null,null,null,null,null,null,null,null,null,null,null,null,null,null,null,null,"Commerce de gros et de détail ; réparation de véhicules automobiles et de motocycles","Commerce et réparation d'automobiles et de motocycles","Entretien et réparation d'autres véhicules automobiles","45.20B",null,"APATRIDE"]
[null,null,null,null,null,null,null,null,null,null,null,null,"EF-072","Tonnage de publication ayant parcouru une distance pondérée de moins de 1500km","Publications de presse","Valeurs en tonnes inférieure ou égale au tonnage mis sur le marché. \nTonnage de publications dont le papier a parcouru une distance cumulée entre la papeterie et l'imprimerie et entre l'imprimerie et le centre de diffusion principal (préfecture du département où la diffusion moyenne annuelle est la plus élevée). En cas de multiplicité de papiers et/ou d'imprimeries, une moyenne pondérée est à calculer. ",null,null,null,null,null,null,null,null,null,null,null,null,null,null,null,null,null,null,null,null,null,null,null,null,null,"Commerce de gros et de détail ; réparation de véhicules automobiles et de motocycles","Commerce et réparation d'automobiles et de motocycles","Commerce de gros d'équipements automobiles","45.31Z",null,"ARABIE SAOUDITE"]
[null,null,null,null,null,null,null,null,null,null,null,null,"EF-073","Tonnage de publication avec mention environnementale sur la publication","Publications de presse","Valeurs en tonnes inférieure ou égale au tonnage mis sur le marché. \nTonnage de publications avec affichage des quatre informations environnementales : Origine géographique du papier, taux de fibres recyclées, certificats des papiers utilisés, un des trois indicateurs environnementaux du référentiel d'affichage environnemental en vigueur. ",null,null,null,null,null,null,null,null,null,null,null,null,null,null,null,null,null,null,null,null,null,null,null,null,null,"Commerce de gros et de détail ; réparation de véhicules automobiles et de motocycles","Commerce et réparation d'automobiles et de motocycles","Commerce de détail d'équipements automobiles","45.32Z",null,"ARGENTINE"]
[null,null,null,null,null,null,null,null,null,null,null,null,null,null,null,null,null,null,null,null,null,null,null,null,null,null,null,null,null,null,null,null,null,null,null,null,null,null,null,null,null,"Commerce de gros et de détail ; réparation de véhicules automobiles et de motocycles","Commerce et réparation d'automobiles et de motocycles","Commerce et réparation de motocycles","45.40Z",null,"ARMÉNIE"]
[null,null,null,null,null,null,null,null,null,null,null,null,null,null,null,null,null,null,null,null,null,null,null,null,null,null,null,null,null,null,null,null,null,null,null,null,null,null,null,null,null,"Commerce de gros et de détail ; réparation de véhicules automobiles et de motocycles","Commerce de gros, à l'exception des automobiles et des motocycles","Intermédiaires du commerce en matières premières agricoles, animaux vivants, matières premières textiles et produits semi-finis","46.11Z",null,"ARUBA"]
[null,null,null,null,null,null,null,null,null,null,null,null,null,null,null,null,null,null,null,null,null,null,null,null,null,null,null,null,null,null,null,null,null,null,null,null,null,null,null,null,null,"Commerce de gros et de détail ; réparation de véhicules automobiles et de motocycles","Commerce de gros, à l'exception des automobiles et des motocycles","Centrales d'achat de carburant","46.12A",null,"AUSTRALIE"]
[null,null,null,null,null,null,null,null,null,null,null,null,null,null,null,null,null,null,null,null,null,null,null,null,null,null,null,null,null,null,null,null,null,null,null,null,null,null,null,null,null,"Commerce de gros et de détail ; réparation de véhicules automobiles et de motocycles","Commerce de gros, à l'exception des automobiles et des motocycles","Autres intermédiaires du commerce en combustibles, métaux, minéraux et produits chimiques","46.12B",null,"AUTRICHE"]
[null,null,null,null,null,null,null,null,null,null,null,null,null,null,null,null,null,null,null,null,null,null,null,null,null,null,null,null,null,null,null,null,null,null,null,null,null,null,null,null,null,"Commerce de gros et de détail ; réparation de véhicules automobiles et de motocycles","Commerce de gros, à l'exception des automobiles et des motocycles","Intermédiaires du commerce en bois et matériaux de construction","46.13Z",null,"AZERBAÏDJAN"]
[null,null,null,null,null,null,null,null,null,null,null,null,null,null,null,null,null,null,null,null,null,null,null,null,null,null,null,null,null,null,null,null,null,null,null,null,null,null,null,null,null,"Commerce de gros et de détail ; réparation de véhicules automobiles et de motocycles","Commerce de gros, à l'exception des automobiles et des motocycles","Intermédiaires du commerce en machines, équipements industriels, navires et avions","46.14Z",null,"BAHAMAS"]
[null,null,null,null,null,null,null,null,null,null,null,null,null,null,null,null,null,null,null,null,null,null,null,null,null,null,null,null,null,null,null,null,null,null,null,null,null,null,null,null,null,"Commerce de gros et de détail ; réparation de véhicules automobiles et de motocycles","Commerce de gros, à l'exception des automobiles et des motocycles","Intermédiaires du commerce en meubles, articles de ménage et quincaillerie","46.15Z",null,"BAHREÏN"]
[null,null,null,null,null,null,null,null,null,null,null,null,null,null,null,null,null,null,null,null,null,null,null,null,null,null,null,null,null,null,null,null,null,null,null,null,null,null,null,null,null,"Commerce de gros et de détail ; réparation de véhicules automobiles et de motocycles","Commerce de gros, à l'exception des automobiles et des motocycles","Intermédiaires du commerce en textiles, habillement, fourrures, chaussures et articles en cuir","46.16Z",null,"BANGLADESH"]
[null,null,null,null,null,null,null,null,null,null,null,null,null,null,null,null,null,null,null,null,null,null,null,null,null,null,null,null,null,null,null,null,null,null,null,null,null,null,null,null,null,"Commerce de gros et de détail ; réparation de véhicules automobiles et de motocycles","Commerce de gros, à l'exception des automobiles et des motocycles","Centrales d'achat alimentaires","46.17A",null,"BARBADES"]
[null,null,null,null,null,null,null,null,null,null,null,null,null,null,null,null,null,null,null,null,null,null,null,null,null,null,null,null,null,null,null,null,null,null,null,null,null,null,null,null,null,"Commerce de gros et de détail ; réparation de véhicules automobiles et de motocycles","Commerce de gros, à l'exception des automobiles et des motocycles","Autres intermédiaires du commerce en denrées, boissons et tabac","46.17B",null,"BELGIQUE"]
[null,null,null,null,null,null,null,null,null,null,null,null,null,null,null,null,null,null,null,null,null,null,null,null,null,null,null,null,null,null,null,null,null,null,null,null,null,null,null,null,null,"Commerce de gros et de détail ; réparation de véhicules automobiles et de motocycles","Commerce de gros, à l'exception des automobiles et des motocycles","Intermédiaires spécialisés dans le commerce d'autres produits spécifiques","46.18Z",null,"BELIZE"]
[null,null,null,null,null,null,null,null,null,null,null,null,null,null,null,null,null,null,null,null,null,null,null,null,null,null,null,null,null,null,null,null,null,null,null,null,null,null,null,null,null,"Commerce de gros et de détail ; réparation de véhicules automobiles et de motocycles","Commerce de gros, à l'exception des automobiles et des motocycles","Centrales d'achat non alimentaires","46.19A",null,"BÉNIN"]
[null,null,null,null,null,null,null,null,null,null,null,null,null,null,null,null,null,null,null,null,null,null,null,null,null,null,null,null,null,null,null,null,null,null,null,null,null,null,null,null,null,"Commerce de gros et de détail ; réparation de véhicules automobiles et de motocycles","Commerce de gros, à l'exception des automobiles et des motocycles","Autres intermédiaires du commerce en produits divers","46.19B",null,"BERMUDES"]
[null,null,null,null,null,null,null,null,null,null,null,null,null,null,null,null,null,null,null,null,null,null,null,null,null,null,null,null,null,null,null,null,null,null,null,null,null,null,null,null,null,"Commerce de gros et de détail ; réparation de véhicules automobiles et de motocycles","Commerce de gros, à l'exception des automobiles et des motocycles","Commerce de gros (commerce interentreprises) de céréales, de tabac non manufacturé, de semences et d'aliments pour le bétail","46.21Z",null,"BHOUTAN"]
[null,null,null,null,null,null,null,null,null,null,null,null,null,null,null,null,null,null,null,null,null,null,null,null,null,null,null,null,null,null,null,null,null,null,null,null,null,null,null,null,null,"Commerce de gros et de détail ; réparation de véhicules automobiles et de motocycles","Commerce de gros, à l'exception des automobiles et des motocycles","Commerce de gros (commerce interentreprises) de fleurs et plantes","46.22Z",null,"BIÉLORUSSIE"]
[null,null,null,null,null,null,null,null,null,null,null,null,null,null,null,null,null,null,null,null,null,null,null,null,null,null,null,null,null,null,null,null,null,null,null,null,null,null,null,null,null,"Commerce de gros et de détail ; réparation de véhicules automobiles et de motocycles","Commerce de gros, à l'exception des automobiles et des motocycles","Commerce de gros (commerce interentreprises) d'animaux vivants","46.23Z",null,"BOLIVIE"]
[null,null,null,null,null,null,null,null,null,null,null,null,null,null,null,null,null,null,null,null,null,null,null,null,null,null,null,null,null,null,null,null,null,null,null,null,null,null,null,null,null,"Commerce de gros et de détail ; réparation de véhicules automobiles et de motocycles","Commerce de gros, à l'exception des automobiles et des motocycles","Commerce de gros (commerce interentreprises) de cuirs et peaux","46.24Z",null,"BOSNIE-HERZ."]
[null,null,null,null,null,null,null,null,null,null,null,null,null,null,null,null,null,null,null,null,null,null,null,null,null,null,null,null,null,null,null,null,null,null,null,null,null,null,null,null,null,"Commerce de gros et de détail ; réparation de véhicules automobiles et de motocycles","Commerce de gros, à l'exception des automobiles et des motocycles","Commerce de gros (commerce interentreprises) de fruits et légumes","46.31Z",null,"BOTSWANA"]
[null,null,null,null,null,null,null,null,null,null,null,null,null,null,null,null,null,null,null,null,null,null,null,null,null,null,null,null,null,null,null,null,null,null,null,null,null,null,null,null,null,"Commerce de gros et de détail ; réparation de véhicules automobiles et de motocycles","Commerce de gros, à l'exception des automobiles et des motocycles","Commerce de gros (commerce interentreprises) de viandes de boucherie","46.32A",null,"BRÉSIL"]
[null,null,null,null,null,null,null,null,null,null,null,null,null,null,null,null,null,null,null,null,null,null,null,null,null,null,null,null,null,null,null,null,null,null,null,null,null,null,null,null,null,"Commerce de gros et de détail ; réparation de véhicules automobiles et de motocycles","Commerce de gros, à l'exception des automobiles et des motocycles","Commerce de gros (commerce interentreprises) de produits à base de viande","46.32B",null,"BRUNEI DARUSSAL"]
[null,null,null,null,null,null,null,null,null,null,null,null,null,null,null,null,null,null,null,null,null,null,null,null,null,null,null,null,null,null,null,null,null,null,null,null,null,null,null,null,null,"Commerce de gros et de détail ; réparation de véhicules automobiles et de motocycles","Commerce de gros, à l'exception des automobiles et des motocycles","Commerce de gros (commerce interentreprises) de volailles et gibier","46.32C",null,"BULGARIE"]
[null,null,null,null,null,null,null,null,null,null,null,null,null,null,null,null,null,null,null,null,null,null,null,null,null,null,null,null,null,null,null,null,null,null,null,null,null,null,null,null,null,"Commerce de gros et de détail ; réparation de véhicules automobiles et de motocycles","Commerce de gros, à l'exception des automobiles et des motocycles","Commerce de gros (commerce interentreprises) de produits laitiers, œufs, huiles et matières grasses comestibles","46.33Z",null,"BURKINA FASO"]
[null,null,null,null,null,null,null,null,null,null,null,null,null,null,null,null,null,null,null,null,null,null,null,null,null,null,null,null,null,null,null,null,null,null,null,null,null,null,null,null,null,"Commerce de gros et de détail ; réparation de véhicules automobiles et de motocycles","Commerce de gros, à l'exception des automobiles et des motocycles","Commerce de gros (commerce interentreprises) de boissons","46.34Z",null,"BURUNDI"]
[null,null,null,null,null,null,null,null,null,null,null,null,null,null,null,null,null,null,null,null,null,null,null,null,null,null,null,null,null,null,null,null,null,null,null,null,null,null,null,null,null,"Commerce de gros et de détail ; réparation de véhicules automobiles et de motocycles","Commerce de gros, à l'exception des automobiles et des motocycles","Commerce de gros (commerce interentreprises) de produits à base de tabac","46.35Z",null,"CAMBODGE"]
[null,null,null,null,null,null,null,null,null,null,null,null,null,null,null,null,null,null,null,null,null,null,null,null,null,null,null,null,null,null,null,null,null,null,null,null,null,null,null,null,null,"Commerce de gros et de détail ; réparation de véhicules automobiles et de motocycles","Commerce de gros, à l'exception des automobiles et des motocycles","Commerce de gros (commerce interentreprises) de sucre, chocolat et confiserie","46.36Z",null,"CAMEROUN"]
[null,null,null,null,null,null,null,null,null,null,null,null,null,null,null,null,null,null,null,null,null,null,null,null,null,null,null,null,null,null,null,null,null,null,null,null,null,null,null,null,null,"Commerce de gros et de détail ; réparation de véhicules automobiles et de motocycles","Commerce de gros, à l'exception des automobiles et des motocycles","Commerce de gros (commerce interentreprises) de café, thé, cacao et épices","46.37Z",null,"CANADA"]
[null,null,null,null,null,null,null,null,null,null,null,null,null,null,null,null,null,null,null,null,null,null,null,null,null,null,null,null,null,null,null,null,null,null,null,null,null,null,null,null,null,"Commerce de gros et de détail ; réparation de véhicules automobiles et de motocycles","Commerce de gros, à l'exception des automobiles et des motocycles","Commerce de gros (commerce interentreprises) de poissons, crustacés et mollusques","46.38A",null,"CAP-VERT"]
[null,null,null,null,null,null,null,null,null,null,null,null,null,null,null,null,null,null,null,null,null,null,null,null,null,null,null,null,null,null,null,null,null,null,null,null,null,null,null,null,null,"Commerce de gros et de détail ; réparation de véhicules automobiles et de motocycles","Commerce de gros, à l'exception des automobiles et des motocycles","Commerce de gros (commerce interentreprises) alimentaire spécialisé divers","46.38B",null,"CHILI"]
[null,null,null,null,null,null,null,null,null,null,null,null,null,null,null,null,null,null,null,null,null,null,null,null,null,null,null,null,null,null,null,null,null,null,null,null,null,null,null,null,null,"Commerce de gros et de détail ; réparation de véhicules automobiles et de motocycles","Commerce de gros, à l'exception des automobiles et des motocycles","Commerce de gros (commerce interentreprises) de produits surgelés","46.39A",null,"CHINE"]
[null,null,null,null,null,null,null,null,null,null,null,null,null,null,null,null,null,null,null,null,null,null,null,null,null,null,null,null,null,null,null,null,null,null,null,null,null,null,null,null,null,"Commerce de gros et de détail ; réparation de véhicules automobiles et de motocycles","Commerce de gros, à l'exception des automobiles et des motocycles","Commerce de gros (commerce interentreprises) alimentaire non spécialisé","46.39B",null,"CHRISTMAS I."]
[null,null,null,null,null,null,null,null,null,null,null,null,null,null,null,null,null,null,null,null,null,null,null,null,null,null,null,null,null,null,null,null,null,null,null,null,null,null,null,null,null,"Commerce de gros et de détail ; réparation de véhicules automobiles et de motocycles","Commerce de gros, à l'exception des automobiles et des motocycles","Commerce de gros (commerce interentreprises) de textiles","46.41Z",null,"CHYPRE"]
[null,null,null,null,null,null,null,null,null,null,null,null,null,null,null,null,null,null,null,null,null,null,null,null,null,null,null,null,null,null,null,null,null,null,null,null,null,null,null,null,null,"Commerce de gros et de détail ; réparation de véhicules automobiles et de motocycles","Commerce de gros, à l'exception des automobiles et des motocycles","Commerce de gros (commerce interentreprises) d'habillement et de chaussures","46.42Z",null,"COLOMBIE"]
[null,null,null,null,null,null,null,null,null,null,null,null,null,null,null,null,null,null,null,null,null,null,null,null,null,null,null,null,null,null,null,null,null,null,null,null,null,null,null,null,null,"Commerce de gros et de détail ; réparation de véhicules automobiles et de motocycles","Commerce de gros, à l'exception des automobiles et des motocycles","Commerce de gros (commerce interentreprises) d'appareils électroménagers","46.43Z",null,"COMORES"]
[null,null,null,null,null,null,null,null,null,null,null,null,null,null,null,null,null,null,null,null,null,null,null,null,null,null,null,null,null,null,null,null,null,null,null,null,null,null,null,null,null,"Commerce de gros et de détail ; réparation de véhicules automobiles et de motocycles","Commerce de gros, à l'exception des automobiles et des motocycles","Commerce de gros (commerce interentreprises) de vaisselle, verrerie et produits d'entretien","46.44Z",null,"CONGO"]
[null,null,null,null,null,null,null,null,null,null,null,null,null,null,null,null,null,null,null,null,null,null,null,null,null,null,null,null,null,null,null,null,null,null,null,null,null,null,null,null,null,"Commerce de gros et de détail ; réparation de véhicules automobiles et de motocycles","Commerce de gros, à l'exception des automobiles et des motocycles","Commerce de gros (commerce interentreprises) de parfumerie et de produits de beauté","46.45Z",null,"CORÉE DU NORD"]
[null,null,null,null,null,null,null,null,null,null,null,null,null,null,null,null,null,null,null,null,null,null,null,null,null,null,null,null,null,null,null,null,null,null,null,null,null,null,null,null,null,"Commerce de gros et de détail ; réparation de véhicules automobiles et de motocycles","Commerce de gros, à l'exception des automobiles et des motocycles","Commerce de gros (commerce interentreprises) de produits pharmaceutiques","46.46Z",null,"CORÉE DU SUD"]
[null,null,null,null,null,null,null,null,null,null,null,null,null,null,null,null,null,null,null,null,null,null,null,null,null,null,null,null,null,null,null,null,null,null,null,null,null,null,null,null,null,"Commerce de gros et de détail ; réparation de véhicules automobiles et de motocycles","Commerce de gros, à l'exception des automobiles et des motocycles","Commerce de gros (commerce interentreprises) de meubles, de tapis et d'appareils d'éclairage","46.47Z",null,"COSTA RICA"]
[null,null,null,null,null,null,null,null,null,null,null,null,null,null,null,null,null,null,null,null,null,null,null,null,null,null,null,null,null,null,null,null,null,null,null,null,null,null,null,null,null,"Commerce de gros et de détail ; réparation de véhicules automobiles et de motocycles","Commerce de gros, à l'exception des automobiles et des motocycles","Commerce de gros (commerce interentreprises) d'articles d'horlogerie et de bijouterie","46.48Z",null,"CÔTE IVOIRE"]
[null,null,null,null,null,null,null,null,null,null,null,null,null,null,null,null,null,null,null,null,null,null,null,null,null,null,null,null,null,null,null,null,null,null,null,null,null,null,null,null,null,"Commerce de gros et de détail ; réparation de véhicules automobiles et de motocycles","Commerce de gros, à l'exception des automobiles et des motocycles","Commerce de gros (commerce interentreprises) d'autres biens domestiques","46.49Z",null,"CROATIE"]
[null,null,null,null,null,null,null,null,null,null,null,null,null,null,null,null,null,null,null,null,null,null,null,null,null,null,null,null,null,null,null,null,null,null,null,null,null,null,null,null,null,"Commerce de gros et de détail ; réparation de véhicules automobiles et de motocycles","Commerce de gros, à l'exception des automobiles et des motocycles","Commerce de gros (commerce interentreprises) d'ordinateurs, d'équipements informatiques périphériques et de logiciels","46.51Z",null,"CUBA"]
[null,null,null,null,null,null,null,null,null,null,null,null,null,null,null,null,null,null,null,null,null,null,null,null,null,null,null,null,null,null,null,null,null,null,null,null,null,null,null,null,null,"Commerce de gros et de détail ; réparation de véhicules automobiles et de motocycles","Commerce de gros, à l'exception des automobiles et des motocycles","Commerce de gros (commerce interentreprises) de composants et d'équipements électroniques et de télécommunication","46.52Z",null,"DANEMARK"]
[null,null,null,null,null,null,null,null,null,null,null,null,null,null,null,null,null,null,null,null,null,null,null,null,null,null,null,null,null,null,null,null,null,null,null,null,null,null,null,null,null,"Commerce de gros et de détail ; réparation de véhicules automobiles et de motocycles","Commerce de gros, à l'exception des automobiles et des motocycles","Commerce de gros (commerce interentreprises) de matériel agricole","46.61Z",null,"DJIBOUTI"]
[null,null,null,null,null,null,null,null,null,null,null,null,null,null,null,null,null,null,null,null,null,null,null,null,null,null,null,null,null,null,null,null,null,null,null,null,null,null,null,null,null,"Commerce de gros et de détail ; réparation de véhicules automobiles et de motocycles","Commerce de gros, à l'exception des automobiles et des motocycles","Commerce de gros (commerce interentreprises) de machines-outils","46.62Z",null,"EGYPTE"]
[null,null,null,null,null,null,null,null,null,null,null,null,null,null,null,null,null,null,null,null,null,null,null,null,null,null,null,null,null,null,null,null,null,null,null,null,null,null,null,null,null,"Commerce de gros et de détail ; réparation de véhicules automobiles et de motocycles","Commerce de gros, à l'exception des automobiles et des motocycles","Commerce de gros (commerce interentreprises) de machines pour l'extraction, la construction et le génie civil","46.63Z",null,"EL SALVADOR"]
[null,null,null,null,null,null,null,null,null,null,null,null,null,null,null,null,null,null,null,null,null,null,null,null,null,null,null,null,null,null,null,null,null,null,null,null,null,null,null,null,null,"Commerce de gros et de détail ; réparation de véhicules automobiles et de motocycles","Commerce de gros, à l'exception des automobiles et des motocycles","Commerce de gros (commerce interentreprises) de machines pour l'industrie textile et l'habillement","46.64Z",null,"EMIR.ARAB.UNIS"]
[null,null,null,null,null,null,null,null,null,null,null,null,null,null,null,null,null,null,null,null,null,null,null,null,null,null,null,null,null,null,null,null,null,null,null,null,null,null,null,null,null,"Commerce de gros et de détail ; réparation de véhicules automobiles et de motocycles","Commerce de gros, à l'exception des automobiles et des motocycles","Commerce de gros (commerce interentreprises) de mobilier de bureau","46.65Z",null,"EQUATEUR"]
[null,null,null,null,null,null,null,null,null,null,null,null,null,null,null,null,null,null,null,null,null,null,null,null,null,null,null,null,null,null,null,null,null,null,null,null,null,null,null,null,null,"Commerce de gros et de détail ; réparation de véhicules automobiles et de motocycles","Commerce de gros, à l'exception des automobiles et des motocycles","Commerce de gros (commerce interentreprises) d'autres machines et équipements de bureau","46.66Z",null,"ERYTHRÉE"]
[null,null,null,null,null,null,null,null,null,null,null,null,null,null,null,null,null,null,null,null,null,null,null,null,null,null,null,null,null,null,null,null,null,null,null,null,null,null,null,null,null,"Commerce de gros et de détail ; réparation de véhicules automobiles et de motocycles","Commerce de gros, à l'exception des automobiles et des motocycles","Commerce de gros (commerce interentreprises) de matériel électrique","46.69A",null,"ESPAGNE"]
[null,null,null,null,null,null,null,null,null,null,null,null,null,null,null,null,null,null,null,null,null,null,null,null,null,null,null,null,null,null,null,null,null,null,null,null,null,null,null,null,null,"Commerce de gros et de détail ; réparation de véhicules automobiles et de motocycles","Commerce de gros, à l'exception des automobiles et des motocycles","Commerce de gros (commerce interentreprises) de fournitures et équipements industriels divers","46.69B",null,"ESTONIE"]
[null,null,null,null,null,null,null,null,null,null,null,null,null,null,null,null,null,null,null,null,null,null,null,null,null,null,null,null,null,null,null,null,null,null,null,null,null,null,null,null,null,"Commerce de gros et de détail ; réparation de véhicules automobiles et de motocycles","Commerce de gros, à l'exception des automobiles et des motocycles","Commerce de gros (commerce interentreprises) de fournitures et équipements divers pour le commerce et les services","46.69C",null,"ETHIOPIE"]
[null,null,null,null,null,null,null,null,null,null,null,null,null,null,null,null,null,null,null,null,null,null,null,null,null,null,null,null,null,null,null,null,null,null,null,null,null,null,null,null,null,"Commerce de gros et de détail ; réparation de véhicules automobiles et de motocycles","Commerce de gros, à l'exception des automobiles et des motocycles","Commerce de gros (commerce interentreprises) de combustibles et de produits annexes","46.71Z",null,"FÉD. RUSSE"]
[null,null,null,null,null,null,null,null,null,null,null,null,null,null,null,null,null,null,null,null,null,null,null,null,null,null,null,null,null,null,null,null,null,null,null,null,null,null,null,null,null,"Commerce de gros et de détail ; réparation de véhicules automobiles et de motocycles","Commerce de gros, à l'exception des automobiles et des motocycles","Commerce de gros (commerce interentreprises) de minerais et métaux","46.72Z",null,"FÉROÉ"]
[null,null,null,null,null,null,null,null,null,null,null,null,null,null,null,null,null,null,null,null,null,null,null,null,null,null,null,null,null,null,null,null,null,null,null,null,null,null,null,null,null,"Commerce de gros et de détail ; réparation de véhicules automobiles et de motocycles","Commerce de gros, à l'exception des automobiles et des motocycles","Commerce de gros (commerce interentreprises) de bois et de matériaux de construction","46.73A",null,"FIDJI"]
[null,null,null,null,null,null,null,null,null,null,null,null,null,null,null,null,null,null,null,null,null,null,null,null,null,null,null,null,null,null,null,null,null,null,null,null,null,null,null,null,null,"Commerce de gros et de détail ; réparation de véhicules automobiles et de motocycles","Commerce de gros, à l'exception des automobiles et des motocycles","Commerce de gros (commerce interentreprises) d'appareils sanitaires et de produits de décoration","46.73B",null,"FINLANDE"]
[null,null,null,null,null,null,null,null,null,null,null,null,null,null,null,null,null,null,null,null,null,null,null,null,null,null,null,null,null,null,null,null,null,null,null,null,null,null,null,null,null,"Commerce de gros et de détail ; réparation de véhicules automobiles et de motocycles","Commerce de gros, à l'exception des automobiles et des motocycles","Commerce de gros (commerce interentreprises) de quincaillerie","46.74A",null,"FRANCE"]
[null,null,null,null,null,null,null,null,null,null,null,null,null,null,null,null,null,null,null,null,null,null,null,null,null,null,null,null,null,null,null,null,null,null,null,null,null,null,null,null,null,"Commerce de gros et de détail ; réparation de véhicules automobiles et de motocycles","Commerce de gros, à l'exception des automobiles et des motocycles","Commerce de gros (commerce interentreprises) de fournitures pour la plomberie et le chauffage","46.74B",null,"GABON"]
[null,null,null,null,null,null,null,null,null,null,null,null,null,null,null,null,null,null,null,null,null,null,null,null,null,null,null,null,null,null,null,null,null,null,null,null,null,null,null,null,null,"Commerce de gros et de détail ; réparation de véhicules automobiles et de motocycles","Commerce de gros, à l'exception des automobiles et des motocycles","Commerce de gros (commerce interentreprises) de produits chimiques","46.75Z",null,"GAMBIE"]
[null,null,null,null,null,null,null,null,null,null,null,null,null,null,null,null,null,null,null,null,null,null,null,null,null,null,null,null,null,null,null,null,null,null,null,null,null,null,null,null,null,"Commerce de gros et de détail ; réparation de véhicules automobiles et de motocycles","Commerce de gros, à l'exception des automobiles et des motocycles","Commerce de gros (commerce interentreprises) d'autres produits intermédiaires","46.76Z",null,"GÉORGIE"]
[null,null,null,null,null,null,null,null,null,null,null,null,null,null,null,null,null,null,null,null,null,null,null,null,null,null,null,null,null,null,null,null,null,null,null,null,null,null,null,null,null,"Commerce de gros et de détail ; réparation de véhicules automobiles et de motocycles","Commerce de gros, à l'exception des automobiles et des motocycles","Commerce de gros (commerce interentreprises) de déchets et débris","46.77Z",null,"GHANA"]
[null,null,null,null,null,null,null,null,null,null,null,null,null,null,null,null,null,null,null,null,null,null,null,null,null,null,null,null,null,null,null,null,null,null,null,null,null,null,null,null,null,"Commerce de gros et de détail ; réparation de véhicules automobiles et de motocycles","Commerce de gros, à l'exception des automobiles et des motocycles","Commerce de gros (commerce interentreprises) non spécialisé","46.90Z",null,"GIBRALTAR"]
[null,null,null,null,null,null,null,null,null,null,null,null,null,null,null,null,null,null,null,null,null,null,null,null,null,null,null,null,null,null,null,null,null,null,null,null,null,null,null,null,null,"Commerce de gros et de détail ; réparation de véhicules automobiles et de motocycles","Commerce de détail, à l'exception des automobiles et des motocycles","Commerce de détail de produits surgelés","47.11A",null,"GRANDE BRETAGNE"]
[null,null,null,null,null,null,null,null,null,null,null,null,null,null,null,null,null,null,null,null,null,null,null,null,null,null,null,null,null,null,null,null,null,null,null,null,null,null,null,null,null,"Commerce de gros et de détail ; réparation de véhicules automobiles et de motocycles","Commerce de détail, à l'exception des automobiles et des motocycles","Commerce d'alimentation générale","47.11B",null,"GRÈCE"]
[null,null,null,null,null,null,null,null,null,null,null,null,null,null,null,null,null,null,null,null,null,null,null,null,null,null,null,null,null,null,null,null,null,null,null,null,null,null,null,null,null,"Commerce de gros et de détail ; réparation de véhicules automobiles et de motocycles","Commerce de détail, à l'exception des automobiles et des motocycles","Supérettes","47.11C",null,"GRENADE"]
[null,null,null,null,null,null,null,null,null,null,null,null,null,null,null,null,null,null,null,null,null,null,null,null,null,null,null,null,null,null,null,null,null,null,null,null,null,null,null,null,null,"Commerce de gros et de détail ; réparation de véhicules automobiles et de motocycles","Commerce de détail, à l'exception des automobiles et des motocycles","Supermarchés","47.11D",null,"GROENLAND"]
[null,null,null,null,null,null,null,null,null,null,null,null,null,null,null,null,null,null,null,null,null,null,null,null,null,null,null,null,null,null,null,null,null,null,null,null,null,null,null,null,null,"Commerce de gros et de détail ; réparation de véhicules automobiles et de motocycles","Commerce de détail, à l'exception des automobiles et des motocycles","Magasins multi-commerces","47.11E",null,"GUADELOUPE"]
[null,null,null,null,null,null,null,null,null,null,null,null,null,null,null,null,null,null,null,null,null,null,null,null,null,null,null,null,null,null,null,null,null,null,null,null,null,null,null,null,null,"Commerce de gros et de détail ; réparation de véhicules automobiles et de motocycles","Commerce de détail, à l'exception des automobiles et des motocycles","Hypermarchés","47.11F",null,"GUAM"]
[null,null,null,null,null,null,null,null,null,null,null,null,null,null,null,null,null,null,null,null,null,null,null,null,null,null,null,null,null,null,null,null,null,null,null,null,null,null,null,null,null,"Commerce de gros et de détail ; réparation de véhicules automobiles et de motocycles","Commerce de détail, à l'exception des automobiles et des motocycles","Grands magasins","47.19A",null,"GUATÉMALA"]
[null,null,null,null,null,null,null,null,null,null,null,null,null,null,null,null,null,null,null,null,null,null,null,null,null,null,null,null,null,null,null,null,null,null,null,null,null,null,null,null,null,"Commerce de gros et de détail ; réparation de véhicules automobiles et de motocycles","Commerce de détail, à l'exception des automobiles et des motocycles","Autres commerces de détail en magasin non spécialisé","47.19B",null,"GUINÉE"]
[null,null,null,null,null,null,null,null,null,null,null,null,null,null,null,null,null,null,null,null,null,null,null,null,null,null,null,null,null,null,null,null,null,null,null,null,null,null,null,null,null,"Commerce de gros et de détail ; réparation de véhicules automobiles et de motocycles","Commerce de détail, à l'exception des automobiles et des motocycles","Commerce de détail de fruits et légumes en magasin spécialisé","47.21Z",null,"GUINÉE EQUATOR."]
[null,null,null,null,null,null,null,null,null,null,null,null,null,null,null,null,null,null,null,null,null,null,null,null,null,null,null,null,null,null,null,null,null,null,null,null,null,null,null,null,null,"Commerce de gros et de détail ; réparation de véhicules automobiles et de motocycles","Commerce de détail, à l'exception des automobiles et des motocycles","Commerce de détail de viandes et de produits à base de viande en magasin spécialisé","47.22Z",null,"GUINÉE-BISSAO"]
[null,null,null,null,null,null,null,null,null,null,null,null,null,null,null,null,null,null,null,null,null,null,null,null,null,null,null,null,null,null,null,null,null,null,null,null,null,null,null,null,null,"Commerce de gros et de détail ; réparation de véhicules automobiles et de motocycles","Commerce de détail, à l'exception des automobiles et des motocycles","Commerce de détail de poissons, crustacés et mollusques en magasin spécialisé","47.23Z",null,"GUYANE"]
[null,null,null,null,null,null,null,null,null,null,null,null,null,null,null,null,null,null,null,null,null,null,null,null,null,null,null,null,null,null,null,null,null,null,null,null,null,null,null,null,null,"Commerce de gros et de détail ; réparation de véhicules automobiles et de motocycles","Commerce de détail, à l'exception des automobiles et des motocycles","Commerce de détail de pain, pâtisserie et confiserie en magasin spécialisé","47.24Z",null,"HAÏTI"]
[null,null,null,null,null,null,null,null,null,null,null,null,null,null,null,null,null,null,null,null,null,null,null,null,null,null,null,null,null,null,null,null,null,null,null,null,null,null,null,null,null,"Commerce de gros et de détail ; réparation de véhicules automobiles et de motocycles","Commerce de détail, à l'exception des automobiles et des motocycles","Commerce de détail de boissons en magasin spécialisé","47.25Z",null,"HONDURAS"]
[null,null,null,null,null,null,null,null,null,null,null,null,null,null,null,null,null,null,null,null,null,null,null,null,null,null,null,null,null,null,null,null,null,null,null,null,null,null,null,null,null,"Commerce de gros et de détail ; réparation de véhicules automobiles et de motocycles","Commerce de détail, à l'exception des automobiles et des motocycles","Commerce de détail de produits à base de tabac en magasin spécialisé","47.26Z",null,"HONG KONG"]
[null,null,null,null,null,null,null,null,null,null,null,null,null,null,null,null,null,null,null,null,null,null,null,null,null,null,null,null,null,null,null,null,null,null,null,null,null,null,null,null,null,"Commerce de gros et de détail ; réparation de véhicules automobiles et de motocycles","Commerce de détail, à l'exception des automobiles et des motocycles","Autres commerces de détail alimentaires en magasin spécialisé","47.29Z",null,"HONGRIE"]
[null,null,null,null,null,null,null,null,null,null,null,null,null,null,null,null,null,null,null,null,null,null,null,null,null,null,null,null,null,null,null,null,null,null,null,null,null,null,null,null,null,"Commerce de gros et de détail ; réparation de véhicules automobiles et de motocycles","Commerce de détail, à l'exception des automobiles et des motocycles","Commerce de détail de carburants en magasin spécialisé","47.30Z",null,"I. VIERGES AMÉR"]
[null,null,null,null,null,null,null,null,null,null,null,null,null,null,null,null,null,null,null,null,null,null,null,null,null,null,null,null,null,null,null,null,null,null,null,null,null,null,null,null,null,"Commerce de gros et de détail ; réparation de véhicules automobiles et de motocycles","Commerce de détail, à l'exception des automobiles et des motocycles","Commerce de détail d'ordinateurs, d'unités périphériques et de logiciels en magasin spécialisé","47.41Z",null,"I. VIERGES BRIT"]
[null,null,null,null,null,null,null,null,null,null,null,null,null,null,null,null,null,null,null,null,null,null,null,null,null,null,null,null,null,null,null,null,null,null,null,null,null,null,null,null,null,"Commerce de gros et de détail ; réparation de véhicules automobiles et de motocycles","Commerce de détail, à l'exception des automobiles et des motocycles","Commerce de détail de matériels de télécommunication en magasin spécialisé","47.42Z",null,"IL.HEARD/MCDON."]
[null,null,null,null,null,null,null,null,null,null,null,null,null,null,null,null,null,null,null,null,null,null,null,null,null,null,null,null,null,null,null,null,null,null,null,null,null,null,null,null,null,"Commerce de gros et de détail ; réparation de véhicules automobiles et de motocycles","Commerce de détail, à l'exception des automobiles et des motocycles","Commerce de détail de matériels audio et vidéo en magasin spécialisé","47.43Z",null,"ILE MAURICE"]
[null,null,null,null,null,null,null,null,null,null,null,null,null,null,null,null,null,null,null,null,null,null,null,null,null,null,null,null,null,null,null,null,null,null,null,null,null,null,null,null,null,"Commerce de gros et de détail ; réparation de véhicules automobiles et de motocycles","Commerce de détail, à l'exception des automobiles et des motocycles","Commerce de détail de textiles en magasin spécialisé","47.51Z",null,"ILE N.MARIANA"]
[null,null,null,null,null,null,null,null,null,null,null,null,null,null,null,null,null,null,null,null,null,null,null,null,null,null,null,null,null,null,null,null,null,null,null,null,null,null,null,null,null,"Commerce de gros et de détail ; réparation de véhicules automobiles et de motocycles","Commerce de détail, à l'exception des automobiles et des motocycles","Commerce de détail de quincaillerie, peintures et verres en petites surfaces (moins de 400 m²)","47.52A",null,"ILES BOUVET"]
[null,null,null,null,null,null,null,null,null,null,null,null,null,null,null,null,null,null,null,null,null,null,null,null,null,null,null,null,null,null,null,null,null,null,null,null,null,null,null,null,null,"Commerce de gros et de détail ; réparation de véhicules automobiles et de motocycles","Commerce de détail, à l'exception des automobiles et des motocycles","Commerce de détail de quincaillerie, peintures et verres en grandes surfaces (400 m² et plus)","47.52B",null,"ILES CAÏMANS"]
[null,null,null,null,null,null,null,null,null,null,null,null,null,null,null,null,null,null,null,null,null,null,null,null,null,null,null,null,null,null,null,null,null,null,null,null,null,null,null,null,null,"Commerce de gros et de détail ; réparation de véhicules automobiles et de motocycles","Commerce de détail, à l'exception des automobiles et des motocycles","Commerce de détail de tapis, moquettes et revêtements de murs et de sols en magasin spécialisé","47.53Z",null,"ILES COCOS"]
[null,null,null,null,null,null,null,null,null,null,null,null,null,null,null,null,null,null,null,null,null,null,null,null,null,null,null,null,null,null,null,null,null,null,null,null,null,null,null,null,null,"Commerce de gros et de détail ; réparation de véhicules automobiles et de motocycles","Commerce de détail, à l'exception des automobiles et des motocycles","Commerce de détail d'appareils électroménagers en magasin spécialisé","47.54Z",null,"ILES COOK"]
[null,null,null,null,null,null,null,null,null,null,null,null,null,null,null,null,null,null,null,null,null,null,null,null,null,null,null,null,null,null,null,null,null,null,null,null,null,null,null,null,null,"Commerce de gros et de détail ; réparation de véhicules automobiles et de motocycles","Commerce de détail, à l'exception des automobiles et des motocycles","Commerce de détail de meubles","47.59A",null,"ILES MARSHALL"]
[null,null,null,null,null,null,null,null,null,null,null,null,null,null,null,null,null,null,null,null,null,null,null,null,null,null,null,null,null,null,null,null,null,null,null,null,null,null,null,null,null,"Commerce de gros et de détail ; réparation de véhicules automobiles et de motocycles","Commerce de détail, à l'exception des automobiles et des motocycles","Commerce de détail d'autres équipements du foyer","47.59B",null,"ILES MINOR OUTL"]
[null,null,null,null,null,null,null,null,null,null,null,null,null,null,null,null,null,null,null,null,null,null,null,null,null,null,null,null,null,null,null,null,null,null,null,null,null,null,null,null,null,"Commerce de gros et de détail ; réparation de véhicules automobiles et de motocycles","Commerce de détail, à l'exception des automobiles et des motocycles","Commerce de détail de livres en magasin spécialisé","47.61Z",null,"ILES NIUE"]
[null,null,null,null,null,null,null,null,null,null,null,null,null,null,null,null,null,null,null,null,null,null,null,null,null,null,null,null,null,null,null,null,null,null,null,null,null,null,null,null,null,"Commerce de gros et de détail ; réparation de véhicules automobiles et de motocycles","Commerce de détail, à l'exception des automobiles et des motocycles","Commerce de détail de journaux et papeterie en magasin spécialisé","47.62Z",null,"ILES NORFOLK"]
[null,null,null,null,null,null,null,null,null,null,null,null,null,null,null,null,null,null,null,null,null,null,null,null,null,null,null,null,null,null,null,null,null,null,null,null,null,null,null,null,null,"Commerce de gros et de détail ; réparation de véhicules automobiles et de motocycles","Commerce de détail, à l'exception des automobiles et des motocycles","Commerce de détail d'enregistrements musicaux et vidéo en magasin spécialisé","47.63Z",null,"ILES PITCAIRN"]
[null,null,null,null,null,null,null,null,null,null,null,null,null,null,null,null,null,null,null,null,null,null,null,null,null,null,null,null,null,null,null,null,null,null,null,null,null,null,null,null,null,"Commerce de gros et de détail ; réparation de véhicules automobiles et de motocycles","Commerce de détail, à l'exception des automobiles et des motocycles","Commerce de détail d'articles de sport en magasin spécialisé","47.64Z",null,"ILES TOKELAU"]
[null,null,null,null,null,null,null,null,null,null,null,null,null,null,null,null,null,null,null,null,null,null,null,null,null,null,null,null,null,null,null,null,null,null,null,null,null,null,null,null,null,"Commerce de gros et de détail ; réparation de véhicules automobiles et de motocycles","Commerce de détail, à l'exception des automobiles et des motocycles","Commerce de détail de jeux et jouets en magasin spécialisé","47.65Z",null,"IND.OCC.TER.BR."]
[null,null,null,null,null,null,null,null,null,null,null,null,null,null,null,null,null,null,null,null,null,null,null,null,null,null,null,null,null,null,null,null,null,null,null,null,null,null,null,null,null,"Commerce de gros et de détail ; réparation de véhicules automobiles et de motocycles","Commerce de détail, à l'exception des automobiles et des motocycles","Commerce de détail d'habillement en magasin spécialisé","47.71Z",null,"INDE"]
[null,null,null,null,null,null,null,null,null,null,null,null,null,null,null,null,null,null,null,null,null,null,null,null,null,null,null,null,null,null,null,null,null,null,null,null,null,null,null,null,null,"Commerce de gros et de détail ; réparation de véhicules automobiles et de motocycles","Commerce de détail, à l'exception des automobiles et des motocycles","Commerce de détail de la chaussure","47.72A",null,"INDONÉSIE"]
[null,null,null,null,null,null,null,null,null,null,null,null,null,null,null,null,null,null,null,null,null,null,null,null,null,null,null,null,null,null,null,null,null,null,null,null,null,null,null,null,null,"Commerce de gros et de détail ; réparation de véhicules automobiles et de motocycles","Commerce de détail, à l'exception des automobiles et des motocycles","Commerce de détail de maroquinerie et d'articles de voyage","47.72B",null,"IRAN"]
[null,null,null,null,null,null,null,null,null,null,null,null,null,null,null,null,null,null,null,null,null,null,null,null,null,null,null,null,null,null,null,null,null,null,null,null,null,null,null,null,null,"Commerce de gros et de détail ; réparation de véhicules automobiles et de motocycles","Commerce de détail, à l'exception des automobiles et des motocycles","Commerce de détail de produits pharmaceutiques en magasin spécialisé","47.73Z",null,"IRAQ"]
[null,null,null,null,null,null,null,null,null,null,null,null,null,null,null,null,null,null,null,null,null,null,null,null,null,null,null,null,null,null,null,null,null,null,null,null,null,null,null,null,null,"Commerce de gros et de détail ; réparation de véhicules automobiles et de motocycles","Commerce de détail, à l'exception des automobiles et des motocycles","Commerce de détail d'articles médicaux et orthopédiques en magasin spécialisé","47.74Z",null,"IRLANDE"]
[null,null,null,null,null,null,null,null,null,null,null,null,null,null,null,null,null,null,null,null,null,null,null,null,null,null,null,null,null,null,null,null,null,null,null,null,null,null,null,null,null,"Commerce de gros et de détail ; réparation de véhicules automobiles et de motocycles","Commerce de détail, à l'exception des automobiles et des motocycles","Commerce de détail de parfumerie et de produits de beauté en magasin spécialisé","47.75Z",null,"ISLANDE"]
[null,null,null,null,null,null,null,null,null,null,null,null,null,null,null,null,null,null,null,null,null,null,null,null,null,null,null,null,null,null,null,null,null,null,null,null,null,null,null,null,null,"Commerce de gros et de détail ; réparation de véhicules automobiles et de motocycles","Commerce de détail, à l'exception des automobiles et des motocycles","Commerce de détail de fleurs, plantes, graines, engrais, animaux de compagnie et aliments pour ces animaux en magasin spécialisé","47.76Z",null,"ISRAËL"]
[null,null,null,null,null,null,null,null,null,null,null,null,null,null,null,null,null,null,null,null,null,null,null,null,null,null,null,null,null,null,null,null,null,null,null,null,null,null,null,null,null,"Commerce de gros et de détail ; réparation de véhicules automobiles et de motocycles","Commerce de détail, à l'exception des automobiles et des motocycles","Commerce de détail d'articles d'horlogerie et de bijouterie en magasin spécialisé","47.77Z",null,"ITALIE"]
[null,null,null,null,null,null,null,null,null,null,null,null,null,null,null,null,null,null,null,null,null,null,null,null,null,null,null,null,null,null,null,null,null,null,null,null,null,null,null,null,null,"Commerce de gros et de détail ; réparation de véhicules automobiles et de motocycles","Commerce de détail, à l'exception des automobiles et des motocycles","Commerces de détail d'optique","47.78A",null,"JAMAÏQUE"]
[null,null,null,null,null,null,null,null,null,null,null,null,null,null,null,null,null,null,null,null,null,null,null,null,null,null,null,null,null,null,null,null,null,null,null,null,null,null,null,null,null,"Commerce de gros et de détail ; réparation de véhicules automobiles et de motocycles","Commerce de détail, à l'exception des automobiles et des motocycles","Commerces de détail de charbons et combustibles","47.78B",null,"JAPON"]
[null,null,null,null,null,null,null,null,null,null,null,null,null,null,null,null,null,null,null,null,null,null,null,null,null,null,null,null,null,null,null,null,null,null,null,null,null,null,null,null,null,"Commerce de gros et de détail ; réparation de véhicules automobiles et de motocycles","Commerce de détail, à l'exception des automobiles et des motocycles","Autres commerces de détail spécialisés divers","47.78C",null,"JORDANIE"]
[null,null,null,null,null,null,null,null,null,null,null,null,null,null,null,null,null,null,null,null,null,null,null,null,null,null,null,null,null,null,null,null,null,null,null,null,null,null,null,null,null,"Commerce de gros et de détail ; réparation de véhicules automobiles et de motocycles","Commerce de détail, à l'exception des automobiles et des motocycles","Commerce de détail de biens d'occasion en magasin","47.79Z",null,"KAZAKHSTAN"]
[null,null,null,null,null,null,null,null,null,null,null,null,null,null,null,null,null,null,null,null,null,null,null,null,null,null,null,null,null,null,null,null,null,null,null,null,null,null,null,null,null,"Commerce de gros et de détail ; réparation de véhicules automobiles et de motocycles","Commerce de détail, à l'exception des automobiles et des motocycles","Commerce de détail alimentaire sur éventaires et marchés","47.81Z",null,"KENYA"]
[null,null,null,null,null,null,null,null,null,null,null,null,null,null,null,null,null,null,null,null,null,null,null,null,null,null,null,null,null,null,null,null,null,null,null,null,null,null,null,null,null,"Commerce de gros et de détail ; réparation de véhicules automobiles et de motocycles","Commerce de détail, à l'exception des automobiles et des motocycles","Commerce de détail de textiles, d'habillement et de chaussures sur éventaires et marchés","47.82Z",null,"KIRGHIZTAN"]
[null,null,null,null,null,null,null,null,null,null,null,null,null,null,null,null,null,null,null,null,null,null,null,null,null,null,null,null,null,null,null,null,null,null,null,null,null,null,null,null,null,"Commerce de gros et de détail ; réparation de véhicules automobiles et de motocycles","Commerce de détail, à l'exception des automobiles et des motocycles","Autres commerces de détail sur éventaires et marchés","47.89Z",null,"KIRIBATI"]
[null,null,null,null,null,null,null,null,null,null,null,null,null,null,null,null,null,null,null,null,null,null,null,null,null,null,null,null,null,null,null,null,null,null,null,null,null,null,null,null,null,"Commerce de gros et de détail ; réparation de véhicules automobiles et de motocycles","Commerce de détail, à l'exception des automobiles et des motocycles","Vente à distance sur catalogue général","47.91A",null,"KOWEÏT"]
[null,null,null,null,null,null,null,null,null,null,null,null,null,null,null,null,null,null,null,null,null,null,null,null,null,null,null,null,null,null,null,null,null,null,null,null,null,null,null,null,null,"Commerce de gros et de détail ; réparation de véhicules automobiles et de motocycles","Commerce de détail, à l'exception des automobiles et des motocycles","Vente à distance sur catalogue spécialisé","47.91B",null,"LA DOMINIQUE"]
[null,null,null,null,null,null,null,null,null,null,null,null,null,null,null,null,null,null,null,null,null,null,null,null,null,null,null,null,null,null,null,null,null,null,null,null,null,null,null,null,null,"Commerce de gros et de détail ; réparation de véhicules automobiles et de motocycles","Commerce de détail, à l'exception des automobiles et des motocycles","Vente à domicile","47.99A",null,"LAOS"]
[null,null,null,null,null,null,null,null,null,null,null,null,null,null,null,null,null,null,null,null,null,null,null,null,null,null,null,null,null,null,null,null,null,null,null,null,null,null,null,null,null,"Commerce de gros et de détail ; réparation de véhicules automobiles et de motocycles","Commerce de détail, à l'exception des automobiles et des motocycles","Vente par automates et autres commerces de détail hors magasin, éventaires ou marchés n.c.a.","47.99B",null,"LESOTHO"]
[null,null,null,null,null,null,null,null,null,null,null,null,null,null,null,null,null,null,null,null,null,null,null,null,null,null,null,null,null,null,null,null,null,null,null,null,null,null,null,null,null,"Agriculture, Sylviculture, Pêche","Culture et production animale, chasse et services annexes","Culture de céréales (à l'exception du riz), de légumineuses et de graines oléagineuses","01.11Z",null,"LETTONIE"]
[null,null,null,null,null,null,null,null,null,null,null,null,null,null,null,null,null,null,null,null,null,null,null,null,null,null,null,null,null,null,null,null,null,null,null,null,null,null,null,null,null,"Agriculture, Sylviculture, Pêche","Culture et production animale, chasse et services annexes","Culture du riz","01.12Z",null,"LIBAN"]
[null,null,null,null,null,null,null,null,null,null,null,null,null,null,null,null,null,null,null,null,null,null,null,null,null,null,null,null,null,null,null,null,null,null,null,null,null,null,null,null,null,"Agriculture, Sylviculture, Pêche","Culture et production animale, chasse et services annexes","Culture de légumes, de melons, de racines et de tubercules","01.13Z",null,"LIBERIA"]
[null,null,null,null,null,null,null,null,null,null,null,null,null,null,null,null,null,null,null,null,null,null,null,null,null,null,null,null,null,null,null,null,null,null,null,null,null,null,null,null,null,"Agriculture, Sylviculture, Pêche","Culture et production animale, chasse et services annexes","Culture de la canne à sucre","01.14Z",null,"LIBYE"]
[null,null,null,null,null,null,null,null,null,null,null,null,null,null,null,null,null,null,null,null,null,null,null,null,null,null,null,null,null,null,null,null,null,null,null,null,null,null,null,null,null,"Agriculture, Sylviculture, Pêche","Culture et production animale, chasse et services annexes","Culture du tabac","01.15Z",null,"LIECHTENSTEIN"]
[null,null,null,null,null,null,null,null,null,null,null,null,null,null,null,null,null,null,null,null,null,null,null,null,null,null,null,null,null,null,null,null,null,null,null,null,null,null,null,null,null,"Agriculture, Sylviculture, Pêche","Culture et production animale, chasse et services annexes","Culture de plantes à fibres","01.16Z",null,"LITUANIE"]
[null,null,null,null,null,null,null,null,null,null,null,null,null,null,null,null,null,null,null,null,null,null,null,null,null,null,null,null,null,null,null,null,null,null,null,null,null,null,null,null,null,"Agriculture, Sylviculture, Pêche","Culture et production animale, chasse et services annexes","Autres cultures non permanentes","01.19Z",null,"LUXEMBOURG"]
[null,null,null,null,null,null,null,null,null,null,null,null,null,null,null,null,null,null,null,null,null,null,null,null,null,null,null,null,null,null,null,null,null,null,null,null,null,null,null,null,null,"Agriculture, Sylviculture, Pêche","Culture et production animale, chasse et services annexes","Culture de la vigne","01.21Z",null,"MACAO"]
[null,null,null,null,null,null,null,null,null,null,null,null,null,null,null,null,null,null,null,null,null,null,null,null,null,null,null,null,null,null,null,null,null,null,null,null,null,null,null,null,null,"Agriculture, Sylviculture, Pêche","Culture et production animale, chasse et services annexes","Culture de fruits tropicaux et subtropicaux","01.22Z",null,"MACÉDOINE"]
[null,null,null,null,null,null,null,null,null,null,null,null,null,null,null,null,null,null,null,null,null,null,null,null,null,null,null,null,null,null,null,null,null,null,null,null,null,null,null,null,null,"Agriculture, Sylviculture, Pêche","Culture et production animale, chasse et services annexes","Culture d'agrumes","01.23Z",null,"MADAGASCAR"]
[null,null,null,null,null,null,null,null,null,null,null,null,null,null,null,null,null,null,null,null,null,null,null,null,null,null,null,null,null,null,null,null,null,null,null,null,null,null,null,null,null,"Agriculture, Sylviculture, Pêche","Culture et production animale, chasse et services annexes","Culture de fruits à pépins et à noyau","01.24Z",null,"MALAISIE"]
[null,null,null,null,null,null,null,null,null,null,null,null,null,null,null,null,null,null,null,null,null,null,null,null,null,null,null,null,null,null,null,null,null,null,null,null,null,null,null,null,null,"Agriculture, Sylviculture, Pêche","Culture et production animale, chasse et services annexes","Culture d'autres fruits d'arbres ou d'arbustes et de fruits à coque","01.25Z",null,"MALAWI"]
[null,null,null,null,null,null,null,null,null,null,null,null,null,null,null,null,null,null,null,null,null,null,null,null,null,null,null,null,null,null,null,null,null,null,null,null,null,null,null,null,null,"Agriculture, Sylviculture, Pêche","Culture et production animale, chasse et services annexes","Culture de fruits oléagineux","01.26Z",null,"MALDIVES"]
[null,null,null,null,null,null,null,null,null,null,null,null,null,null,null,null,null,null,null,null,null,null,null,null,null,null,null,null,null,null,null,null,null,null,null,null,null,null,null,null,null,"Agriculture, Sylviculture, Pêche","Culture et production animale, chasse et services annexes","Culture de plantes à boissons","01.27Z",null,"MALI"]
[null,null,null,null,null,null,null,null,null,null,null,null,null,null,null,null,null,null,null,null,null,null,null,null,null,null,null,null,null,null,null,null,null,null,null,null,null,null,null,null,null,"Agriculture, Sylviculture, Pêche","Culture et production animale, chasse et services annexes","Culture de plantes à épices, aromatiques, médicinales et pharmaceutiques","01.28Z",null,"MALOUINES"]
[null,null,null,null,null,null,null,null,null,null,null,null,null,null,null,null,null,null,null,null,null,null,null,null,null,null,null,null,null,null,null,null,null,null,null,null,null,null,null,null,null,"Agriculture, Sylviculture, Pêche","Culture et production animale, chasse et services annexes","Autres cultures permanentes","01.29Z",null,"MALTE"]
[null,null,null,null,null,null,null,null,null,null,null,null,null,null,null,null,null,null,null,null,null,null,null,null,null,null,null,null,null,null,null,null,null,null,null,null,null,null,null,null,null,"Agriculture, Sylviculture, Pêche","Culture et production animale, chasse et services annexes","Reproduction de plantes","01.30Z",null,"MAROC"]
[null,null,null,null,null,null,null,null,null,null,null,null,null,null,null,null,null,null,null,null,null,null,null,null,null,null,null,null,null,null,null,null,null,null,null,null,null,null,null,null,null,"Agriculture, Sylviculture, Pêche","Culture et production animale, chasse et services annexes","Élevage de vaches laitières","01.41Z",null,"MARTINIQUE"]
[null,null,null,null,null,null,null,null,null,null,null,null,null,null,null,null,null,null,null,null,null,null,null,null,null,null,null,null,null,null,null,null,null,null,null,null,null,null,null,null,null,"Agriculture, Sylviculture, Pêche","Culture et production animale, chasse et services annexes","Élevage d'autres bovins et de buffles","01.42Z",null,"MAURITANIE"]
[null,null,null,null,null,null,null,null,null,null,null,null,null,null,null,null,null,null,null,null,null,null,null,null,null,null,null,null,null,null,null,null,null,null,null,null,null,null,null,null,null,"Agriculture, Sylviculture, Pêche","Culture et production animale, chasse et services annexes","Élevage de chevaux et d'autres équidés","01.43Z",null,"MAYOTTE"]
[null,null,null,null,null,null,null,null,null,null,null,null,null,null,null,null,null,null,null,null,null,null,null,null,null,null,null,null,null,null,null,null,null,null,null,null,null,null,null,null,null,"Agriculture, Sylviculture, Pêche","Culture et production animale, chasse et services annexes","Élevage de chameaux et d'autres camélidés","01.44Z",null,"MEXIQUE"]
[null,null,null,null,null,null,null,null,null,null,null,null,null,null,null,null,null,null,null,null,null,null,null,null,null,null,null,null,null,null,null,null,null,null,null,null,null,null,null,null,null,"Agriculture, Sylviculture, Pêche","Culture et production animale, chasse et services annexes","Élevage d'ovins et de caprins","01.45Z",null,"MICRONÉSIE"]
[null,null,null,null,null,null,null,null,null,null,null,null,null,null,null,null,null,null,null,null,null,null,null,null,null,null,null,null,null,null,null,null,null,null,null,null,null,null,null,null,null,"Agriculture, Sylviculture, Pêche","Culture et production animale, chasse et services annexes","Élevage de porcins","01.46Z",null,"MOLDAVIE"]
[null,null,null,null,null,null,null,null,null,null,null,null,null,null,null,null,null,null,null,null,null,null,null,null,null,null,null,null,null,null,null,null,null,null,null,null,null,null,null,null,null,"Agriculture, Sylviculture, Pêche","Culture et production animale, chasse et services annexes","Élevage de volailles","01.47Z",null,"MONACO"]
[null,null,null,null,null,null,null,null,null,null,null,null,null,null,null,null,null,null,null,null,null,null,null,null,null,null,null,null,null,null,null,null,null,null,null,null,null,null,null,null,null,"Agriculture, Sylviculture, Pêche","Culture et production animale, chasse et services annexes","Élevage d'autres animaux","01.49Z",null,"MONGOLIE"]
[null,null,null,null,null,null,null,null,null,null,null,null,null,null,null,null,null,null,null,null,null,null,null,null,null,null,null,null,null,null,null,null,null,null,null,null,null,null,null,null,null,"Agriculture, Sylviculture, Pêche","Culture et production animale, chasse et services annexes","Culture et élevage associés","01.50Z",null,"MONTSERRAT"]
[null,null,null,null,null,null,null,null,null,null,null,null,null,null,null,null,null,null,null,null,null,null,null,null,null,null,null,null,null,null,null,null,null,null,null,null,null,null,null,null,null,"Agriculture, Sylviculture, Pêche","Culture et production animale, chasse et services annexes","Activités de soutien aux cultures","01.61Z",null,"MOZAMBIQUE"]
[null,null,null,null,null,null,null,null,null,null,null,null,null,null,null,null,null,null,null,null,null,null,null,null,null,null,null,null,null,null,null,null,null,null,null,null,null,null,null,null,null,"Agriculture, Sylviculture, Pêche","Culture et production animale, chasse et services annexes","Activités de soutien à la production animale","01.62Z",null,"MYANMAR"]
[null,null,null,null,null,null,null,null,null,null,null,null,null,null,null,null,null,null,null,null,null,null,null,null,null,null,null,null,null,null,null,null,null,null,null,null,null,null,null,null,null,"Agriculture, Sylviculture, Pêche","Culture et production animale, chasse et services annexes","Traitement primaire des récoltes","01.63Z",null,"N. ZÉLANDE"]
[null,null,null,null,null,null,null,null,null,null,null,null,null,null,null,null,null,null,null,null,null,null,null,null,null,null,null,null,null,null,null,null,null,null,null,null,null,null,null,null,null,"Agriculture, Sylviculture, Pêche","Culture et production animale, chasse et services annexes","Traitement des semences","01.64Z",null,"N.CALÉDONIE"]
[null,null,null,null,null,null,null,null,null,null,null,null,null,null,null,null,null,null,null,null,null,null,null,null,null,null,null,null,null,null,null,null,null,null,null,null,null,null,null,null,null,"Agriculture, Sylviculture, Pêche","Culture et production animale, chasse et services annexes","Chasse, piégeage et services annexes","01.70Z",null,"NAMIBIE"]
[null,null,null,null,null,null,null,null,null,null,null,null,null,null,null,null,null,null,null,null,null,null,null,null,null,null,null,null,null,null,null,null,null,null,null,null,null,null,null,null,null,"Agriculture, Sylviculture, Pêche","Sylviculture et exploitation forestière","Sylviculture et autres activités forestières","02.10Z",null,"NAURU"]
[null,null,null,null,null,null,null,null,null,null,null,null,null,null,null,null,null,null,null,null,null,null,null,null,null,null,null,null,null,null,null,null,null,null,null,null,null,null,null,null,null,"Agriculture, Sylviculture, Pêche","Sylviculture et exploitation forestière","Exploitation forestière","02.20Z",null,"NÉPAL"]
[null,null,null,null,null,null,null,null,null,null,null,null,null,null,null,null,null,null,null,null,null,null,null,null,null,null,null,null,null,null,null,null,null,null,null,null,null,null,null,null,null,"Agriculture, Sylviculture, Pêche","Sylviculture et exploitation forestière","Récolte de produits forestiers non ligneux poussant à l'état sauvage","02.30Z",null,"NICARAGUA"]
[null,null,null,null,null,null,null,null,null,null,null,null,null,null,null,null,null,null,null,null,null,null,null,null,null,null,null,null,null,null,null,null,null,null,null,null,null,null,null,null,null,"Agriculture, Sylviculture, Pêche","Sylviculture et exploitation forestière","Services de soutien à l'exploitation forestière","02.40Z",null,"NIGER"]
[null,null,null,null,null,null,null,null,null,null,null,null,null,null,null,null,null,null,null,null,null,null,null,null,null,null,null,null,null,null,null,null,null,null,null,null,null,null,null,null,null,"Agriculture, Sylviculture, Pêche","Pêche et aquaculture","Pêche en mer","03.11Z",null,"NIGÉRIA"]
[null,null,null,null,null,null,null,null,null,null,null,null,null,null,null,null,null,null,null,null,null,null,null,null,null,null,null,null,null,null,null,null,null,null,null,null,null,null,null,null,null,"Agriculture, Sylviculture, Pêche","Pêche et aquaculture","Pêche en eau douce","03.12Z",null,"NORVÈGE"]
[null,null,null,null,null,null,null,null,null,null,null,null,null,null,null,null,null,null,null,null,null,null,null,null,null,null,null,null,null,null,null,null,null,null,null,null,null,null,null,null,null,"Agriculture, Sylviculture, Pêche","Pêche et aquaculture","Aquaculture en mer","03.21Z",null,"OMAN"]
[null,null,null,null,null,null,null,null,null,null,null,null,null,null,null,null,null,null,null,null,null,null,null,null,null,null,null,null,null,null,null,null,null,null,null,null,null,null,null,null,null,"Agriculture, Sylviculture, Pêche","Pêche et aquaculture","Aquaculture en eau douce","03.22Z",null,"OUGANDA"]
[null,null,null,null,null,null,null,null,null,null,null,null,null,null,null,null,null,null,null,null,null,null,null,null,null,null,null,null,null,null,null,null,null,null,null,null,null,null,null,null,null,"Industries Extractives, Agricoles, Alimentaires","Extraction de houille et de lignite","Extraction de houille","05.10Z",null,"OUZBÉKISTAN"]
[null,null,null,null,null,null,null,null,null,null,null,null,null,null,null,null,null,null,null,null,null,null,null,null,null,null,null,null,null,null,null,null,null,null,null,null,null,null,null,null,null,"Industries Extractives, Agricoles, Alimentaires","Extraction de houille et de lignite","Extraction de lignite","05.20Z",null,"PAKISTAN"]
[null,null,null,null,null,null,null,null,null,null,null,null,null,null,null,null,null,null,null,null,null,null,null,null,null,null,null,null,null,null,null,null,null,null,null,null,null,null,null,null,null,"Industries Extractives, Agricoles, Alimentaires","Extraction d'hydrocarbures","Extraction de pétrole brut","06.10Z",null,"PALAUAN"]
[null,null,null,null,null,null,null,null,null,null,null,null,null,null,null,null,null,null,null,null,null,null,null,null,null,null,null,null,null,null,null,null,null,null,null,null,null,null,null,null,null,"Industries Extractives, Agricoles, Alimentaires","Extraction d'hydrocarbures","Extraction de gaz naturel","06.20Z",null,"PANAMA"]
[null,null,null,null,null,null,null,null,null,null,null,null,null,null,null,null,null,null,null,null,null,null,null,null,null,null,null,null,null,null,null,null,null,null,null,null,null,null,null,null,null,"Industries Extractives, Agricoles, Alimentaires","Extraction de minerais métalliques","Extraction de minerais de fer","07.10Z",null,"PAP.NOUV.GUINÉE"]
[null,null,null,null,null,null,null,null,null,null,null,null,null,null,null,null,null,null,null,null,null,null,null,null,null,null,null,null,null,null,null,null,null,null,null,null,null,null,null,null,null,"Industries Extractives, Agricoles, Alimentaires","Extraction de minerais métalliques","Extraction de minerais d'uranium et de thorium","07.21Z",null,"PARAGUAY"]
[null,null,null,null,null,null,null,null,null,null,null,null,null,null,null,null,null,null,null,null,null,null,null,null,null,null,null,null,null,null,null,null,null,null,null,null,null,null,null,null,null,"Industries Extractives, Agricoles, Alimentaires","Extraction de minerais métalliques","Extraction d'autres minerais de métaux non ferreux","07.29Z",null,"PAYS-BAS"]
[null,null,null,null,null,null,null,null,null,null,null,null,null,null,null,null,null,null,null,null,null,null,null,null,null,null,null,null,null,null,null,null,null,null,null,null,null,null,null,null,null,"Industries Extractives, Agricoles, Alimentaires","Autres industries extractives","Extraction de pierres ornementales et de construction, de calcaire industriel, de gypse, de craie et d'ardoise","08.11Z",null,"PÉROU"]
[null,null,null,null,null,null,null,null,null,null,null,null,null,null,null,null,null,null,null,null,null,null,null,null,null,null,null,null,null,null,null,null,null,null,null,null,null,null,null,null,null,"Industries Extractives, Agricoles, Alimentaires","Autres industries extractives","Exploitation de gravières et sablières, extraction d'argiles et de kaolin","08.12Z",null,"PHILIPPINES"]
[null,null,null,null,null,null,null,null,null,null,null,null,null,null,null,null,null,null,null,null,null,null,null,null,null,null,null,null,null,null,null,null,null,null,null,null,null,null,null,null,null,"Industries Extractives, Agricoles, Alimentaires","Autres industries extractives","Extraction des minéraux chimiques et d'engrais minéraux","08.91Z",null,"POLOGNE"]
[null,null,null,null,null,null,null,null,null,null,null,null,null,null,null,null,null,null,null,null,null,null,null,null,null,null,null,null,null,null,null,null,null,null,null,null,null,null,null,null,null,"Industries Extractives, Agricoles, Alimentaires","Autres industries extractives","Extraction de tourbe","08.92Z",null,"POLYNÉSIE FRAN."]
[null,null,null,null,null,null,null,null,null,null,null,null,null,null,null,null,null,null,null,null,null,null,null,null,null,null,null,null,null,null,null,null,null,null,null,null,null,null,null,null,null,"Industries Extractives, Agricoles, Alimentaires","Autres industries extractives","Production de sel","08.93Z",null,"PORTO RICO"]
[null,null,null,null,null,null,null,null,null,null,null,null,null,null,null,null,null,null,null,null,null,null,null,null,null,null,null,null,null,null,null,null,null,null,null,null,null,null,null,null,null,"Industries Extractives, Agricoles, Alimentaires","Autres industries extractives","Autres activités extractives n.c.a.","08.99Z",null,"PORTUGAL"]
[null,null,null,null,null,null,null,null,null,null,null,null,null,null,null,null,null,null,null,null,null,null,null,null,null,null,null,null,null,null,null,null,null,null,null,null,null,null,null,null,null,"Industries Extractives, Agricoles, Alimentaires","Services de soutien aux industries extractives","Activités de soutien à l'extraction d'hydrocarbures","09.10Z",null,"QATAR"]
[null,null,null,null,null,null,null,null,null,null,null,null,null,null,null,null,null,null,null,null,null,null,null,null,null,null,null,null,null,null,null,null,null,null,null,null,null,null,null,null,null,"Industries Extractives, Agricoles, Alimentaires","Services de soutien aux industries extractives","Activités de soutien aux autres industries extractives","09.90Z",null,"RÉP. CENTRAFR."]
[null,null,null,null,null,null,null,null,null,null,null,null,null,null,null,null,null,null,null,null,null,null,null,null,null,null,null,null,null,null,null,null,null,null,null,null,null,null,null,null,null,"Industries manufacturières","Industries alimentaires","Transformation et conservation de la viande de boucherie","10.11Z",null,"RÉP. TCHÈQUE"]
[null,null,null,null,null,null,null,null,null,null,null,null,null,null,null,null,null,null,null,null,null,null,null,null,null,null,null,null,null,null,null,null,null,null,null,null,null,null,null,null,null,"Industries manufacturières","Industries alimentaires","Transformation et conservation de la viande de volaille","10.12Z",null,"RÉP.DOMINICAINE"]
[null,null,null,null,null,null,null,null,null,null,null,null,null,null,null,null,null,null,null,null,null,null,null,null,null,null,null,null,null,null,null,null,null,null,null,null,null,null,null,null,null,"Industries manufacturières","Industries alimentaires","Préparation industrielle de produits à base de viande","10.13A",null,"RÉUNION"]
[null,null,null,null,null,null,null,null,null,null,null,null,null,null,null,null,null,null,null,null,null,null,null,null,null,null,null,null,null,null,null,null,null,null,null,null,null,null,null,null,null,"Industries manufacturières","Industries alimentaires","Charcuterie","10.13B",null,"ROUMANIE"]
[null,null,null,null,null,null,null,null,null,null,null,null,null,null,null,null,null,null,null,null,null,null,null,null,null,null,null,null,null,null,null,null,null,null,null,null,null,null,null,null,null,"Industries manufacturières","Industries alimentaires","Transformation et conservation de poisson, de crustacés et de mollusques","10.20Z",null,"RWANDA"]
[null,null,null,null,null,null,null,null,null,null,null,null,null,null,null,null,null,null,null,null,null,null,null,null,null,null,null,null,null,null,null,null,null,null,null,null,null,null,null,null,null,"Industries manufacturières","Industries alimentaires","Transformation et conservation de pommes de terre","10.31Z",null,"S.TOMÉ-ET-PRINC"]
[null,null,null,null,null,null,null,null,null,null,null,null,null,null,null,null,null,null,null,null,null,null,null,null,null,null,null,null,null,null,null,null,null,null,null,null,null,null,null,null,null,"Industries manufacturières","Industries alimentaires","Préparation de jus de fruits et légumes","10.32Z",null,"SAINT-MARIN"]
[null,null,null,null,null,null,null,null,null,null,null,null,null,null,null,null,null,null,null,null,null,null,null,null,null,null,null,null,null,null,null,null,null,null,null,null,null,null,null,null,null,"Industries manufacturières","Industries alimentaires","Autre transformation et conservation de légumes","10.39A",null,"SAINTE-HÉLÈNE"]
[null,null,null,null,null,null,null,null,null,null,null,null,null,null,null,null,null,null,null,null,null,null,null,null,null,null,null,null,null,null,null,null,null,null,null,null,null,null,null,null,null,"Industries manufacturières","Industries alimentaires","Transformation et conservation de fruits","10.39B",null,"SALOMON"]
[null,null,null,null,null,null,null,null,null,null,null,null,null,null,null,null,null,null,null,null,null,null,null,null,null,null,null,null,null,null,null,null,null,null,null,null,null,null,null,null,null,"Industries manufacturières","Industries alimentaires","Fabrication d'huiles et graisses brutes","10.41A",null,"SAMOA OCCIDENT."]
[null,null,null,null,null,null,null,null,null,null,null,null,null,null,null,null,null,null,null,null,null,null,null,null,null,null,null,null,null,null,null,null,null,null,null,null,null,null,null,null,null,"Industries manufacturières","Industries alimentaires","Fabrication d'huiles et graisses raffinées","10.41B",null,"SAMOA, AMÉRIC."]
[null,null,null,null,null,null,null,null,null,null,null,null,null,null,null,null,null,null,null,null,null,null,null,null,null,null,null,null,null,null,null,null,null,null,null,null,null,null,null,null,null,"Industries manufacturières","Industries alimentaires","Fabrication de margarine et graisses comestibles similaires","10.42Z",null,"SÉNÉGAL"]
[null,null,null,null,null,null,null,null,null,null,null,null,null,null,null,null,null,null,null,null,null,null,null,null,null,null,null,null,null,null,null,null,null,null,null,null,null,null,null,null,null,"Industries manufacturières","Industries alimentaires","Fabrication de lait liquide et de produits frais","10.51A",null,"SEYCHELLES"]
[null,null,null,null,null,null,null,null,null,null,null,null,null,null,null,null,null,null,null,null,null,null,null,null,null,null,null,null,null,null,null,null,null,null,null,null,null,null,null,null,null,"Industries manufacturières","Industries alimentaires","Fabrication de beurre","10.51B",null,"SIERRA LEONE"]
[null,null,null,null,null,null,null,null,null,null,null,null,null,null,null,null,null,null,null,null,null,null,null,null,null,null,null,null,null,null,null,null,null,null,null,null,null,null,null,null,null,"Industries manufacturières","Industries alimentaires","Fabrication de fromage","10.51C",null,"SINGAPOUR"]
[null,null,null,null,null,null,null,null,null,null,null,null,null,null,null,null,null,null,null,null,null,null,null,null,null,null,null,null,null,null,null,null,null,null,null,null,null,null,null,null,null,"Industries manufacturières","Industries alimentaires","Fabrication d'autres produits laitiers","10.51D",null,"SLOVAQUIE"]
[null,null,null,null,null,null,null,null,null,null,null,null,null,null,null,null,null,null,null,null,null,null,null,null,null,null,null,null,null,null,null,null,null,null,null,null,null,null,null,null,null,"Industries manufacturières","Industries alimentaires","Fabrication de glaces et sorbets","10.52Z",null,"SLOVÉNIE"]
[null,null,null,null,null,null,null,null,null,null,null,null,null,null,null,null,null,null,null,null,null,null,null,null,null,null,null,null,null,null,null,null,null,null,null,null,null,null,null,null,null,"Industries manufacturières","Industries alimentaires","Meunerie","10.61A",null,"SOMALIE"]
[null,null,null,null,null,null,null,null,null,null,null,null,null,null,null,null,null,null,null,null,null,null,null,null,null,null,null,null,null,null,null,null,null,null,null,null,null,null,null,null,null,"Industries manufacturières","Industries alimentaires","Autres activités du travail des grains","10.61B",null,"SOUDAN"]
[null,null,null,null,null,null,null,null,null,null,null,null,null,null,null,null,null,null,null,null,null,null,null,null,null,null,null,null,null,null,null,null,null,null,null,null,null,null,null,null,null,"Industries manufacturières","Industries alimentaires","Fabrication de produits amylacés","10.62Z",null,"SRI LANKA"]
[null,null,null,null,null,null,null,null,null,null,null,null,null,null,null,null,null,null,null,null,null,null,null,null,null,null,null,null,null,null,null,null,null,null,null,null,null,null,null,null,null,"Industries manufacturières","Industries alimentaires","Fabrication industrielle de pain et de pâtisserie fraîche","10.71A",null,"ST. LUCIE"]
[null,null,null,null,null,null,null,null,null,null,null,null,null,null,null,null,null,null,null,null,null,null,null,null,null,null,null,null,null,null,null,null,null,null,null,null,null,null,null,null,null,"Industries manufacturières","Industries alimentaires","Cuisson de produits de boulangerie","10.71B",null,"ST. VINCENT"]
[null,null,null,null,null,null,null,null,null,null,null,null,null,null,null,null,null,null,null,null,null,null,null,null,null,null,null,null,null,null,null,null,null,null,null,null,null,null,null,null,null,"Industries manufacturières","Industries alimentaires","Boulangerie et boulangerie-pâtisserie","10.71C",null,"ST.CHR.,NEVIS"]
[null,null,null,null,null,null,null,null,null,null,null,null,null,null,null,null,null,null,null,null,null,null,null,null,null,null,null,null,null,null,null,null,null,null,null,null,null,null,null,null,null,"Industries manufacturières","Industries alimentaires","Pâtisserie","10.71D",null,"ST.PIERRE,MIQU."]
[null,null,null,null,null,null,null,null,null,null,null,null,null,null,null,null,null,null,null,null,null,null,null,null,null,null,null,null,null,null,null,null,null,null,null,null,null,null,null,null,null,"Industries manufacturières","Industries alimentaires","Fabrication de biscuits, biscottes et pâtisseries de conservation","10.72Z",null,"SUÈDE"]
[null,null,null,null,null,null,null,null,null,null,null,null,null,null,null,null,null,null,null,null,null,null,null,null,null,null,null,null,null,null,null,null,null,null,null,null,null,null,null,null,null,"Industries manufacturières","Industries alimentaires","Fabrication de pâtes alimentaires","10.73Z",null,"SUISSE"]
[null,null,null,null,null,null,null,null,null,null,null,null,null,null,null,null,null,null,null,null,null,null,null,null,null,null,null,null,null,null,null,null,null,null,null,null,null,null,null,null,null,"Industries manufacturières","Industries alimentaires","Fabrication de sucre","10.81Z",null,"SURINAME"]
[null,null,null,null,null,null,null,null,null,null,null,null,null,null,null,null,null,null,null,null,null,null,null,null,null,null,null,null,null,null,null,null,null,null,null,null,null,null,null,null,null,"Industries manufacturières","Industries alimentaires","Fabrication de cacao, chocolat et de produits de confiserie","10.82Z",null,"SVALBARD"]
[null,null,null,null,null,null,null,null,null,null,null,null,null,null,null,null,null,null,null,null,null,null,null,null,null,null,null,null,null,null,null,null,null,null,null,null,null,null,null,null,null,"Industries manufacturières","Industries alimentaires","Transformation du thé et du café","10.83Z",null,"SWAZILAND"]
[null,null,null,null,null,null,null,null,null,null,null,null,null,null,null,null,null,null,null,null,null,null,null,null,null,null,null,null,null,null,null,null,null,null,null,null,null,null,null,null,null,"Industries manufacturières","Industries alimentaires","Fabrication de condiments et assaisonnements","10.84Z",null,"SYRIE"]
[null,null,null,null,null,null,null,null,null,null,null,null,null,null,null,null,null,null,null,null,null,null,null,null,null,null,null,null,null,null,null,null,null,null,null,null,null,null,null,null,null,"Industries manufacturières","Industries alimentaires","Fabrication de plats préparés","10.85Z",null,"TADJIKISTAN"]
[null,null,null,null,null,null,null,null,null,null,null,null,null,null,null,null,null,null,null,null,null,null,null,null,null,null,null,null,null,null,null,null,null,null,null,null,null,null,null,null,null,"Industries manufacturières","Industries alimentaires","Fabrication d'aliments homogénéisés et diététiques","10.86Z",null,"TAIWAN"]
[null,null,null,null,null,null,null,null,null,null,null,null,null,null,null,null,null,null,null,null,null,null,null,null,null,null,null,null,null,null,null,null,null,null,null,null,null,null,null,null,null,"Industries manufacturières","Industries alimentaires","Fabrication d'autres produits alimentaires n.c.a.","10.89Z",null,"TANZANIE"]
[null,null,null,null,null,null,null,null,null,null,null,null,null,null,null,null,null,null,null,null,null,null,null,null,null,null,null,null,null,null,null,null,null,null,null,null,null,null,null,null,null,"Industries manufacturières","Industries alimentaires","Fabrication d'aliments pour animaux de ferme","10.91Z",null,"TCHAD"]
[null,null,null,null,null,null,null,null,null,null,null,null,null,null,null,null,null,null,null,null,null,null,null,null,null,null,null,null,null,null,null,null,null,null,null,null,null,null,null,null,null,"Industries manufacturières","Industries alimentaires","Fabrication d'aliments pour animaux de compagnie","10.92Z",null,"THAÏLAND"]
[null,null,null,null,null,null,null,null,null,null,null,null,null,null,null,null,null,null,null,null,null,null,null,null,null,null,null,null,null,null,null,null,null,null,null,null,null,null,null,null,null,"Industries manufacturières","Fabrication de boissons","Production de boissons alcooliques distillées","11.01Z",null,"TIMOR ORIENT."]
[null,null,null,null,null,null,null,null,null,null,null,null,null,null,null,null,null,null,null,null,null,null,null,null,null,null,null,null,null,null,null,null,null,null,null,null,null,null,null,null,null,"Industries manufacturières","Fabrication de boissons","Fabrication de vins effervescents","11.02A",null,"TOGO"]
[null,null,null,null,null,null,null,null,null,null,null,null,null,null,null,null,null,null,null,null,null,null,null,null,null,null,null,null,null,null,null,null,null,null,null,null,null,null,null,null,null,"Industries manufacturières","Fabrication de boissons","Vinification","11.02B",null,"TONGA"]
[null,null,null,null,null,null,null,null,null,null,null,null,null,null,null,null,null,null,null,null,null,null,null,null,null,null,null,null,null,null,null,null,null,null,null,null,null,null,null,null,null,"Industries manufacturières","Fabrication de boissons","Fabrication de cidre et de vins de fruits","11.03Z",null,"TRINIDAD,TOBAGO"]
[null,null,null,null,null,null,null,null,null,null,null,null,null,null,null,null,null,null,null,null,null,null,null,null,null,null,null,null,null,null,null,null,null,null,null,null,null,null,null,null,null,"Industries manufacturières","Fabrication de boissons","Production d'autres boissons fermentées non distillées","11.04Z",null,"TUNISIE"]
[null,null,null,null,null,null,null,null,null,null,null,null,null,null,null,null,null,null,null,null,null,null,null,null,null,null,null,null,null,null,null,null,null,null,null,null,null,null,null,null,null,"Industries manufacturières","Fabrication de boissons","Fabrication de bière","11.05Z",null,"TURKMÉNISTAN"]
[null,null,null,null,null,null,null,null,null,null,null,null,null,null,null,null,null,null,null,null,null,null,null,null,null,null,null,null,null,null,null,null,null,null,null,null,null,null,null,null,null,"Industries manufacturières","Fabrication de boissons","Fabrication de malt","11.06Z",null,"TURKS & CAICOS"]
[null,null,null,null,null,null,null,null,null,null,null,null,null,null,null,null,null,null,null,null,null,null,null,null,null,null,null,null,null,null,null,null,null,null,null,null,null,null,null,null,null,"Industries manufacturières","Fabrication de boissons","Industrie des eaux de table","11.07A",null,"TURQUIE"]
[null,null,null,null,null,null,null,null,null,null,null,null,null,null,null,null,null,null,null,null,null,null,null,null,null,null,null,null,null,null,null,null,null,null,null,null,null,null,null,null,null,"Industries manufacturières","Fabrication de boissons","Production de boissons rafraîchissantes","11.07B",null,"TUVALU"]
[null,null,null,null,null,null,null,null,null,null,null,null,null,null,null,null,null,null,null,null,null,null,null,null,null,null,null,null,null,null,null,null,null,null,null,null,null,null,null,null,null,"Industries manufacturières","Fabrication de produits à base de tabac","Fabrication de produits à base de tabac","12.00Z",null,"UKRAINE"]
[null,null,null,null,null,null,null,null,null,null,null,null,null,null,null,null,null,null,null,null,null,null,null,null,null,null,null,null,null,null,null,null,null,null,null,null,null,null,null,null,null,"Industries manufacturières","Fabrication de textiles","Préparation de fibres textiles et filature","13.10Z",null,"URUGUAY"]
[null,null,null,null,null,null,null,null,null,null,null,null,null,null,null,null,null,null,null,null,null,null,null,null,null,null,null,null,null,null,null,null,null,null,null,null,null,null,null,null,null,"Industries manufacturières","Fabrication de textiles","Tissage","13.20Z",null,"USA"]
[null,null,null,null,null,null,null,null,null,null,null,null,null,null,null,null,null,null,null,null,null,null,null,null,null,null,null,null,null,null,null,null,null,null,null,null,null,null,null,null,null,"Industries manufacturières","Fabrication de textiles","Ennoblissement textile","13.30Z",null,"VANUATU"]
[null,null,null,null,null,null,null,null,null,null,null,null,null,null,null,null,null,null,null,null,null,null,null,null,null,null,null,null,null,null,null,null,null,null,null,null,null,null,null,null,null,"Industries manufacturières","Fabrication de textiles","Fabrication d'étoffes à mailles","13.91Z",null,"VATICAN"]
[null,null,null,null,null,null,null,null,null,null,null,null,null,null,null,null,null,null,null,null,null,null,null,null,null,null,null,null,null,null,null,null,null,null,null,null,null,null,null,null,null,"Industries manufacturières","Fabrication de textiles","Fabrication d'articles textiles, sauf habillement","13.92Z",null,"VÉNÉZUÉLA"]
[null,null,null,null,null,null,null,null,null,null,null,null,null,null,null,null,null,null,null,null,null,null,null,null,null,null,null,null,null,null,null,null,null,null,null,null,null,null,null,null,null,"Industries manufacturières","Fabrication de textiles","Fabrication de tapis et moquettes","13.93Z",null,"VIÊT NAM"]
[null,null,null,null,null,null,null,null,null,null,null,null,null,null,null,null,null,null,null,null,null,null,null,null,null,null,null,null,null,null,null,null,null,null,null,null,null,null,null,null,null,"Industries manufacturières","Fabrication de textiles","Fabrication de ficelles, cordes et filets","13.94Z",null,"WALLIS,FUTUNA"]
[null,null,null,null,null,null,null,null,null,null,null,null,null,null,null,null,null,null,null,null,null,null,null,null,null,null,null,null,null,null,null,null,null,null,null,null,null,null,null,null,null,"Industries manufacturières","Fabrication de textiles","Fabrication de non-tissés, sauf habillement","13.95Z",null,"YÉMEN"]
[null,null,null,null,null,null,null,null,null,null,null,null,null,null,null,null,null,null,null,null,null,null,null,null,null,null,null,null,null,null,null,null,null,null,null,null,null,null,null,null,null,"Industries manufacturières","Fabrication de textiles","Fabrication d'autres textiles techniques et industriels","13.96Z",null,"YOUGOSLAVIE"]
[null,null,null,null,null,null,null,null,null,null,null,null,null,null,null,null,null,null,null,null,null,null,null,null,null,null,null,null,null,null,null,null,null,null,null,null,null,null,null,null,null,"Industries manufacturières","Fabrication de textiles","Fabrication d'autres textiles n.c.a.","13.99Z",null,"ZAÏRE"]
[null,null,null,null,null,null,null,null,null,null,null,null,null,null,null,null,null,null,null,null,null,null,null,null,null,null,null,null,null,null,null,null,null,null,null,null,null,null,null,null,null,"Industries manufacturières","Industrie de l'habillement","Fabrication de vêtements en cuir","14.11Z",null,"ZAMBIE"]
[null,null,null,null,null,null,null,null,null,null,null,null,null,null,null,null,null,null,null,null,null,null,null,null,null,null,null,null,null,null,null,null,null,null,null,null,null,null,null,null,null,"Industries manufacturières","Industrie de l'habillement","Fabrication de vêtements de travail","14.12Z",null,"ZIMBABWE"]
[null,null,null,null,null,null,null,null,null,null,null,null,null,null,null,null,null,null,null,null,null,null,null,null,null,null,null,null,null,null,null,null,null,null,null,null,null,null,null,null,null,"Industries manufacturières","Industrie de l'habillement","Fabrication de vêtements de dessus","14.13Z"]
[null,null,null,null,null,null,null,null,null,null,null,null,null,null,null,null,null,null,null,null,null,null,null,null,null,null,null,null,null,null,null,null,null,null,null,null,null,null,null,null,null,"Industries manufacturières","Industrie de l'habillement","Fabrication de vêtements de dessous","14.14Z"]
[null,null,null,null,null,null,null,null,null,null,null,null,null,null,null,null,null,null,null,null,null,null,null,null,null,null,null,null,null,null,null,null,null,null,null,null,null,null,null,null,null,"Industries manufacturières","Industrie de l'habillement","Fabrication d'autres vêtements et accessoires","14.19Z"]
[null,null,null,null,null,null,null,null,null,null,null,null,null,null,null,null,null,null,null,null,null,null,null,null,null,null,null,null,null,null,null,null,null,null,null,null,null,null,null,null,null,"Industries manufacturières","Industrie de l'habillement","Fabrication d'articles en fourrure","14.20Z"]
[null,null,null,null,null,null,null,null,null,null,null,null,null,null,null,null,null,null,null,null,null,null,null,null,null,null,null,null,null,null,null,null,null,null,null,null,null,null,null,null,null,"Industries manufacturières","Industrie de l'habillement","Fabrication d'articles chaussants à mailles","14.31Z"]
[null,null,null,null,null,null,null,null,null,null,null,null,null,null,null,null,null,null,null,null,null,null,null,null,null,null,null,null,null,null,null,null,null,null,null,null,null,null,null,null,null,"Industries manufacturières","Industrie de l'habillement","Fabrication d'autres articles à mailles","14.39Z"]
[null,null,null,null,null,null,null,null,null,null,null,null,null,null,null,null,null,null,null,null,null,null,null,null,null,null,null,null,null,null,null,null,null,null,null,null,null,null,null,null,null,"Industries manufacturières","Industrie du cuir et de la chaussure","Apprêt et tannage des cuirs ; préparation et teinture des fourrures","15.11Z"]
[null,null,null,null,null,null,null,null,null,null,null,null,null,null,null,null,null,null,null,null,null,null,null,null,null,null,null,null,null,null,null,null,null,null,null,null,null,null,null,null,null,"Industries manufacturières","Industrie du cuir et de la chaussure","Fabrication d'articles de voyage, de maroquinerie et de sellerie","15.12Z"]
[null,null,null,null,null,null,null,null,null,null,null,null,null,null,null,null,null,null,null,null,null,null,null,null,null,null,null,null,null,null,null,null,null,null,null,null,null,null,null,null,null,"Industries manufacturières","Industrie du cuir et de la chaussure","Fabrication de chaussures","15.20Z"]
[null,null,null,null,null,null,null,null,null,null,null,null,null,null,null,null,null,null,null,null,null,null,null,null,null,null,null,null,null,null,null,null,null,null,null,null,null,null,null,null,null,"Industries manufacturières","Travail du bois et fabrication d'articles en bois et en liège, à l'exception des meubles ; fabrication d'articles en vannerie et sparterie","Sciage et rabotage du bois, hors imprégnation","16.10A"]
[null,null,null,null,null,null,null,null,null,null,null,null,null,null,null,null,null,null,null,null,null,null,null,null,null,null,null,null,null,null,null,null,null,null,null,null,null,null,null,null,null,"Industries manufacturières","Travail du bois et fabrication d'articles en bois et en liège, à l'exception des meubles ; fabrication d'articles en vannerie et sparterie","Imprégnation du bois","16.10B"]
[null,null,null,null,null,null,null,null,null,null,null,null,null,null,null,null,null,null,null,null,null,null,null,null,null,null,null,null,null,null,null,null,null,null,null,null,null,null,null,null,null,"Industries manufacturières","Travail du bois et fabrication d'articles en bois et en liège, à l'exception des meubles ; fabrication d'articles en vannerie et sparterie","Fabrication de placage et de panneaux de bois","16.21Z"]
[null,null,null,null,null,null,null,null,null,null,null,null,null,null,null,null,null,null,null,null,null,null,null,null,null,null,null,null,null,null,null,null,null,null,null,null,null,null,null,null,null,"Industries manufacturières","Travail du bois et fabrication d'articles en bois et en liège, à l'exception des meubles ; fabrication d'articles en vannerie et sparterie","Fabrication de parquets assemblés","16.22Z"]
[null,null,null,null,null,null,null,null,null,null,null,null,null,null,null,null,null,null,null,null,null,null,null,null,null,null,null,null,null,null,null,null,null,null,null,null,null,null,null,null,null,"Industries manufacturières","Travail du bois et fabrication d'articles en bois et en liège, à l'exception des meubles ; fabrication d'articles en vannerie et sparterie","Fabrication de charpentes et d'autres menuiseries","16.23Z"]
[null,null,null,null,null,null,null,null,null,null,null,null,null,null,null,null,null,null,null,null,null,null,null,null,null,null,null,null,null,null,null,null,null,null,null,null,null,null,null,null,null,"Industries manufacturières","Travail du bois et fabrication d'articles en bois et en liège, à l'exception des meubles ; fabrication d'articles en vannerie et sparterie","Fabrication d'emballages en bois","16.24Z"]
[null,null,null,null,null,null,null,null,null,null,null,null,null,null,null,null,null,null,null,null,null,null,null,null,null,null,null,null,null,null,null,null,null,null,null,null,null,null,null,null,null,"Industries manufacturières","Travail du bois et fabrication d'articles en bois et en liège, à l'exception des meubles ; fabrication d'articles en vannerie et sparterie","Fabrication d'objets divers en bois ; fabrication d'objets en liège, vannerie et sparterie","16.29Z"]
[null,null,null,null,null,null,null,null,null,null,null,null,null,null,null,null,null,null,null,null,null,null,null,null,null,null,null,null,null,null,null,null,null,null,null,null,null,null,null,null,null,"Industries manufacturières","Industrie du papier et du carton","Fabrication de pâte à papier","17.11Z"]
[null,null,null,null,null,null,null,null,null,null,null,null,null,null,null,null,null,null,null,null,null,null,null,null,null,null,null,null,null,null,null,null,null,null,null,null,null,null,null,null,null,"Industries manufacturières","Industrie du papier et du carton","Fabrication de papier et de carton","17.12Z"]
[null,null,null,null,null,null,null,null,null,null,null,null,null,null,null,null,null,null,null,null,null,null,null,null,null,null,null,null,null,null,null,null,null,null,null,null,null,null,null,null,null,"Industries manufacturières","Industrie du papier et du carton","Fabrication de carton ondulé","17.21A"]
[null,null,null,null,null,null,null,null,null,null,null,null,null,null,null,null,null,null,null,null,null,null,null,null,null,null,null,null,null,null,null,null,null,null,null,null,null,null,null,null,null,"Industries manufacturières","Industrie du papier et du carton","Fabrication de cartonnages","17.21B"]
[null,null,null,null,null,null,null,null,null,null,null,null,null,null,null,null,null,null,null,null,null,null,null,null,null,null,null,null,null,null,null,null,null,null,null,null,null,null,null,null,null,"Industries manufacturières","Industrie du papier et du carton","Fabrication d'emballages en papier","17.21C"]
[null,null,null,null,null,null,null,null,null,null,null,null,null,null,null,null,null,null,null,null,null,null,null,null,null,null,null,null,null,null,null,null,null,null,null,null,null,null,null,null,null,"Industries manufacturières","Industrie du papier et du carton","Fabrication d'articles en papier à usage sanitaire ou domestique","17.22Z"]
[null,null,null,null,null,null,null,null,null,null,null,null,null,null,null,null,null,null,null,null,null,null,null,null,null,null,null,null,null,null,null,null,null,null,null,null,null,null,null,null,null,"Industries manufacturières","Industrie du papier et du carton","Fabrication d'articles de papeterie","17.23Z"]
[null,null,null,null,null,null,null,null,null,null,null,null,null,null,null,null,null,null,null,null,null,null,null,null,null,null,null,null,null,null,null,null,null,null,null,null,null,null,null,null,null,"Industries manufacturières","Industrie du papier et du carton","Fabrication de papiers peints","17.24Z"]
[null,null,null,null,null,null,null,null,null,null,null,null,null,null,null,null,null,null,null,null,null,null,null,null,null,null,null,null,null,null,null,null,null,null,null,null,null,null,null,null,null,"Industries manufacturières","Industrie du papier et du carton","Fabrication d'autres articles en papier ou en carton","17.29Z"]
[null,null,null,null,null,null,null,null,null,null,null,null,null,null,null,null,null,null,null,null,null,null,null,null,null,null,null,null,null,null,null,null,null,null,null,null,null,null,null,null,null,"Industries manufacturières","Imprimerie et reproduction d'enregistrements","Imprimerie de journaux","18.11Z"]
[null,null,null,null,null,null,null,null,null,null,null,null,null,null,null,null,null,null,null,null,null,null,null,null,null,null,null,null,null,null,null,null,null,null,null,null,null,null,null,null,null,"Industries manufacturières","Imprimerie et reproduction d'enregistrements","Autre imprimerie (labeur)","18.12Z"]
[null,null,null,null,null,null,null,null,null,null,null,null,null,null,null,null,null,null,null,null,null,null,null,null,null,null,null,null,null,null,null,null,null,null,null,null,null,null,null,null,null,"Industries manufacturières","Imprimerie et reproduction d'enregistrements","Activités de pré-presse","18.13Z"]
[null,null,null,null,null,null,null,null,null,null,null,null,null,null,null,null,null,null,null,null,null,null,null,null,null,null,null,null,null,null,null,null,null,null,null,null,null,null,null,null,null,"Industries manufacturières","Imprimerie et reproduction d'enregistrements","Reliure et activités connexes","18.14Z"]
[null,null,null,null,null,null,null,null,null,null,null,null,null,null,null,null,null,null,null,null,null,null,null,null,null,null,null,null,null,null,null,null,null,null,null,null,null,null,null,null,null,"Industries manufacturières","Imprimerie et reproduction d'enregistrements","Reproduction d'enregistrements","18.20Z"]
[null,null,null,null,null,null,null,null,null,null,null,null,null,null,null,null,null,null,null,null,null,null,null,null,null,null,null,null,null,null,null,null,null,null,null,null,null,null,null,null,null,"Industries manufacturières","Cokéfaction et raffinage","Cokéfaction","19.10Z"]
[null,null,null,null,null,null,null,null,null,null,null,null,null,null,null,null,null,null,null,null,null,null,null,null,null,null,null,null,null,null,null,null,null,null,null,null,null,null,null,null,null,"Industries manufacturières","Cokéfaction et raffinage","Raffinage du pétrole","19.20Z"]
[null,null,null,null,null,null,null,null,null,null,null,null,null,null,null,null,null,null,null,null,null,null,null,null,null,null,null,null,null,null,null,null,null,null,null,null,null,null,null,null,null,"Industries manufacturières","Industrie chimique","Fabrication de gaz industriels","20.11Z"]
[null,null,null,null,null,null,null,null,null,null,null,null,null,null,null,null,null,null,null,null,null,null,null,null,null,null,null,null,null,null,null,null,null,null,null,null,null,null,null,null,null,"Industries manufacturières","Industrie chimique","Fabrication de colorants et de pigments","20.12Z"]
[null,null,null,null,null,null,null,null,null,null,null,null,null,null,null,null,null,null,null,null,null,null,null,null,null,null,null,null,null,null,null,null,null,null,null,null,null,null,null,null,null,"Industries manufacturières","Industrie chimique","Enrichissement et retraitement de matières nucléaires","20.13A"]
[null,null,null,null,null,null,null,null,null,null,null,null,null,null,null,null,null,null,null,null,null,null,null,null,null,null,null,null,null,null,null,null,null,null,null,null,null,null,null,null,null,"Industries manufacturières","Industrie chimique","Fabrication d'autres produits chimiques inorganiques de base n.c.a.","20.13B"]
[null,null,null,null,null,null,null,null,null,null,null,null,null,null,null,null,null,null,null,null,null,null,null,null,null,null,null,null,null,null,null,null,null,null,null,null,null,null,null,null,null,"Industries manufacturières","Industrie chimique","Fabrication d'autres produits chimiques organiques de base","20.14Z"]
[null,null,null,null,null,null,null,null,null,null,null,null,null,null,null,null,null,null,null,null,null,null,null,null,null,null,null,null,null,null,null,null,null,null,null,null,null,null,null,null,null,"Industries manufacturières","Industrie chimique","Fabrication de produits azotés et d'engrais","20.15Z"]
[null,null,null,null,null,null,null,null,null,null,null,null,null,null,null,null,null,null,null,null,null,null,null,null,null,null,null,null,null,null,null,null,null,null,null,null,null,null,null,null,null,"Industries manufacturières","Industrie chimique","Fabrication de matières plastiques de base","20.16Z"]
[null,null,null,null,null,null,null,null,null,null,null,null,null,null,null,null,null,null,null,null,null,null,null,null,null,null,null,null,null,null,null,null,null,null,null,null,null,null,null,null,null,"Industries manufacturières","Industrie chimique","Fabrication de caoutchouc synthétique","20.17Z"]
[null,null,null,null,null,null,null,null,null,null,null,null,null,null,null,null,null,null,null,null,null,null,null,null,null,null,null,null,null,null,null,null,null,null,null,null,null,null,null,null,null,"Industries manufacturières","Industrie chimique","Fabrication de pesticides et d'autres produits agrochimiques","20.20Z"]
[null,null,null,null,null,null,null,null,null,null,null,null,null,null,null,null,null,null,null,null,null,null,null,null,null,null,null,null,null,null,null,null,null,null,null,null,null,null,null,null,null,"Industries manufacturières","Industrie chimique","Fabrication de peintures, vernis, encres et mastics","20.30Z"]
[null,null,null,null,null,null,null,null,null,null,null,null,null,null,null,null,null,null,null,null,null,null,null,null,null,null,null,null,null,null,null,null,null,null,null,null,null,null,null,null,null,"Industries manufacturières","Industrie chimique","Fabrication de savons, détergents et produits d'entretien","20.41Z"]
[null,null,null,null,null,null,null,null,null,null,null,null,null,null,null,null,null,null,null,null,null,null,null,null,null,null,null,null,null,null,null,null,null,null,null,null,null,null,null,null,null,"Industries manufacturières","Industrie chimique","Fabrication de parfums et de produits pour la toilette","20.42Z"]
[null,null,null,null,null,null,null,null,null,null,null,null,null,null,null,null,null,null,null,null,null,null,null,null,null,null,null,null,null,null,null,null,null,null,null,null,null,null,null,null,null,"Industries manufacturières","Industrie chimique","Fabrication de produits explosifs","20.51Z"]
[null,null,null,null,null,null,null,null,null,null,null,null,null,null,null,null,null,null,null,null,null,null,null,null,null,null,null,null,null,null,null,null,null,null,null,null,null,null,null,null,null,"Industries manufacturières","Industrie chimique","Fabrication de colles","20.52Z"]
[null,null,null,null,null,null,null,null,null,null,null,null,null,null,null,null,null,null,null,null,null,null,null,null,null,null,null,null,null,null,null,null,null,null,null,null,null,null,null,null,null,"Industries manufacturières","Industrie chimique","Fabrication d'huiles essentielles","20.53Z"]
[null,null,null,null,null,null,null,null,null,null,null,null,null,null,null,null,null,null,null,null,null,null,null,null,null,null,null,null,null,null,null,null,null,null,null,null,null,null,null,null,null,"Industries manufacturières","Industrie chimique","Fabrication d'autres produits chimiques n.c.a.","20.59Z"]
[null,null,null,null,null,null,null,null,null,null,null,null,null,null,null,null,null,null,null,null,null,null,null,null,null,null,null,null,null,null,null,null,null,null,null,null,null,null,null,null,null,"Industries manufacturières","Industrie chimique","Fabrication de fibres artificielles ou synthétiques","20.60Z"]
[null,null,null,null,null,null,null,null,null,null,null,null,null,null,null,null,null,null,null,null,null,null,null,null,null,null,null,null,null,null,null,null,null,null,null,null,null,null,null,null,null,"Industries manufacturières","Industrie pharmaceutique","Fabrication de produits pharmaceutiques de base","21.10Z"]
[null,null,null,null,null,null,null,null,null,null,null,null,null,null,null,null,null,null,null,null,null,null,null,null,null,null,null,null,null,null,null,null,null,null,null,null,null,null,null,null,null,"Industries manufacturières","Industrie pharmaceutique","Fabrication de préparations pharmaceutiques","21.20Z"]
[null,null,null,null,null,null,null,null,null,null,null,null,null,null,null,null,null,null,null,null,null,null,null,null,null,null,null,null,null,null,null,null,null,null,null,null,null,null,null,null,null,"Industries manufacturières","Fabrication de produits en caoutchouc et en plastique","Fabrication et rechapage de pneumatiques","22.11Z"]
[null,null,null,null,null,null,null,null,null,null,null,null,null,null,null,null,null,null,null,null,null,null,null,null,null,null,null,null,null,null,null,null,null,null,null,null,null,null,null,null,null,"Industries manufacturières","Fabrication de produits en caoutchouc et en plastique","Fabrication d'autres articles en caoutchouc","22.19Z"]
[null,null,null,null,null,null,null,null,null,null,null,null,null,null,null,null,null,null,null,null,null,null,null,null,null,null,null,null,null,null,null,null,null,null,null,null,null,null,null,null,null,"Industries manufacturières","Fabrication de produits en caoutchouc et en plastique","Fabrication de plaques, feuilles, tubes et profilés en matières plastiques","22.21Z"]
[null,null,null,null,null,null,null,null,null,null,null,null,null,null,null,null,null,null,null,null,null,null,null,null,null,null,null,null,null,null,null,null,null,null,null,null,null,null,null,null,null,"Industries manufacturières","Fabrication de produits en caoutchouc et en plastique","Fabrication d'emballages en matières plastiques","22.22Z"]
[null,null,null,null,null,null,null,null,null,null,null,null,null,null,null,null,null,null,null,null,null,null,null,null,null,null,null,null,null,null,null,null,null,null,null,null,null,null,null,null,null,"Industries manufacturières","Fabrication de produits en caoutchouc et en plastique","Fabrication d'éléments en matières plastiques pour la construction","22.23Z"]
[null,null,null,null,null,null,null,null,null,null,null,null,null,null,null,null,null,null,null,null,null,null,null,null,null,null,null,null,null,null,null,null,null,null,null,null,null,null,null,null,null,"Industries manufacturières","Fabrication de produits en caoutchouc et en plastique","Fabrication de pièces techniques à base de matières plastiques","22.29A"]
[null,null,null,null,null,null,null,null,null,null,null,null,null,null,null,null,null,null,null,null,null,null,null,null,null,null,null,null,null,null,null,null,null,null,null,null,null,null,null,null,null,"Industries manufacturières","Fabrication de produits en caoutchouc et en plastique","Fabrication de produits de consommation courante en matières plastiques","22.29B"]
[null,null,null,null,null,null,null,null,null,null,null,null,null,null,null,null,null,null,null,null,null,null,null,null,null,null,null,null,null,null,null,null,null,null,null,null,null,null,null,null,null,"Industries manufacturières","Fabrication d'autres produits minéraux non métalliques","Fabrication de verre plat","23.11Z"]
[null,null,null,null,null,null,null,null,null,null,null,null,null,null,null,null,null,null,null,null,null,null,null,null,null,null,null,null,null,null,null,null,null,null,null,null,null,null,null,null,null,"Industries manufacturières","Fabrication d'autres produits minéraux non métalliques","Façonnage et transformation du verre plat","23.12Z"]
[null,null,null,null,null,null,null,null,null,null,null,null,null,null,null,null,null,null,null,null,null,null,null,null,null,null,null,null,null,null,null,null,null,null,null,null,null,null,null,null,null,"Industries manufacturières","Fabrication d'autres produits minéraux non métalliques","Fabrication de verre creux","23.13Z"]
[null,null,null,null,null,null,null,null,null,null,null,null,null,null,null,null,null,null,null,null,null,null,null,null,null,null,null,null,null,null,null,null,null,null,null,null,null,null,null,null,null,"Industries manufacturières","Fabrication d'autres produits minéraux non métalliques","Fabrication de fibres de verre","23.14Z"]
[null,null,null,null,null,null,null,null,null,null,null,null,null,null,null,null,null,null,null,null,null,null,null,null,null,null,null,null,null,null,null,null,null,null,null,null,null,null,null,null,null,"Industries manufacturières","Fabrication d'autres produits minéraux non métalliques","Fabrication et façonnage d'autres articles en verre, y compris verre technique","23.19Z"]
[null,null,null,null,null,null,null,null,null,null,null,null,null,null,null,null,null,null,null,null,null,null,null,null,null,null,null,null,null,null,null,null,null,null,null,null,null,null,null,null,null,"Industries manufacturières","Fabrication d'autres produits minéraux non métalliques","Fabrication de produits réfractaires","23.20Z"]
[null,null,null,null,null,null,null,null,null,null,null,null,null,null,null,null,null,null,null,null,null,null,null,null,null,null,null,null,null,null,null,null,null,null,null,null,null,null,null,null,null,"Industries manufacturières","Fabrication d'autres produits minéraux non métalliques","Fabrication de carreaux en céramique","23.31Z"]
[null,null,null,null,null,null,null,null,null,null,null,null,null,null,null,null,null,null,null,null,null,null,null,null,null,null,null,null,null,null,null,null,null,null,null,null,null,null,null,null,null,"Industries manufacturières","Fabrication d'autres produits minéraux non métalliques","Fabrication de briques, tuiles et produits de construction, en terre cuite","23.32Z"]
[null,null,null,null,null,null,null,null,null,null,null,null,null,null,null,null,null,null,null,null,null,null,null,null,null,null,null,null,null,null,null,null,null,null,null,null,null,null,null,null,null,"Industries manufacturières","Fabrication d'autres produits minéraux non métalliques","Fabrication d'articles céramiques à usage domestique ou ornemental","23.41Z"]
[null,null,null,null,null,null,null,null,null,null,null,null,null,null,null,null,null,null,null,null,null,null,null,null,null,null,null,null,null,null,null,null,null,null,null,null,null,null,null,null,null,"Industries manufacturières","Fabrication d'autres produits minéraux non métalliques","Fabrication d'appareils sanitaires en céramique","23.42Z"]
[null,null,null,null,null,null,null,null,null,null,null,null,null,null,null,null,null,null,null,null,null,null,null,null,null,null,null,null,null,null,null,null,null,null,null,null,null,null,null,null,null,"Industries manufacturières","Fabrication d'autres produits minéraux non métalliques","Fabrication d'isolateurs et pièces isolantes en céramique","23.43Z"]
[null,null,null,null,null,null,null,null,null,null,null,null,null,null,null,null,null,null,null,null,null,null,null,null,null,null,null,null,null,null,null,null,null,null,null,null,null,null,null,null,null,"Industries manufacturières","Fabrication d'autres produits minéraux non métalliques","Fabrication d'autres produits céramiques à usage technique","23.44Z"]
[null,null,null,null,null,null,null,null,null,null,null,null,null,null,null,null,null,null,null,null,null,null,null,null,null,null,null,null,null,null,null,null,null,null,null,null,null,null,null,null,null,"Industries manufacturières","Fabrication d'autres produits minéraux non métalliques","Fabrication d'autres produits céramiques","23.49Z"]
[null,null,null,null,null,null,null,null,null,null,null,null,null,null,null,null,null,null,null,null,null,null,null,null,null,null,null,null,null,null,null,null,null,null,null,null,null,null,null,null,null,"Industries manufacturières","Fabrication d'autres produits minéraux non métalliques","Fabrication de ciment","23.51Z"]
[null,null,null,null,null,null,null,null,null,null,null,null,null,null,null,null,null,null,null,null,null,null,null,null,null,null,null,null,null,null,null,null,null,null,null,null,null,null,null,null,null,"Industries manufacturières","Fabrication d'autres produits minéraux non métalliques","Fabrication de chaux et plâtre","23.52Z"]
[null,null,null,null,null,null,null,null,null,null,null,null,null,null,null,null,null,null,null,null,null,null,null,null,null,null,null,null,null,null,null,null,null,null,null,null,null,null,null,null,null,"Industries manufacturières","Fabrication d'autres produits minéraux non métalliques","Fabrication d'éléments en béton pour la construction","23.61Z"]
[null,null,null,null,null,null,null,null,null,null,null,null,null,null,null,null,null,null,null,null,null,null,null,null,null,null,null,null,null,null,null,null,null,null,null,null,null,null,null,null,null,"Industries manufacturières","Fabrication d'autres produits minéraux non métalliques","Fabrication d'éléments en plâtre pour la construction","23.62Z"]
[null,null,null,null,null,null,null,null,null,null,null,null,null,null,null,null,null,null,null,null,null,null,null,null,null,null,null,null,null,null,null,null,null,null,null,null,null,null,null,null,null,"Industries manufacturières","Fabrication d'autres produits minéraux non métalliques","Fabrication de béton prêt à l'emploi","23.63Z"]
[null,null,null,null,null,null,null,null,null,null,null,null,null,null,null,null,null,null,null,null,null,null,null,null,null,null,null,null,null,null,null,null,null,null,null,null,null,null,null,null,null,"Industries manufacturières","Fabrication d'autres produits minéraux non métalliques","Fabrication de mortiers et bétons secs","23.64Z"]
[null,null,null,null,null,null,null,null,null,null,null,null,null,null,null,null,null,null,null,null,null,null,null,null,null,null,null,null,null,null,null,null,null,null,null,null,null,null,null,null,null,"Industries manufacturières","Fabrication d'autres produits minéraux non métalliques","Fabrication d'ouvrages en fibre-ciment","23.65Z"]
[null,null,null,null,null,null,null,null,null,null,null,null,null,null,null,null,null,null,null,null,null,null,null,null,null,null,null,null,null,null,null,null,null,null,null,null,null,null,null,null,null,"Industries manufacturières","Fabrication d'autres produits minéraux non métalliques","Fabrication d'autres ouvrages en béton, en ciment ou en plâtre","23.69Z"]
[null,null,null,null,null,null,null,null,null,null,null,null,null,null,null,null,null,null,null,null,null,null,null,null,null,null,null,null,null,null,null,null,null,null,null,null,null,null,null,null,null,"Industries manufacturières","Fabrication d'autres produits minéraux non métalliques","Taille, façonnage et finissage de pierres","23.70Z"]
[null,null,null,null,null,null,null,null,null,null,null,null,null,null,null,null,null,null,null,null,null,null,null,null,null,null,null,null,null,null,null,null,null,null,null,null,null,null,null,null,null,"Industries manufacturières","Fabrication d'autres produits minéraux non métalliques","Fabrication de produits abrasifs","23.91Z"]
[null,null,null,null,null,null,null,null,null,null,null,null,null,null,null,null,null,null,null,null,null,null,null,null,null,null,null,null,null,null,null,null,null,null,null,null,null,null,null,null,null,"Industries manufacturières","Fabrication d'autres produits minéraux non métalliques","Fabrication d'autres produits minéraux non métalliques n.c.a.","23.99Z"]
[null,null,null,null,null,null,null,null,null,null,null,null,null,null,null,null,null,null,null,null,null,null,null,null,null,null,null,null,null,null,null,null,null,null,null,null,null,null,null,null,null,"Industries manufacturières","Métallurgie","Sidérurgie","24.10Z"]
[null,null,null,null,null,null,null,null,null,null,null,null,null,null,null,null,null,null,null,null,null,null,null,null,null,null,null,null,null,null,null,null,null,null,null,null,null,null,null,null,null,"Industries manufacturières","Métallurgie","Fabrication de tubes, tuyaux, profilés creux et accessoires correspondants en acier","24.20Z"]
[null,null,null,null,null,null,null,null,null,null,null,null,null,null,null,null,null,null,null,null,null,null,null,null,null,null,null,null,null,null,null,null,null,null,null,null,null,null,null,null,null,"Industries manufacturières","Métallurgie","Étirage à froid de barres","24.31Z"]
[null,null,null,null,null,null,null,null,null,null,null,null,null,null,null,null,null,null,null,null,null,null,null,null,null,null,null,null,null,null,null,null,null,null,null,null,null,null,null,null,null,"Industries manufacturières","Métallurgie","Laminage à froid de feuillards","24.32Z"]
[null,null,null,null,null,null,null,null,null,null,null,null,null,null,null,null,null,null,null,null,null,null,null,null,null,null,null,null,null,null,null,null,null,null,null,null,null,null,null,null,null,"Industries manufacturières","Métallurgie","Profilage à froid par formage ou pliage","24.33Z"]
[null,null,null,null,null,null,null,null,null,null,null,null,null,null,null,null,null,null,null,null,null,null,null,null,null,null,null,null,null,null,null,null,null,null,null,null,null,null,null,null,null,"Industries manufacturières","Métallurgie","Tréfilage à froid","24.34Z"]
[null,null,null,null,null,null,null,null,null,null,null,null,null,null,null,null,null,null,null,null,null,null,null,null,null,null,null,null,null,null,null,null,null,null,null,null,null,null,null,null,null,"Industries manufacturières","Métallurgie","Production de métaux précieux","24.41Z"]
[null,null,null,null,null,null,null,null,null,null,null,null,null,null,null,null,null,null,null,null,null,null,null,null,null,null,null,null,null,null,null,null,null,null,null,null,null,null,null,null,null,"Industries manufacturières","Métallurgie","Métallurgie de l'aluminium","24.42Z"]
[null,null,null,null,null,null,null,null,null,null,null,null,null,null,null,null,null,null,null,null,null,null,null,null,null,null,null,null,null,null,null,null,null,null,null,null,null,null,null,null,null,"Industries manufacturières","Métallurgie","Métallurgie du plomb, du zinc ou de l'étain","24.43Z"]
[null,null,null,null,null,null,null,null,null,null,null,null,null,null,null,null,null,null,null,null,null,null,null,null,null,null,null,null,null,null,null,null,null,null,null,null,null,null,null,null,null,"Industries manufacturières","Métallurgie","Métallurgie du cuivre","24.44Z"]
[null,null,null,null,null,null,null,null,null,null,null,null,null,null,null,null,null,null,null,null,null,null,null,null,null,null,null,null,null,null,null,null,null,null,null,null,null,null,null,null,null,"Industries manufacturières","Métallurgie","Métallurgie des autres métaux non ferreux","24.45Z"]
[null,null,null,null,null,null,null,null,null,null,null,null,null,null,null,null,null,null,null,null,null,null,null,null,null,null,null,null,null,null,null,null,null,null,null,null,null,null,null,null,null,"Industries manufacturières","Métallurgie","Élaboration et transformation de matières nucléaires","24.46Z"]
[null,null,null,null,null,null,null,null,null,null,null,null,null,null,null,null,null,null,null,null,null,null,null,null,null,null,null,null,null,null,null,null,null,null,null,null,null,null,null,null,null,"Industries manufacturières","Métallurgie","Fonderie de fonte","24.51Z"]
[null,null,null,null,null,null,null,null,null,null,null,null,null,null,null,null,null,null,null,null,null,null,null,null,null,null,null,null,null,null,null,null,null,null,null,null,null,null,null,null,null,"Industries manufacturières","Métallurgie","Fonderie d'acier","24.52Z"]
[null,null,null,null,null,null,null,null,null,null,null,null,null,null,null,null,null,null,null,null,null,null,null,null,null,null,null,null,null,null,null,null,null,null,null,null,null,null,null,null,null,"Industries manufacturières","Métallurgie","Fonderie de métaux légers","24.53Z"]
[null,null,null,null,null,null,null,null,null,null,null,null,null,null,null,null,null,null,null,null,null,null,null,null,null,null,null,null,null,null,null,null,null,null,null,null,null,null,null,null,null,"Industries manufacturières","Métallurgie","Fonderie d'autres métaux non ferreux","24.54Z"]
[null,null,null,null,null,null,null,null,null,null,null,null,null,null,null,null,null,null,null,null,null,null,null,null,null,null,null,null,null,null,null,null,null,null,null,null,null,null,null,null,null,"Industries manufacturières","Fabrication de produits métalliques, à l'exception des machines et des équipements","Fabrication de structures métalliques et de parties de structures","25.11Z"]
[null,null,null,null,null,null,null,null,null,null,null,null,null,null,null,null,null,null,null,null,null,null,null,null,null,null,null,null,null,null,null,null,null,null,null,null,null,null,null,null,null,"Industries manufacturières","Fabrication de produits métalliques, à l'exception des machines et des équipements","Fabrication de portes et fenêtres en métal","25.12Z"]
[null,null,null,null,null,null,null,null,null,null,null,null,null,null,null,null,null,null,null,null,null,null,null,null,null,null,null,null,null,null,null,null,null,null,null,null,null,null,null,null,null,"Industries manufacturières","Fabrication de produits métalliques, à l'exception des machines et des équipements","Fabrication de radiateurs et de chaudières pour le chauffage central","25.21Z"]
[null,null,null,null,null,null,null,null,null,null,null,null,null,null,null,null,null,null,null,null,null,null,null,null,null,null,null,null,null,null,null,null,null,null,null,null,null,null,null,null,null,"Industries manufacturières","Fabrication de produits métalliques, à l'exception des machines et des équipements","Fabrication d'autres réservoirs, citernes et conteneurs métalliques","25.29Z"]
[null,null,null,null,null,null,null,null,null,null,null,null,null,null,null,null,null,null,null,null,null,null,null,null,null,null,null,null,null,null,null,null,null,null,null,null,null,null,null,null,null,"Industries manufacturières","Fabrication de produits métalliques, à l'exception des machines et des équipements","Fabrication de générateurs de vapeur, à l'exception des chaudières pour le chauffage central","25.30Z"]
[null,null,null,null,null,null,null,null,null,null,null,null,null,null,null,null,null,null,null,null,null,null,null,null,null,null,null,null,null,null,null,null,null,null,null,null,null,null,null,null,null,"Industries manufacturières","Fabrication de produits métalliques, à l'exception des machines et des équipements","Fabrication d'armes et de munitions","25.40Z"]
[null,null,null,null,null,null,null,null,null,null,null,null,null,null,null,null,null,null,null,null,null,null,null,null,null,null,null,null,null,null,null,null,null,null,null,null,null,null,null,null,null,"Industries manufacturières","Fabrication de produits métalliques, à l'exception des machines et des équipements","Forge, estampage, matriçage ; métallurgie des poudres","25.50A"]
[null,null,null,null,null,null,null,null,null,null,null,null,null,null,null,null,null,null,null,null,null,null,null,null,null,null,null,null,null,null,null,null,null,null,null,null,null,null,null,null,null,"Industries manufacturières","Fabrication de produits métalliques, à l'exception des machines et des équipements","Découpage, emboutissage","25.50B"]
[null,null,null,null,null,null,null,null,null,null,null,null,null,null,null,null,null,null,null,null,null,null,null,null,null,null,null,null,null,null,null,null,null,null,null,null,null,null,null,null,null,"Industries manufacturières","Fabrication de produits métalliques, à l'exception des machines et des équipements","Traitement et revêtement des métaux","25.61Z"]
[null,null,null,null,null,null,null,null,null,null,null,null,null,null,null,null,null,null,null,null,null,null,null,null,null,null,null,null,null,null,null,null,null,null,null,null,null,null,null,null,null,"Industries manufacturières","Fabrication de produits métalliques, à l'exception des machines et des équipements","Décolletage","25.62A"]
[null,null,null,null,null,null,null,null,null,null,null,null,null,null,null,null,null,null,null,null,null,null,null,null,null,null,null,null,null,null,null,null,null,null,null,null,null,null,null,null,null,"Industries manufacturières","Fabrication de produits métalliques, à l'exception des machines et des équipements","Mécanique industrielle","25.62B"]
[null,null,null,null,null,null,null,null,null,null,null,null,null,null,null,null,null,null,null,null,null,null,null,null,null,null,null,null,null,null,null,null,null,null,null,null,null,null,null,null,null,"Industries manufacturières","Fabrication de produits métalliques, à l'exception des machines et des équipements","Fabrication de coutellerie","25.71Z"]
[null,null,null,null,null,null,null,null,null,null,null,null,null,null,null,null,null,null,null,null,null,null,null,null,null,null,null,null,null,null,null,null,null,null,null,null,null,null,null,null,null,"Industries manufacturières","Fabrication de produits métalliques, à l'exception des machines et des équipements","Fabrication de serrures et de ferrures","25.72Z"]
[null,null,null,null,null,null,null,null,null,null,null,null,null,null,null,null,null,null,null,null,null,null,null,null,null,null,null,null,null,null,null,null,null,null,null,null,null,null,null,null,null,"Industries manufacturières","Fabrication de produits métalliques, à l'exception des machines et des équipements","Fabrication de moules et modèles","25.73A"]
[null,null,null,null,null,null,null,null,null,null,null,null,null,null,null,null,null,null,null,null,null,null,null,null,null,null,null,null,null,null,null,null,null,null,null,null,null,null,null,null,null,"Industries manufacturières","Fabrication de produits métalliques, à l'exception des machines et des équipements","Fabrication d'autres outillages","25.73B"]
[null,null,null,null,null,null,null,null,null,null,null,null,null,null,null,null,null,null,null,null,null,null,null,null,null,null,null,null,null,null,null,null,null,null,null,null,null,null,null,null,null,"Industries manufacturières","Fabrication de produits métalliques, à l'exception des machines et des équipements","Fabrication de fûts et emballages métalliques similaires","25.91Z"]
[null,null,null,null,null,null,null,null,null,null,null,null,null,null,null,null,null,null,null,null,null,null,null,null,null,null,null,null,null,null,null,null,null,null,null,null,null,null,null,null,null,"Industries manufacturières","Fabrication de produits métalliques, à l'exception des machines et des équipements","Fabrication d'emballages métalliques légers","25.92Z"]
[null,null,null,null,null,null,null,null,null,null,null,null,null,null,null,null,null,null,null,null,null,null,null,null,null,null,null,null,null,null,null,null,null,null,null,null,null,null,null,null,null,"Industries manufacturières","Fabrication de produits métalliques, à l'exception des machines et des équipements","Fabrication d'articles en fils métalliques, de chaînes et de ressorts","25.93Z"]
[null,null,null,null,null,null,null,null,null,null,null,null,null,null,null,null,null,null,null,null,null,null,null,null,null,null,null,null,null,null,null,null,null,null,null,null,null,null,null,null,null,"Industries manufacturières","Fabrication de produits métalliques, à l'exception des machines et des équipements","Fabrication de vis et de boulons","25.94Z"]
[null,null,null,null,null,null,null,null,null,null,null,null,null,null,null,null,null,null,null,null,null,null,null,null,null,null,null,null,null,null,null,null,null,null,null,null,null,null,null,null,null,"Industries manufacturières","Fabrication de produits métalliques, à l'exception des machines et des équipements","Fabrication d'articles métalliques ménagers","25.99A"]
[null,null,null,null,null,null,null,null,null,null,null,null,null,null,null,null,null,null,null,null,null,null,null,null,null,null,null,null,null,null,null,null,null,null,null,null,null,null,null,null,null,"Industries manufacturières","Fabrication de produits métalliques, à l'exception des machines et des équipements","Fabrication d'autres articles métalliques","25.99B"]
[null,null,null,null,null,null,null,null,null,null,null,null,null,null,null,null,null,null,null,null,null,null,null,null,null,null,null,null,null,null,null,null,null,null,null,null,null,null,null,null,null,"Industries manufacturières","Fabrication de produits informatiques, électroniques et optiques","Fabrication de composants électroniques","26.11Z"]
[null,null,null,null,null,null,null,null,null,null,null,null,null,null,null,null,null,null,null,null,null,null,null,null,null,null,null,null,null,null,null,null,null,null,null,null,null,null,null,null,null,"Industries manufacturières","Fabrication de produits informatiques, électroniques et optiques","Fabrication de cartes électroniques assemblées","26.12Z"]
[null,null,null,null,null,null,null,null,null,null,null,null,null,null,null,null,null,null,null,null,null,null,null,null,null,null,null,null,null,null,null,null,null,null,null,null,null,null,null,null,null,"Industries manufacturières","Fabrication de produits informatiques, électroniques et optiques","Fabrication d'ordinateurs et d'équipements périphériques","26.20Z"]
[null,null,null,null,null,null,null,null,null,null,null,null,null,null,null,null,null,null,null,null,null,null,null,null,null,null,null,null,null,null,null,null,null,null,null,null,null,null,null,null,null,"Industries manufacturières","Fabrication de produits informatiques, électroniques et optiques","Fabrication d'équipements de communication","26.30Z"]
[null,null,null,null,null,null,null,null,null,null,null,null,null,null,null,null,null,null,null,null,null,null,null,null,null,null,null,null,null,null,null,null,null,null,null,null,null,null,null,null,null,"Industries manufacturières","Fabrication de produits informatiques, électroniques et optiques","Fabrication de produits électroniques grand public","26.40Z"]
[null,null,null,null,null,null,null,null,null,null,null,null,null,null,null,null,null,null,null,null,null,null,null,null,null,null,null,null,null,null,null,null,null,null,null,null,null,null,null,null,null,"Industries manufacturières","Fabrication de produits informatiques, électroniques et optiques","Fabrication d'équipements d'aide à la navigation","26.51A"]
[null,null,null,null,null,null,null,null,null,null,null,null,null,null,null,null,null,null,null,null,null,null,null,null,null,null,null,null,null,null,null,null,null,null,null,null,null,null,null,null,null,"Industries manufacturières","Fabrication de produits informatiques, électroniques et optiques","Fabrication d'instrumentation scientifique et technique","26.51B"]
[null,null,null,null,null,null,null,null,null,null,null,null,null,null,null,null,null,null,null,null,null,null,null,null,null,null,null,null,null,null,null,null,null,null,null,null,null,null,null,null,null,"Industries manufacturières","Fabrication de produits informatiques, électroniques et optiques","Horlogerie","26.52Z"]
[null,null,null,null,null,null,null,null,null,null,null,null,null,null,null,null,null,null,null,null,null,null,null,null,null,null,null,null,null,null,null,null,null,null,null,null,null,null,null,null,null,"Industries manufacturières","Fabrication de produits informatiques, électroniques et optiques","Fabrication d'équipements d'irradiation médicale, d'équipements électromédicaux et électrothérapeutiques","26.60Z"]
[null,null,null,null,null,null,null,null,null,null,null,null,null,null,null,null,null,null,null,null,null,null,null,null,null,null,null,null,null,null,null,null,null,null,null,null,null,null,null,null,null,"Industries manufacturières","Fabrication de produits informatiques, électroniques et optiques","Fabrication de matériels optique et photographique","26.70Z"]
[null,null,null,null,null,null,null,null,null,null,null,null,null,null,null,null,null,null,null,null,null,null,null,null,null,null,null,null,null,null,null,null,null,null,null,null,null,null,null,null,null,"Industries manufacturières","Fabrication de produits informatiques, électroniques et optiques","Fabrication de supports magnétiques et optiques","26.80Z"]
[null,null,null,null,null,null,null,null,null,null,null,null,null,null,null,null,null,null,null,null,null,null,null,null,null,null,null,null,null,null,null,null,null,null,null,null,null,null,null,null,null,"Industries manufacturières","Fabrication d'équipements électriques","Fabrication de moteurs, génératrices et transformateurs électriques","27.11Z"]
[null,null,null,null,null,null,null,null,null,null,null,null,null,null,null,null,null,null,null,null,null,null,null,null,null,null,null,null,null,null,null,null,null,null,null,null,null,null,null,null,null,"Industries manufacturières","Fabrication d'équipements électriques","Fabrication de matériel de distribution et de commande électrique","27.12Z"]
[null,null,null,null,null,null,null,null,null,null,null,null,null,null,null,null,null,null,null,null,null,null,null,null,null,null,null,null,null,null,null,null,null,null,null,null,null,null,null,null,null,"Industries manufacturières","Fabrication d'équipements électriques","Fabrication de piles et d'accumulateurs électriques","27.20Z"]
[null,null,null,null,null,null,null,null,null,null,null,null,null,null,null,null,null,null,null,null,null,null,null,null,null,null,null,null,null,null,null,null,null,null,null,null,null,null,null,null,null,"Industries manufacturières","Fabrication d'équipements électriques","Fabrication de câbles de fibres optiques","27.31Z"]
[null,null,null,null,null,null,null,null,null,null,null,null,null,null,null,null,null,null,null,null,null,null,null,null,null,null,null,null,null,null,null,null,null,null,null,null,null,null,null,null,null,"Industries manufacturières","Fabrication d'équipements électriques","Fabrication d'autres fils et câbles électroniques ou électriques","27.32Z"]
[null,null,null,null,null,null,null,null,null,null,null,null,null,null,null,null,null,null,null,null,null,null,null,null,null,null,null,null,null,null,null,null,null,null,null,null,null,null,null,null,null,"Industries manufacturières","Fabrication d'équipements électriques","Fabrication de matériel d'installation électrique","27.33Z"]
[null,null,null,null,null,null,null,null,null,null,null,null,null,null,null,null,null,null,null,null,null,null,null,null,null,null,null,null,null,null,null,null,null,null,null,null,null,null,null,null,null,"Industries manufacturières","Fabrication d'équipements électriques","Fabrication d'appareils d'éclairage électrique","27.40Z"]
[null,null,null,null,null,null,null,null,null,null,null,null,null,null,null,null,null,null,null,null,null,null,null,null,null,null,null,null,null,null,null,null,null,null,null,null,null,null,null,null,null,"Industries manufacturières","Fabrication d'équipements électriques","Fabrication d'appareils électroménagers","27.51Z"]
[null,null,null,null,null,null,null,null,null,null,null,null,null,null,null,null,null,null,null,null,null,null,null,null,null,null,null,null,null,null,null,null,null,null,null,null,null,null,null,null,null,"Industries manufacturières","Fabrication d'équipements électriques","Fabrication d'appareils ménagers non électriques","27.52Z"]
[null,null,null,null,null,null,null,null,null,null,null,null,null,null,null,null,null,null,null,null,null,null,null,null,null,null,null,null,null,null,null,null,null,null,null,null,null,null,null,null,null,"Industries manufacturières","Fabrication d'équipements électriques","Fabrication d'autres matériels électriques","27.90Z"]
[null,null,null,null,null,null,null,null,null,null,null,null,null,null,null,null,null,null,null,null,null,null,null,null,null,null,null,null,null,null,null,null,null,null,null,null,null,null,null,null,null,"Industries manufacturières","Fabrication de machines et équipements n.c.a.","Fabrication de moteurs et turbines, à l'exception des moteurs d'avions et de véhicules","28.11Z"]
[null,null,null,null,null,null,null,null,null,null,null,null,null,null,null,null,null,null,null,null,null,null,null,null,null,null,null,null,null,null,null,null,null,null,null,null,null,null,null,null,null,"Industries manufacturières","Fabrication de machines et équipements n.c.a.","Fabrication d'équipements hydrauliques et pneumatiques","28.12Z"]
[null,null,null,null,null,null,null,null,null,null,null,null,null,null,null,null,null,null,null,null,null,null,null,null,null,null,null,null,null,null,null,null,null,null,null,null,null,null,null,null,null,"Industries manufacturières","Fabrication de machines et équipements n.c.a.","Fabrication d'autres pompes et compresseurs","28.13Z"]
[null,null,null,null,null,null,null,null,null,null,null,null,null,null,null,null,null,null,null,null,null,null,null,null,null,null,null,null,null,null,null,null,null,null,null,null,null,null,null,null,null,"Industries manufacturières","Fabrication de machines et équipements n.c.a.","Fabrication d'autres articles de robinetterie","28.14Z"]
[null,null,null,null,null,null,null,null,null,null,null,null,null,null,null,null,null,null,null,null,null,null,null,null,null,null,null,null,null,null,null,null,null,null,null,null,null,null,null,null,null,"Industries manufacturières","Fabrication de machines et équipements n.c.a.","Fabrication d'engrenages et d'organes mécaniques de transmission","28.15Z"]
[null,null,null,null,null,null,null,null,null,null,null,null,null,null,null,null,null,null,null,null,null,null,null,null,null,null,null,null,null,null,null,null,null,null,null,null,null,null,null,null,null,"Industries manufacturières","Fabrication de machines et équipements n.c.a.","Fabrication de fours et brûleurs","28.21Z"]
[null,null,null,null,null,null,null,null,null,null,null,null,null,null,null,null,null,null,null,null,null,null,null,null,null,null,null,null,null,null,null,null,null,null,null,null,null,null,null,null,null,"Industries manufacturières","Fabrication de machines et équipements n.c.a.","Fabrication de matériel de levage et de manutention","28.22Z"]
[null,null,null,null,null,null,null,null,null,null,null,null,null,null,null,null,null,null,null,null,null,null,null,null,null,null,null,null,null,null,null,null,null,null,null,null,null,null,null,null,null,"Industries manufacturières","Fabrication de machines et équipements n.c.a.","Fabrication de machines et d'équipements de bureau (à l'exception des ordinateurs et équipements périphériques)","28.23Z"]
[null,null,null,null,null,null,null,null,null,null,null,null,null,null,null,null,null,null,null,null,null,null,null,null,null,null,null,null,null,null,null,null,null,null,null,null,null,null,null,null,null,"Industries manufacturières","Fabrication de machines et équipements n.c.a.","Fabrication d'outillage portatif à moteur incorporé","28.24Z"]
[null,null,null,null,null,null,null,null,null,null,null,null,null,null,null,null,null,null,null,null,null,null,null,null,null,null,null,null,null,null,null,null,null,null,null,null,null,null,null,null,null,"Industries manufacturières","Fabrication de machines et équipements n.c.a.","Fabrication d'équipements aérauliques et frigorifiques industriels","28.25Z"]
[null,null,null,null,null,null,null,null,null,null,null,null,null,null,null,null,null,null,null,null,null,null,null,null,null,null,null,null,null,null,null,null,null,null,null,null,null,null,null,null,null,"Industries manufacturières","Fabrication de machines et équipements n.c.a.","Fabrication d'équipements d'emballage, de conditionnement et de pesage","28.29A"]
[null,null,null,null,null,null,null,null,null,null,null,null,null,null,null,null,null,null,null,null,null,null,null,null,null,null,null,null,null,null,null,null,null,null,null,null,null,null,null,null,null,"Industries manufacturières","Fabrication de machines et équipements n.c.a.","Fabrication d'autres machines d'usage général","28.29B"]
[null,null,null,null,null,null,null,null,null,null,null,null,null,null,null,null,null,null,null,null,null,null,null,null,null,null,null,null,null,null,null,null,null,null,null,null,null,null,null,null,null,"Industries manufacturières","Fabrication de machines et équipements n.c.a.","Fabrication de machines agricoles et forestières","28.30Z"]
[null,null,null,null,null,null,null,null,null,null,null,null,null,null,null,null,null,null,null,null,null,null,null,null,null,null,null,null,null,null,null,null,null,null,null,null,null,null,null,null,null,"Industries manufacturières","Fabrication de machines et équipements n.c.a.","Fabrication de machines-outils pour le travail des métaux","28.41Z"]
[null,null,null,null,null,null,null,null,null,null,null,null,null,null,null,null,null,null,null,null,null,null,null,null,null,null,null,null,null,null,null,null,null,null,null,null,null,null,null,null,null,"Industries manufacturières","Fabrication de machines et équipements n.c.a.","Fabrication d'autres machines-outils","28.49Z"]
[null,null,null,null,null,null,null,null,null,null,null,null,null,null,null,null,null,null,null,null,null,null,null,null,null,null,null,null,null,null,null,null,null,null,null,null,null,null,null,null,null,"Industries manufacturières","Fabrication de machines et équipements n.c.a.","Fabrication de machines pour la métallurgie","28.91Z"]
[null,null,null,null,null,null,null,null,null,null,null,null,null,null,null,null,null,null,null,null,null,null,null,null,null,null,null,null,null,null,null,null,null,null,null,null,null,null,null,null,null,"Industries manufacturières","Fabrication de machines et équipements n.c.a.","Fabrication de machines pour l'extraction ou la construction","28.92Z"]
[null,null,null,null,null,null,null,null,null,null,null,null,null,null,null,null,null,null,null,null,null,null,null,null,null,null,null,null,null,null,null,null,null,null,null,null,null,null,null,null,null,"Industries manufacturières","Fabrication de machines et équipements n.c.a.","Fabrication de machines pour l'industrie agro-alimentaire","28.93Z"]
[null,null,null,null,null,null,null,null,null,null,null,null,null,null,null,null,null,null,null,null,null,null,null,null,null,null,null,null,null,null,null,null,null,null,null,null,null,null,null,null,null,"Industries manufacturières","Fabrication de machines et équipements n.c.a.","Fabrication de machines pour les industries textiles","28.94Z"]
[null,null,null,null,null,null,null,null,null,null,null,null,null,null,null,null,null,null,null,null,null,null,null,null,null,null,null,null,null,null,null,null,null,null,null,null,null,null,null,null,null,"Industries manufacturières","Fabrication de machines et équipements n.c.a.","Fabrication de machines pour les industries du papier et du carton","28.95Z"]
[null,null,null,null,null,null,null,null,null,null,null,null,null,null,null,null,null,null,null,null,null,null,null,null,null,null,null,null,null,null,null,null,null,null,null,null,null,null,null,null,null,"Industries manufacturières","Fabrication de machines et équipements n.c.a.","Fabrication de machines pour le travail du caoutchouc ou des plastiques","28.96Z"]
[null,null,null,null,null,null,null,null,null,null,null,null,null,null,null,null,null,null,null,null,null,null,null,null,null,null,null,null,null,null,null,null,null,null,null,null,null,null,null,null,null,"Industries manufacturières","Fabrication de machines et équipements n.c.a.","Fabrication de machines d'imprimerie","28.99A"]
[null,null,null,null,null,null,null,null,null,null,null,null,null,null,null,null,null,null,null,null,null,null,null,null,null,null,null,null,null,null,null,null,null,null,null,null,null,null,null,null,null,"Industries manufacturières","Fabrication de machines et équipements n.c.a.","Fabrication d'autres machines spécialisées","28.99B"]
[null,null,null,null,null,null,null,null,null,null,null,null,null,null,null,null,null,null,null,null,null,null,null,null,null,null,null,null,null,null,null,null,null,null,null,null,null,null,null,null,null,"Industries manufacturières","Industrie automobile","Construction de véhicules automobiles","29.10Z"]
[null,null,null,null,null,null,null,null,null,null,null,null,null,null,null,null,null,null,null,null,null,null,null,null,null,null,null,null,null,null,null,null,null,null,null,null,null,null,null,null,null,"Industries manufacturières","Industrie automobile","Fabrication de carrosseries et remorques","29.20Z"]
[null,null,null,null,null,null,null,null,null,null,null,null,null,null,null,null,null,null,null,null,null,null,null,null,null,null,null,null,null,null,null,null,null,null,null,null,null,null,null,null,null,"Industries manufacturières","Industrie automobile","Fabrication d'équipements électriques et électroniques automobiles","29.31Z"]
[null,null,null,null,null,null,null,null,null,null,null,null,null,null,null,null,null,null,null,null,null,null,null,null,null,null,null,null,null,null,null,null,null,null,null,null,null,null,null,null,null,"Industries manufacturières","Industrie automobile","Fabrication d'autres équipements automobiles","29.32Z"]
[null,null,null,null,null,null,null,null,null,null,null,null,null,null,null,null,null,null,null,null,null,null,null,null,null,null,null,null,null,null,null,null,null,null,null,null,null,null,null,null,null,"Industries manufacturières","Fabrication d'autres matériels de transport","Construction de navires et de structures flottantes","30.11Z"]
[null,null,null,null,null,null,null,null,null,null,null,null,null,null,null,null,null,null,null,null,null,null,null,null,null,null,null,null,null,null,null,null,null,null,null,null,null,null,null,null,null,"Industries manufacturières","Fabrication d'autres matériels de transport","Construction de bateaux de plaisance","30.12Z"]
[null,null,null,null,null,null,null,null,null,null,null,null,null,null,null,null,null,null,null,null,null,null,null,null,null,null,null,null,null,null,null,null,null,null,null,null,null,null,null,null,null,"Industries manufacturières","Fabrication d'autres matériels de transport","Construction de locomotives et d'autre matériel ferroviaire roulant","30.20Z"]
[null,null,null,null,null,null,null,null,null,null,null,null,null,null,null,null,null,null,null,null,null,null,null,null,null,null,null,null,null,null,null,null,null,null,null,null,null,null,null,null,null,"Industries manufacturières","Fabrication d'autres matériels de transport","Construction aéronautique et spatiale","30.30Z"]
[null,null,null,null,null,null,null,null,null,null,null,null,null,null,null,null,null,null,null,null,null,null,null,null,null,null,null,null,null,null,null,null,null,null,null,null,null,null,null,null,null,"Industries manufacturières","Fabrication d'autres matériels de transport","Construction de véhicules militaires de combat","30.40Z"]
[null,null,null,null,null,null,null,null,null,null,null,null,null,null,null,null,null,null,null,null,null,null,null,null,null,null,null,null,null,null,null,null,null,null,null,null,null,null,null,null,null,"Industries manufacturières","Fabrication d'autres matériels de transport","Fabrication de motocycles","30.91Z"]
[null,null,null,null,null,null,null,null,null,null,null,null,null,null,null,null,null,null,null,null,null,null,null,null,null,null,null,null,null,null,null,null,null,null,null,null,null,null,null,null,null,"Industries manufacturières","Fabrication d'autres matériels de transport","Fabrication de bicyclettes et de véhicules pour invalides","30.92Z"]
[null,null,null,null,null,null,null,null,null,null,null,null,null,null,null,null,null,null,null,null,null,null,null,null,null,null,null,null,null,null,null,null,null,null,null,null,null,null,null,null,null,"Industries manufacturières","Fabrication d'autres matériels de transport","Fabrication d'autres équipements de transport n.c.a.","30.99Z"]
[null,null,null,null,null,null,null,null,null,null,null,null,null,null,null,null,null,null,null,null,null,null,null,null,null,null,null,null,null,null,null,null,null,null,null,null,null,null,null,null,null,"Industries manufacturières","Fabrication de meubles","Fabrication de meubles de bureau et de magasin","31.01Z"]
[null,null,null,null,null,null,null,null,null,null,null,null,null,null,null,null,null,null,null,null,null,null,null,null,null,null,null,null,null,null,null,null,null,null,null,null,null,null,null,null,null,"Industries manufacturières","Fabrication de meubles","Fabrication de meubles de cuisine","31.02Z"]
[null,null,null,null,null,null,null,null,null,null,null,null,null,null,null,null,null,null,null,null,null,null,null,null,null,null,null,null,null,null,null,null,null,null,null,null,null,null,null,null,null,"Industries manufacturières","Fabrication de meubles","Fabrication de matelas","31.03Z"]
[null,null,null,null,null,null,null,null,null,null,null,null,null,null,null,null,null,null,null,null,null,null,null,null,null,null,null,null,null,null,null,null,null,null,null,null,null,null,null,null,null,"Industries manufacturières","Fabrication de meubles","Fabrication de sièges d'ameublement d'intérieur","31.09A"]
[null,null,null,null,null,null,null,null,null,null,null,null,null,null,null,null,null,null,null,null,null,null,null,null,null,null,null,null,null,null,null,null,null,null,null,null,null,null,null,null,null,"Industries manufacturières","Fabrication de meubles","Fabrication d'autres meubles et industries connexes de l'ameublement","31.09B"]
[null,null,null,null,null,null,null,null,null,null,null,null,null,null,null,null,null,null,null,null,null,null,null,null,null,null,null,null,null,null,null,null,null,null,null,null,null,null,null,null,null,"Industries manufacturières","Autres industries manufacturières","Frappe de monnaie","32.11Z"]
[null,null,null,null,null,null,null,null,null,null,null,null,null,null,null,null,null,null,null,null,null,null,null,null,null,null,null,null,null,null,null,null,null,null,null,null,null,null,null,null,null,"Industries manufacturières","Autres industries manufacturières","Fabrication d'articles de joaillerie et bijouterie","32.12Z"]
[null,null,null,null,null,null,null,null,null,null,null,null,null,null,null,null,null,null,null,null,null,null,null,null,null,null,null,null,null,null,null,null,null,null,null,null,null,null,null,null,null,"Industries manufacturières","Autres industries manufacturières","Fabrication d'articles de bijouterie fantaisie et articles similaires","32.13Z"]
[null,null,null,null,null,null,null,null,null,null,null,null,null,null,null,null,null,null,null,null,null,null,null,null,null,null,null,null,null,null,null,null,null,null,null,null,null,null,null,null,null,"Industries manufacturières","Autres industries manufacturières","Fabrication d'instruments de musique","32.20Z"]
[null,null,null,null,null,null,null,null,null,null,null,null,null,null,null,null,null,null,null,null,null,null,null,null,null,null,null,null,null,null,null,null,null,null,null,null,null,null,null,null,null,"Industries manufacturières","Autres industries manufacturières","Fabrication d'articles de sport","32.30Z"]
[null,null,null,null,null,null,null,null,null,null,null,null,null,null,null,null,null,null,null,null,null,null,null,null,null,null,null,null,null,null,null,null,null,null,null,null,null,null,null,null,null,"Industries manufacturières","Autres industries manufacturières","Fabrication de jeux et jouets","32.40Z"]
[null,null,null,null,null,null,null,null,null,null,null,null,null,null,null,null,null,null,null,null,null,null,null,null,null,null,null,null,null,null,null,null,null,null,null,null,null,null,null,null,null,"Industries manufacturières","Autres industries manufacturières","Fabrication de matériel médico-chirurgical et dentaire","32.50A"]
[null,null,null,null,null,null,null,null,null,null,null,null,null,null,null,null,null,null,null,null,null,null,null,null,null,null,null,null,null,null,null,null,null,null,null,null,null,null,null,null,null,"Industries manufacturières","Autres industries manufacturières","Fabrication de lunettes","32.50B"]
[null,null,null,null,null,null,null,null,null,null,null,null,null,null,null,null,null,null,null,null,null,null,null,null,null,null,null,null,null,null,null,null,null,null,null,null,null,null,null,null,null,"Industries manufacturières","Autres industries manufacturières","Fabrication d'articles de brosserie","32.91Z"]
[null,null,null,null,null,null,null,null,null,null,null,null,null,null,null,null,null,null,null,null,null,null,null,null,null,null,null,null,null,null,null,null,null,null,null,null,null,null,null,null,null,"Industries manufacturières","Autres industries manufacturières","Autres activités manufacturières n.c.a.","32.99Z"]
[null,null,null,null,null,null,null,null,null,null,null,null,null,null,null,null,null,null,null,null,null,null,null,null,null,null,null,null,null,null,null,null,null,null,null,null,null,null,null,null,null,"Industries manufacturières","Réparation et installation de machines et d'équipements","Réparation d'ouvrages en métaux","33.11Z"]
[null,null,null,null,null,null,null,null,null,null,null,null,null,null,null,null,null,null,null,null,null,null,null,null,null,null,null,null,null,null,null,null,null,null,null,null,null,null,null,null,null,"Industries manufacturières","Réparation et installation de machines et d'équipements","Réparation de machines et équipements mécaniques","33.12Z"]
[null,null,null,null,null,null,null,null,null,null,null,null,null,null,null,null,null,null,null,null,null,null,null,null,null,null,null,null,null,null,null,null,null,null,null,null,null,null,null,null,null,"Industries manufacturières","Réparation et installation de machines et d'équipements","Réparation de matériels électroniques et optiques","33.13Z"]
[null,null,null,null,null,null,null,null,null,null,null,null,null,null,null,null,null,null,null,null,null,null,null,null,null,null,null,null,null,null,null,null,null,null,null,null,null,null,null,null,null,"Industries manufacturières","Réparation et installation de machines et d'équipements","Réparation d'équipements électriques","33.14Z"]
[null,null,null,null,null,null,null,null,null,null,null,null,null,null,null,null,null,null,null,null,null,null,null,null,null,null,null,null,null,null,null,null,null,null,null,null,null,null,null,null,null,"Industries manufacturières","Réparation et installation de machines et d'équipements","Réparation et maintenance navale","33.15Z"]
[null,null,null,null,null,null,null,null,null,null,null,null,null,null,null,null,null,null,null,null,null,null,null,null,null,null,null,null,null,null,null,null,null,null,null,null,null,null,null,null,null,"Industries manufacturières","Réparation et installation de machines et d'équipements","Réparation et maintenance d'aéronefs et d'engins spatiaux","33.16Z"]
[null,null,null,null,null,null,null,null,null,null,null,null,null,null,null,null,null,null,null,null,null,null,null,null,null,null,null,null,null,null,null,null,null,null,null,null,null,null,null,null,null,"Industries manufacturières","Réparation et installation de machines et d'équipements","Réparation et maintenance d'autres équipements de transport","33.17Z"]
[null,null,null,null,null,null,null,null,null,null,null,null,null,null,null,null,null,null,null,null,null,null,null,null,null,null,null,null,null,null,null,null,null,null,null,null,null,null,null,null,null,"Industries manufacturières","Réparation et installation de machines et d'équipements","Réparation d'autres équipements","33.19Z"]
[null,null,null,null,null,null,null,null,null,null,null,null,null,null,null,null,null,null,null,null,null,null,null,null,null,null,null,null,null,null,null,null,null,null,null,null,null,null,null,null,null,"Industries manufacturières","Réparation et installation de machines et d'équipements","Installation de structures métalliques, chaudronnées et de tuyauterie","33.20A"]
[null,null,null,null,null,null,null,null,null,null,null,null,null,null,null,null,null,null,null,null,null,null,null,null,null,null,null,null,null,null,null,null,null,null,null,null,null,null,null,null,null,"Industries manufacturières","Réparation et installation de machines et d'équipements","Installation de machines et équipements mécaniques","33.20B"]
[null,null,null,null,null,null,null,null,null,null,null,null,null,null,null,null,null,null,null,null,null,null,null,null,null,null,null,null,null,null,null,null,null,null,null,null,null,null,null,null,null,"Industries manufacturières","Réparation et installation de machines et d'équipements","Conception d'ensemble et assemblage sur site industriel d'équipements de contrôle des processus industriels","33.20C"]
[null,null,null,null,null,null,null,null,null,null,null,null,null,null,null,null,null,null,null,null,null,null,null,null,null,null,null,null,null,null,null,null,null,null,null,null,null,null,null,null,null,"Industries manufacturières","Réparation et installation de machines et d'équipements","Installation d'équipements électriques, de matériels électroniques et optiques ou d'autres matériels","33.20D"]
[null,null,null,null,null,null,null,null,null,null,null,null,null,null,null,null,null,null,null,null,null,null,null,null,null,null,null,null,null,null,null,null,null,null,null,null,null,null,null,null,null,"Électricité, gaz, vapeur et air conditionné","Production et distribution d'électricité, de gaz, de vapeur et d'air conditionné","Production d'électricité","35.11Z"]
[null,null,null,null,null,null,null,null,null,null,null,null,null,null,null,null,null,null,null,null,null,null,null,null,null,null,null,null,null,null,null,null,null,null,null,null,null,null,null,null,null,"Électricité, gaz, vapeur et air conditionné","Production et distribution d'électricité, de gaz, de vapeur et d'air conditionné","Transport d'électricité","35.12Z"]
[null,null,null,null,null,null,null,null,null,null,null,null,null,null,null,null,null,null,null,null,null,null,null,null,null,null,null,null,null,null,null,null,null,null,null,null,null,null,null,null,null,"Électricité, gaz, vapeur et air conditionné","Production et distribution d'électricité, de gaz, de vapeur et d'air conditionné","Distribution d'électricité","35.13Z"]
[null,null,null,null,null,null,null,null,null,null,null,null,null,null,null,null,null,null,null,null,null,null,null,null,null,null,null,null,null,null,null,null,null,null,null,null,null,null,null,null,null,"Électricité, gaz, vapeur et air conditionné","Production et distribution d'électricité, de gaz, de vapeur et d'air conditionné","Commerce d'électricité","35.14Z"]
[null,null,null,null,null,null,null,null,null,null,null,null,null,null,null,null,null,null,null,null,null,null,null,null,null,null,null,null,null,null,null,null,null,null,null,null,null,null,null,null,null,"Électricité, gaz, vapeur et air conditionné","Production et distribution d'électricité, de gaz, de vapeur et d'air conditionné","Production de combustibles gazeux","35.21Z"]
[null,null,null,null,null,null,null,null,null,null,null,null,null,null,null,null,null,null,null,null,null,null,null,null,null,null,null,null,null,null,null,null,null,null,null,null,null,null,null,null,null,"Électricité, gaz, vapeur et air conditionné","Production et distribution d'électricité, de gaz, de vapeur et d'air conditionné","Distribution de combustibles gazeux par conduites","35.22Z"]
[null,null,null,null,null,null,null,null,null,null,null,null,null,null,null,null,null,null,null,null,null,null,null,null,null,null,null,null,null,null,null,null,null,null,null,null,null,null,null,null,null,"Électricité, gaz, vapeur et air conditionné","Production et distribution d'électricité, de gaz, de vapeur et d'air conditionné","Commerce de combustibles gazeux par conduites","35.23Z"]
[null,null,null,null,null,null,null,null,null,null,null,null,null,null,null,null,null,null,null,null,null,null,null,null,null,null,null,null,null,null,null,null,null,null,null,null,null,null,null,null,null,"Électricité, gaz, vapeur et air conditionné","Production et distribution d'électricité, de gaz, de vapeur et d'air conditionné","Production et distribution de vapeur et d'air conditionné","35.30Z"]
[null,null,null,null,null,null,null,null,null,null,null,null,null,null,null,null,null,null,null,null,null,null,null,null,null,null,null,null,null,null,null,null,null,null,null,null,null,null,null,null,null,"Production et distribution d’ eau ; assainissement, gestion des déchets et dépollution","Captage, traitement et distribution d'eau","Captage, traitement et distribution d'eau","36.00Z"]
[null,null,null,null,null,null,null,null,null,null,null,null,null,null,null,null,null,null,null,null,null,null,null,null,null,null,null,null,null,null,null,null,null,null,null,null,null,null,null,null,null,"Production et distribution d’ eau ; assainissement, gestion des déchets et dépollution","Collecte et traitement des eaux usées","Collecte et traitement des eaux usées","37.00Z"]
[null,null,null,null,null,null,null,null,null,null,null,null,null,null,null,null,null,null,null,null,null,null,null,null,null,null,null,null,null,null,null,null,null,null,null,null,null,null,null,null,null,"Production et distribution d’ eau ; assainissement, gestion des déchets et dépollution","Collecte, traitement et élimination des déchets ; récupération","Collecte des déchets non dangereux","38.11Z"]
[null,null,null,null,null,null,null,null,null,null,null,null,null,null,null,null,null,null,null,null,null,null,null,null,null,null,null,null,null,null,null,null,null,null,null,null,null,null,null,null,null,"Production et distribution d’ eau ; assainissement, gestion des déchets et dépollution","Collecte, traitement et élimination des déchets ; récupération","Collecte des déchets dangereux","38.12Z"]
[null,null,null,null,null,null,null,null,null,null,null,null,null,null,null,null,null,null,null,null,null,null,null,null,null,null,null,null,null,null,null,null,null,null,null,null,null,null,null,null,null,"Production et distribution d’ eau ; assainissement, gestion des déchets et dépollution","Collecte, traitement et élimination des déchets ; récupération","Traitement et élimination des déchets non dangereux","38.21Z"]
[null,null,null,null,null,null,null,null,null,null,null,null,null,null,null,null,null,null,null,null,null,null,null,null,null,null,null,null,null,null,null,null,null,null,null,null,null,null,null,null,null,"Production et distribution d’ eau ; assainissement, gestion des déchets et dépollution","Collecte, traitement et élimination des déchets ; récupération","Traitement et élimination des déchets dangereux","38.22Z"]
[null,null,null,null,null,null,null,null,null,null,null,null,null,null,null,null,null,null,null,null,null,null,null,null,null,null,null,null,null,null,null,null,null,null,null,null,null,null,null,null,null,"Production et distribution d’ eau ; assainissement, gestion des déchets et dépollution","Collecte, traitement et élimination des déchets ; récupération","Démantèlement d'épaves","38.31Z"]
[null,null,null,null,null,null,null,null,null,null,null,null,null,null,null,null,null,null,null,null,null,null,null,null,null,null,null,null,null,null,null,null,null,null,null,null,null,null,null,null,null,"Production et distribution d’ eau ; assainissement, gestion des déchets et dépollution","Collecte, traitement et élimination des déchets ; récupération","Récupération de déchets triés","38.32Z"]
[null,null,null,null,null,null,null,null,null,null,null,null,null,null,null,null,null,null,null,null,null,null,null,null,null,null,null,null,null,null,null,null,null,null,null,null,null,null,null,null,null,"Production et distribution d’ eau ; assainissement, gestion des déchets et dépollution","Dépollution et autres services de gestion des déchets","Dépollution et autres services de gestion des déchets","39.00Z"]
[null,null,null,null,null,null,null,null,null,null,null,null,null,null,null,null,null,null,null,null,null,null,null,null,null,null,null,null,null,null,null,null,null,null,null,null,null,null,null,null,null,"Services de transport et d’entreposage","Transports terrestres et transport par conduites","Transport ferroviaire interurbain de voyageurs","49.10Z"]
[null,null,null,null,null,null,null,null,null,null,null,null,null,null,null,null,null,null,null,null,null,null,null,null,null,null,null,null,null,null,null,null,null,null,null,null,null,null,null,null,null,"Services de transport et d’entreposage","Transports terrestres et transport par conduites","Transports ferroviaires de fret","49.20Z"]
[null,null,null,null,null,null,null,null,null,null,null,null,null,null,null,null,null,null,null,null,null,null,null,null,null,null,null,null,null,null,null,null,null,null,null,null,null,null,null,null,null,"Services de transport et d’entreposage","Transports terrestres et transport par conduites","Transports urbains et suburbains de voyageurs","49.31Z"]
[null,null,null,null,null,null,null,null,null,null,null,null,null,null,null,null,null,null,null,null,null,null,null,null,null,null,null,null,null,null,null,null,null,null,null,null,null,null,null,null,null,"Services de transport et d’entreposage","Transports terrestres et transport par conduites","Transports de voyageurs par taxis","49.32Z"]
[null,null,null,null,null,null,null,null,null,null,null,null,null,null,null,null,null,null,null,null,null,null,null,null,null,null,null,null,null,null,null,null,null,null,null,null,null,null,null,null,null,"Services de transport et d’entreposage","Transports terrestres et transport par conduites","Transports routiers réguliers de voyageurs","49.39A"]
[null,null,null,null,null,null,null,null,null,null,null,null,null,null,null,null,null,null,null,null,null,null,null,null,null,null,null,null,null,null,null,null,null,null,null,null,null,null,null,null,null,"Services de transport et d’entreposage","Transports terrestres et transport par conduites","Autres transports routiers de voyageurs","49.39B"]
[null,null,null,null,null,null,null,null,null,null,null,null,null,null,null,null,null,null,null,null,null,null,null,null,null,null,null,null,null,null,null,null,null,null,null,null,null,null,null,null,null,"Services de transport et d’entreposage","Transports terrestres et transport par conduites","Téléphériques et remontées mécaniques","49.39C"]
[null,null,null,null,null,null,null,null,null,null,null,null,null,null,null,null,null,null,null,null,null,null,null,null,null,null,null,null,null,null,null,null,null,null,null,null,null,null,null,null,null,"Services de transport et d’entreposage","Transports terrestres et transport par conduites","Transports routiers de fret interurbains","49.41A"]
[null,null,null,null,null,null,null,null,null,null,null,null,null,null,null,null,null,null,null,null,null,null,null,null,null,null,null,null,null,null,null,null,null,null,null,null,null,null,null,null,null,"Services de transport et d’entreposage","Transports terrestres et transport par conduites","Transports routiers de fret de proximité","49.41B"]
[null,null,null,null,null,null,null,null,null,null,null,null,null,null,null,null,null,null,null,null,null,null,null,null,null,null,null,null,null,null,null,null,null,null,null,null,null,null,null,null,null,"Services de transport et d’entreposage","Transports terrestres et transport par conduites","Location de camions avec chauffeur","49.41C"]
[null,null,null,null,null,null,null,null,null,null,null,null,null,null,null,null,null,null,null,null,null,null,null,null,null,null,null,null,null,null,null,null,null,null,null,null,null,null,null,null,null,"Services de transport et d’entreposage","Transports terrestres et transport par conduites","Services de déménagement","49.42Z"]
[null,null,null,null,null,null,null,null,null,null,null,null,null,null,null,null,null,null,null,null,null,null,null,null,null,null,null,null,null,null,null,null,null,null,null,null,null,null,null,null,null,"Services de transport et d’entreposage","Transports terrestres et transport par conduites","Transports par conduites","49.50Z"]
[null,null,null,null,null,null,null,null,null,null,null,null,null,null,null,null,null,null,null,null,null,null,null,null,null,null,null,null,null,null,null,null,null,null,null,null,null,null,null,null,null,"Services de transport et d’entreposage","Transports par eau","Transports maritimes et côtiers de passagers","50.10Z"]
[null,null,null,null,null,null,null,null,null,null,null,null,null,null,null,null,null,null,null,null,null,null,null,null,null,null,null,null,null,null,null,null,null,null,null,null,null,null,null,null,null,"Services de transport et d’entreposage","Transports par eau","Transports maritimes et côtiers de fret","50.20Z"]
[null,null,null,null,null,null,null,null,null,null,null,null,null,null,null,null,null,null,null,null,null,null,null,null,null,null,null,null,null,null,null,null,null,null,null,null,null,null,null,null,null,"Services de transport et d’entreposage","Transports par eau","Transports fluviaux de passagers","50.30Z"]
[null,null,null,null,null,null,null,null,null,null,null,null,null,null,null,null,null,null,null,null,null,null,null,null,null,null,null,null,null,null,null,null,null,null,null,null,null,null,null,null,null,"Services de transport et d’entreposage","Transports par eau","Transports fluviaux de fret","50.40Z"]
[null,null,null,null,null,null,null,null,null,null,null,null,null,null,null,null,null,null,null,null,null,null,null,null,null,null,null,null,null,null,null,null,null,null,null,null,null,null,null,null,null,"Services de transport et d’entreposage","Transports aériens","Transports aériens de passagers","51.10Z"]
[null,null,null,null,null,null,null,null,null,null,null,null,null,null,null,null,null,null,null,null,null,null,null,null,null,null,null,null,null,null,null,null,null,null,null,null,null,null,null,null,null,"Services de transport et d’entreposage","Transports aériens","Transports aériens de fret","51.21Z"]
[null,null,null,null,null,null,null,null,null,null,null,null,null,null,null,null,null,null,null,null,null,null,null,null,null,null,null,null,null,null,null,null,null,null,null,null,null,null,null,null,null,"Services de transport et d’entreposage","Transports aériens","Transports spatiaux","51.22Z"]
[null,null,null,null,null,null,null,null,null,null,null,null,null,null,null,null,null,null,null,null,null,null,null,null,null,null,null,null,null,null,null,null,null,null,null,null,null,null,null,null,null,"Services de transport et d’entreposage","Entreposage et services auxiliaires des transports","Entreposage et stockage frigorifique","52.10A"]
[null,null,null,null,null,null,null,null,null,null,null,null,null,null,null,null,null,null,null,null,null,null,null,null,null,null,null,null,null,null,null,null,null,null,null,null,null,null,null,null,null,"Services de transport et d’entreposage","Entreposage et services auxiliaires des transports","Entreposage et stockage non frigorifique","52.10B"]
[null,null,null,null,null,null,null,null,null,null,null,null,null,null,null,null,null,null,null,null,null,null,null,null,null,null,null,null,null,null,null,null,null,null,null,null,null,null,null,null,null,"Services de transport et d’entreposage","Entreposage et services auxiliaires des transports","Services auxiliaires des transports terrestres","52.21Z"]
[null,null,null,null,null,null,null,null,null,null,null,null,null,null,null,null,null,null,null,null,null,null,null,null,null,null,null,null,null,null,null,null,null,null,null,null,null,null,null,null,null,"Services de transport et d’entreposage","Entreposage et services auxiliaires des transports","Services auxiliaires des transports par eau","52.22Z"]
[null,null,null,null,null,null,null,null,null,null,null,null,null,null,null,null,null,null,null,null,null,null,null,null,null,null,null,null,null,null,null,null,null,null,null,null,null,null,null,null,null,"Services de transport et d’entreposage","Entreposage et services auxiliaires des transports","Services auxiliaires des transports aériens","52.23Z"]
[null,null,null,null,null,null,null,null,null,null,null,null,null,null,null,null,null,null,null,null,null,null,null,null,null,null,null,null,null,null,null,null,null,null,null,null,null,null,null,null,null,"Services de transport et d’entreposage","Entreposage et services auxiliaires des transports","Manutention portuaire","52.24A"]
[null,null,null,null,null,null,null,null,null,null,null,null,null,null,null,null,null,null,null,null,null,null,null,null,null,null,null,null,null,null,null,null,null,null,null,null,null,null,null,null,null,"Services de transport et d’entreposage","Entreposage et services auxiliaires des transports","Manutention non portuaire","52.24B"]
[null,null,null,null,null,null,null,null,null,null,null,null,null,null,null,null,null,null,null,null,null,null,null,null,null,null,null,null,null,null,null,null,null,null,null,null,null,null,null,null,null,"Services de transport et d’entreposage","Entreposage et services auxiliaires des transports","Messagerie, fret express","52.29A"]
[null,null,null,null,null,null,null,null,null,null,null,null,null,null,null,null,null,null,null,null,null,null,null,null,null,null,null,null,null,null,null,null,null,null,null,null,null,null,null,null,null,"Services de transport et d’entreposage","Entreposage et services auxiliaires des transports","Affrètement et organisation des transports","52.29B"]
[null,null,null,null,null,null,null,null,null,null,null,null,null,null,null,null,null,null,null,null,null,null,null,null,null,null,null,null,null,null,null,null,null,null,null,null,null,null,null,null,null,"Services de transport et d’entreposage","Activités de poste et de courrier","Activités de poste dans le cadre d'une obligation de service universel","53.10Z"]
[null,null,null,null,null,null,null,null,null,null,null,null,null,null,null,null,null,null,null,null,null,null,null,null,null,null,null,null,null,null,null,null,null,null,null,null,null,null,null,null,null,"Services de transport et d’entreposage","Activités de poste et de courrier","Autres activités de poste et de courrier","53.20Z"]
[null,null,null,null,null,null,null,null,null,null,null,null,null,null,null,null,null,null,null,null,null,null,null,null,null,null,null,null,null,null,null,null,null,null,null,null,null,null,null,null,null,"Services d’hébergement et de restauration","Hébergement","Hôtels et hébergement similaire","55.10Z"]
[null,null,null,null,null,null,null,null,null,null,null,null,null,null,null,null,null,null,null,null,null,null,null,null,null,null,null,null,null,null,null,null,null,null,null,null,null,null,null,null,null,"Services d’hébergement et de restauration","Hébergement","Hébergement touristique et autre hébergement de courte durée","55.20Z"]
[null,null,null,null,null,null,null,null,null,null,null,null,null,null,null,null,null,null,null,null,null,null,null,null,null,null,null,null,null,null,null,null,null,null,null,null,null,null,null,null,null,"Services d’hébergement et de restauration","Hébergement","Terrains de camping et parcs pour caravanes ou véhicules de loisirs","55.30Z"]
[null,null,null,null,null,null,null,null,null,null,null,null,null,null,null,null,null,null,null,null,null,null,null,null,null,null,null,null,null,null,null,null,null,null,null,null,null,null,null,null,null,"Services d’hébergement et de restauration","Hébergement","Autres hébergements","55.90Z"]
[null,null,null,null,null,null,null,null,null,null,null,null,null,null,null,null,null,null,null,null,null,null,null,null,null,null,null,null,null,null,null,null,null,null,null,null,null,null,null,null,null,"Services d’hébergement et de restauration","Restauration","Restauration traditionnelle","56.10A"]
[null,null,null,null,null,null,null,null,null,null,null,null,null,null,null,null,null,null,null,null,null,null,null,null,null,null,null,null,null,null,null,null,null,null,null,null,null,null,null,null,null,"Services d’hébergement et de restauration","Restauration","Cafétérias et autres libres-services","56.10B"]
[null,null,null,null,null,null,null,null,null,null,null,null,null,null,null,null,null,null,null,null,null,null,null,null,null,null,null,null,null,null,null,null,null,null,null,null,null,null,null,null,null,"Services d’hébergement et de restauration","Restauration","Restauration de type rapide","56.10C"]
[null,null,null,null,null,null,null,null,null,null,null,null,null,null,null,null,null,null,null,null,null,null,null,null,null,null,null,null,null,null,null,null,null,null,null,null,null,null,null,null,null,"Services d’hébergement et de restauration","Restauration","Services des traiteurs","56.21Z"]
[null,null,null,null,null,null,null,null,null,null,null,null,null,null,null,null,null,null,null,null,null,null,null,null,null,null,null,null,null,null,null,null,null,null,null,null,null,null,null,null,null,"Services d’hébergement et de restauration","Restauration","Restauration collective sous contrat","56.29A"]
[null,null,null,null,null,null,null,null,null,null,null,null,null,null,null,null,null,null,null,null,null,null,null,null,null,null,null,null,null,null,null,null,null,null,null,null,null,null,null,null,null,"Services d’hébergement et de restauration","Restauration","Autres services de restauration n.c.a.","56.29B"]
[null,null,null,null,null,null,null,null,null,null,null,null,null,null,null,null,null,null,null,null,null,null,null,null,null,null,null,null,null,null,null,null,null,null,null,null,null,null,null,null,null,"Services d’hébergement et de restauration","Restauration","Débits de boissons","56.30Z"]
[null,null,null,null,null,null,null,null,null,null,null,null,null,null,null,null,null,null,null,null,null,null,null,null,null,null,null,null,null,null,null,null,null,null,null,null,null,null,null,null,null,"Services d’information et de communication","Édition","Édition de livres","58.11Z"]
[null,null,null,null,null,null,null,null,null,null,null,null,null,null,null,null,null,null,null,null,null,null,null,null,null,null,null,null,null,null,null,null,null,null,null,null,null,null,null,null,null,"Services d’information et de communication","Édition","Édition de répertoires et de fichiers d'adresses","58.12Z"]
[null,null,null,null,null,null,null,null,null,null,null,null,null,null,null,null,null,null,null,null,null,null,null,null,null,null,null,null,null,null,null,null,null,null,null,null,null,null,null,null,null,"Services d’information et de communication","Édition","Édition de journaux","58.13Z"]
[null,null,null,null,null,null,null,null,null,null,null,null,null,null,null,null,null,null,null,null,null,null,null,null,null,null,null,null,null,null,null,null,null,null,null,null,null,null,null,null,null,"Services d’information et de communication","Édition","Édition de revues et périodiques","58.14Z"]
[null,null,null,null,null,null,null,null,null,null,null,null,null,null,null,null,null,null,null,null,null,null,null,null,null,null,null,null,null,null,null,null,null,null,null,null,null,null,null,null,null,"Services d’information et de communication","Édition","Autres activités d'édition","58.19Z"]
[null,null,null,null,null,null,null,null,null,null,null,null,null,null,null,null,null,null,null,null,null,null,null,null,null,null,null,null,null,null,null,null,null,null,null,null,null,null,null,null,null,"Services d’information et de communication","Édition","Édition de jeux électroniques","58.21Z"]
[null,null,null,null,null,null,null,null,null,null,null,null,null,null,null,null,null,null,null,null,null,null,null,null,null,null,null,null,null,null,null,null,null,null,null,null,null,null,null,null,null,"Services d’information et de communication","Édition","Édition de logiciels système et de réseau","58.29A"]
[null,null,null,null,null,null,null,null,null,null,null,null,null,null,null,null,null,null,null,null,null,null,null,null,null,null,null,null,null,null,null,null,null,null,null,null,null,null,null,null,null,"Services d’information et de communication","Édition","Édition de logiciels outils de développement et de langages","58.29B"]
[null,null,null,null,null,null,null,null,null,null,null,null,null,null,null,null,null,null,null,null,null,null,null,null,null,null,null,null,null,null,null,null,null,null,null,null,null,null,null,null,null,"Services d’information et de communication","Édition","Édition de logiciels applicatifs","58.29C"]
[null,null,null,null,null,null,null,null,null,null,null,null,null,null,null,null,null,null,null,null,null,null,null,null,null,null,null,null,null,null,null,null,null,null,null,null,null,null,null,null,null,"Services d’information et de communication","Production de films cinématographiques, de vidéo et de programmes de télévision ; enregistrement sonore et édition musicale","Production de films et de programmes pour la télévision","59.11A"]
[null,null,null,null,null,null,null,null,null,null,null,null,null,null,null,null,null,null,null,null,null,null,null,null,null,null,null,null,null,null,null,null,null,null,null,null,null,null,null,null,null,"Services d’information et de communication","Production de films cinématographiques, de vidéo et de programmes de télévision ; enregistrement sonore et édition musicale","Production de films institutionnels et publicitaires","59.11B"]
[null,null,null,null,null,null,null,null,null,null,null,null,null,null,null,null,null,null,null,null,null,null,null,null,null,null,null,null,null,null,null,null,null,null,null,null,null,null,null,null,null,"Services d’information et de communication","Production de films cinématographiques, de vidéo et de programmes de télévision ; enregistrement sonore et édition musicale","Production de films pour le cinéma","59.11C"]
[null,null,null,null,null,null,null,null,null,null,null,null,null,null,null,null,null,null,null,null,null,null,null,null,null,null,null,null,null,null,null,null,null,null,null,null,null,null,null,null,null,"Services d’information et de communication","Production de films cinématographiques, de vidéo et de programmes de télévision ; enregistrement sonore et édition musicale","Post-production de films cinématographiques, de vidéo et de programmes de télévision","59.12Z"]
[null,null,null,null,null,null,null,null,null,null,null,null,null,null,null,null,null,null,null,null,null,null,null,null,null,null,null,null,null,null,null,null,null,null,null,null,null,null,null,null,null,"Services d’information et de communication","Production de films cinématographiques, de vidéo et de programmes de télévision ; enregistrement sonore et édition musicale","Distribution de films cinématographiques","59.13A"]
[null,null,null,null,null,null,null,null,null,null,null,null,null,null,null,null,null,null,null,null,null,null,null,null,null,null,null,null,null,null,null,null,null,null,null,null,null,null,null,null,null,"Services d’information et de communication","Production de films cinématographiques, de vidéo et de programmes de télévision ; enregistrement sonore et édition musicale","Édition et distribution vidéo","59.13B"]
[null,null,null,null,null,null,null,null,null,null,null,null,null,null,null,null,null,null,null,null,null,null,null,null,null,null,null,null,null,null,null,null,null,null,null,null,null,null,null,null,null,"Services d’information et de communication","Production de films cinématographiques, de vidéo et de programmes de télévision ; enregistrement sonore et édition musicale","Projection de films cinématographiques","59.14Z"]
[null,null,null,null,null,null,null,null,null,null,null,null,null,null,null,null,null,null,null,null,null,null,null,null,null,null,null,null,null,null,null,null,null,null,null,null,null,null,null,null,null,"Services d’information et de communication","Production de films cinématographiques, de vidéo et de programmes de télévision ; enregistrement sonore et édition musicale","Enregistrement sonore et édition musicale","59.20Z"]
[null,null,null,null,null,null,null,null,null,null,null,null,null,null,null,null,null,null,null,null,null,null,null,null,null,null,null,null,null,null,null,null,null,null,null,null,null,null,null,null,null,"Services d’information et de communication","Programmation et diffusion","Édition et diffusion de programmes radio","60.10Z"]
[null,null,null,null,null,null,null,null,null,null,null,null,null,null,null,null,null,null,null,null,null,null,null,null,null,null,null,null,null,null,null,null,null,null,null,null,null,null,null,null,null,"Services d’information et de communication","Programmation et diffusion","Édition de chaînes généralistes","60.20A"]
[null,null,null,null,null,null,null,null,null,null,null,null,null,null,null,null,null,null,null,null,null,null,null,null,null,null,null,null,null,null,null,null,null,null,null,null,null,null,null,null,null,"Services d’information et de communication","Programmation et diffusion","Édition de chaînes thématiques","60.20B"]
[null,null,null,null,null,null,null,null,null,null,null,null,null,null,null,null,null,null,null,null,null,null,null,null,null,null,null,null,null,null,null,null,null,null,null,null,null,null,null,null,null,"Services d’information et de communication","Télécommunications","Télécommunications filaires","61.10Z"]
[null,null,null,null,null,null,null,null,null,null,null,null,null,null,null,null,null,null,null,null,null,null,null,null,null,null,null,null,null,null,null,null,null,null,null,null,null,null,null,null,null,"Services d’information et de communication","Télécommunications","Télécommunications sans fil","61.20Z"]
[null,null,null,null,null,null,null,null,null,null,null,null,null,null,null,null,null,null,null,null,null,null,null,null,null,null,null,null,null,null,null,null,null,null,null,null,null,null,null,null,null,"Services d’information et de communication","Télécommunications","Télécommunications par satellite","61.30Z"]
[null,null,null,null,null,null,null,null,null,null,null,null,null,null,null,null,null,null,null,null,null,null,null,null,null,null,null,null,null,null,null,null,null,null,null,null,null,null,null,null,null,"Services d’information et de communication","Télécommunications","Autres activités de télécommunication","61.90Z"]
[null,null,null,null,null,null,null,null,null,null,null,null,null,null,null,null,null,null,null,null,null,null,null,null,null,null,null,null,null,null,null,null,null,null,null,null,null,null,null,null,null,"Services d’information et de communication","Programmation, conseil et autres activités informatiques","Programmation informatique","62.01Z"]
[null,null,null,null,null,null,null,null,null,null,null,null,null,null,null,null,null,null,null,null,null,null,null,null,null,null,null,null,null,null,null,null,null,null,null,null,null,null,null,null,null,"Services d’information et de communication","Programmation, conseil et autres activités informatiques","Conseil en systèmes et logiciels informatiques","62.02A"]
[null,null,null,null,null,null,null,null,null,null,null,null,null,null,null,null,null,null,null,null,null,null,null,null,null,null,null,null,null,null,null,null,null,null,null,null,null,null,null,null,null,"Services d’information et de communication","Programmation, conseil et autres activités informatiques","Tierce maintenance de systèmes et d'applications informatiques","62.02B"]
[null,null,null,null,null,null,null,null,null,null,null,null,null,null,null,null,null,null,null,null,null,null,null,null,null,null,null,null,null,null,null,null,null,null,null,null,null,null,null,null,null,"Services d’information et de communication","Programmation, conseil et autres activités informatiques","Gestion d'installations informatiques","62.03Z"]
[null,null,null,null,null,null,null,null,null,null,null,null,null,null,null,null,null,null,null,null,null,null,null,null,null,null,null,null,null,null,null,null,null,null,null,null,null,null,null,null,null,"Services d’information et de communication","Programmation, conseil et autres activités informatiques","Autres activités informatiques","62.09Z"]
[null,null,null,null,null,null,null,null,null,null,null,null,null,null,null,null,null,null,null,null,null,null,null,null,null,null,null,null,null,null,null,null,null,null,null,null,null,null,null,null,null,"Services d’information et de communication","Services d'information","Traitement de données, hébergement et activités connexes","63.11Z"]
[null,null,null,null,null,null,null,null,null,null,null,null,null,null,null,null,null,null,null,null,null,null,null,null,null,null,null,null,null,null,null,null,null,null,null,null,null,null,null,null,null,"Services d’information et de communication","Services d'information","Portails Internet","63.12Z"]
[null,null,null,null,null,null,null,null,null,null,null,null,null,null,null,null,null,null,null,null,null,null,null,null,null,null,null,null,null,null,null,null,null,null,null,null,null,null,null,null,null,"Services d’information et de communication","Services d'information","Activités des agences de presse","63.91Z"]
[null,null,null,null,null,null,null,null,null,null,null,null,null,null,null,null,null,null,null,null,null,null,null,null,null,null,null,null,null,null,null,null,null,null,null,null,null,null,null,null,null,"Services d’information et de communication","Services d'information","Autres services d'information n.c.a.","63.99Z"]
[null,null,null,null,null,null,null,null,null,null,null,null,null,null,null,null,null,null,null,null,null,null,null,null,null,null,null,null,null,null,null,null,null,null,null,null,null,null,null,null,null,"Services financiers et assurances","Activités des services financiers, hors assurance et caisses de retraite","Activités de banque centrale","64.11Z"]
[null,null,null,null,null,null,null,null,null,null,null,null,null,null,null,null,null,null,null,null,null,null,null,null,null,null,null,null,null,null,null,null,null,null,null,null,null,null,null,null,null,"Services financiers et assurances","Activités des services financiers, hors assurance et caisses de retraite","Autres intermédiations monétaires","64.19Z"]
[null,null,null,null,null,null,null,null,null,null,null,null,null,null,null,null,null,null,null,null,null,null,null,null,null,null,null,null,null,null,null,null,null,null,null,null,null,null,null,null,null,"Services financiers et assurances","Activités des services financiers, hors assurance et caisses de retraite","Activités des sociétés holding","64.20Z"]
[null,null,null,null,null,null,null,null,null,null,null,null,null,null,null,null,null,null,null,null,null,null,null,null,null,null,null,null,null,null,null,null,null,null,null,null,null,null,null,null,null,"Services financiers et assurances","Activités des services financiers, hors assurance et caisses de retraite","Fonds de placement et entités financières similaires","64.30Z"]
[null,null,null,null,null,null,null,null,null,null,null,null,null,null,null,null,null,null,null,null,null,null,null,null,null,null,null,null,null,null,null,null,null,null,null,null,null,null,null,null,null,"Services financiers et assurances","Activités des services financiers, hors assurance et caisses de retraite","Crédit-bail","64.91Z"]
[null,null,null,null,null,null,null,null,null,null,null,null,null,null,null,null,null,null,null,null,null,null,null,null,null,null,null,null,null,null,null,null,null,null,null,null,null,null,null,null,null,"Services financiers et assurances","Activités des services financiers, hors assurance et caisses de retraite","Autre distribution de crédit","64.92Z"]
[null,null,null,null,null,null,null,null,null,null,null,null,null,null,null,null,null,null,null,null,null,null,null,null,null,null,null,null,null,null,null,null,null,null,null,null,null,null,null,null,null,"Services financiers et assurances","Activités des services financiers, hors assurance et caisses de retraite","Autres activités des services financiers, hors assurance et caisses de retraite, n.c.a.","64.99Z"]
[null,null,null,null,null,null,null,null,null,null,null,null,null,null,null,null,null,null,null,null,null,null,null,null,null,null,null,null,null,null,null,null,null,null,null,null,null,null,null,null,null,"Services financiers et assurances","Assurance","Assurance vie","65.11Z"]
[null,null,null,null,null,null,null,null,null,null,null,null,null,null,null,null,null,null,null,null,null,null,null,null,null,null,null,null,null,null,null,null,null,null,null,null,null,null,null,null,null,"Services financiers et assurances","Assurance","Autres assurances","65.12Z"]
[null,null,null,null,null,null,null,null,null,null,null,null,null,null,null,null,null,null,null,null,null,null,null,null,null,null,null,null,null,null,null,null,null,null,null,null,null,null,null,null,null,"Services financiers et assurances","Assurance","Réassurance","65.20Z"]
[null,null,null,null,null,null,null,null,null,null,null,null,null,null,null,null,null,null,null,null,null,null,null,null,null,null,null,null,null,null,null,null,null,null,null,null,null,null,null,null,null,"Services financiers et assurances","Assurance","Caisses de retraite","65.30Z"]
[null,null,null,null,null,null,null,null,null,null,null,null,null,null,null,null,null,null,null,null,null,null,null,null,null,null,null,null,null,null,null,null,null,null,null,null,null,null,null,null,null,"Services financiers et assurances","Activités auxiliaires de services financiers et d'assurance","Administration de marchés financiers","66.11Z"]
[null,null,null,null,null,null,null,null,null,null,null,null,null,null,null,null,null,null,null,null,null,null,null,null,null,null,null,null,null,null,null,null,null,null,null,null,null,null,null,null,null,"Services financiers et assurances","Activités auxiliaires de services financiers et d'assurance","Courtage de valeurs mobilières et de marchandises","66.12Z"]
[null,null,null,null,null,null,null,null,null,null,null,null,null,null,null,null,null,null,null,null,null,null,null,null,null,null,null,null,null,null,null,null,null,null,null,null,null,null,null,null,null,"Services financiers et assurances","Activités auxiliaires de services financiers et d'assurance","Supports juridiques de gestion de patrimoine mobilier","66.19A"]
[null,null,null,null,null,null,null,null,null,null,null,null,null,null,null,null,null,null,null,null,null,null,null,null,null,null,null,null,null,null,null,null,null,null,null,null,null,null,null,null,null,"Services financiers et assurances","Activités auxiliaires de services financiers et d'assurance","Autres activités auxiliaires de services financiers, hors assurance et caisses de retraite, n.c.a.","66.19B"]
[null,null,null,null,null,null,null,null,null,null,null,null,null,null,null,null,null,null,null,null,null,null,null,null,null,null,null,null,null,null,null,null,null,null,null,null,null,null,null,null,null,"Services financiers et assurances","Activités auxiliaires de services financiers et d'assurance","Évaluation des risques et dommages","66.21Z"]
[null,null,null,null,null,null,null,null,null,null,null,null,null,null,null,null,null,null,null,null,null,null,null,null,null,null,null,null,null,null,null,null,null,null,null,null,null,null,null,null,null,"Services financiers et assurances","Activités auxiliaires de services financiers et d'assurance","Activités des agents et courtiers d'assurances","66.22Z"]
[null,null,null,null,null,null,null,null,null,null,null,null,null,null,null,null,null,null,null,null,null,null,null,null,null,null,null,null,null,null,null,null,null,null,null,null,null,null,null,null,null,"Services financiers et assurances","Activités auxiliaires de services financiers et d'assurance","Autres activités auxiliaires d'assurance et de caisses de retraite","66.29Z"]
[null,null,null,null,null,null,null,null,null,null,null,null,null,null,null,null,null,null,null,null,null,null,null,null,null,null,null,null,null,null,null,null,null,null,null,null,null,null,null,null,null,"Services financiers et assurances","Activités auxiliaires de services financiers et d'assurance","Gestion de fonds","66.30Z"]
[null,null,null,null,null,null,null,null,null,null,null,null,null,null,null,null,null,null,null,null,null,null,null,null,null,null,null,null,null,null,null,null,null,null,null,null,null,null,null,null,null,"Services immobiliers","Activités immobilières","Activités des marchands de biens immobiliers","68.10Z"]
[null,null,null,null,null,null,null,null,null,null,null,null,null,null,null,null,null,null,null,null,null,null,null,null,null,null,null,null,null,null,null,null,null,null,null,null,null,null,null,null,null,"Services immobiliers","Activités immobilières","Location de logements","68.20A"]
[null,null,null,null,null,null,null,null,null,null,null,null,null,null,null,null,null,null,null,null,null,null,null,null,null,null,null,null,null,null,null,null,null,null,null,null,null,null,null,null,null,"Services immobiliers","Activités immobilières","Location de terrains et d'autres biens immobiliers","68.20B"]
[null,null,null,null,null,null,null,null,null,null,null,null,null,null,null,null,null,null,null,null,null,null,null,null,null,null,null,null,null,null,null,null,null,null,null,null,null,null,null,null,null,"Services immobiliers","Activités immobilières","Agences immobilières","68.31Z"]
[null,null,null,null,null,null,null,null,null,null,null,null,null,null,null,null,null,null,null,null,null,null,null,null,null,null,null,null,null,null,null,null,null,null,null,null,null,null,null,null,null,"Services immobiliers","Activités immobilières","Administration d'immeubles et autres biens immobiliers","68.32A"]
[null,null,null,null,null,null,null,null,null,null,null,null,null,null,null,null,null,null,null,null,null,null,null,null,null,null,null,null,null,null,null,null,null,null,null,null,null,null,null,null,null,"Services immobiliers","Activités immobilières","Supports juridiques de gestion de patrimoine immobilier","68.32B"]
[null,null,null,null,null,null,null,null,null,null,null,null,null,null,null,null,null,null,null,null,null,null,null,null,null,null,null,null,null,null,null,null,null,null,null,null,null,null,null,null,null,"Services professionnels, scientifiques et techniques","Activités juridiques et comptables","Activités juridiques","69.10Z"]
[null,null,null,null,null,null,null,null,null,null,null,null,null,null,null,null,null,null,null,null,null,null,null,null,null,null,null,null,null,null,null,null,null,null,null,null,null,null,null,null,null,"Services professionnels, scientifiques et techniques","Activités juridiques et comptables","Activités comptables","69.20Z"]
[null,null,null,null,null,null,null,null,null,null,null,null,null,null,null,null,null,null,null,null,null,null,null,null,null,null,null,null,null,null,null,null,null,null,null,null,null,null,null,null,null,"Services professionnels, scientifiques et techniques","Activités des sièges sociaux ; conseil de gestion","Activités des sièges sociaux","70.10Z"]
[null,null,null,null,null,null,null,null,null,null,null,null,null,null,null,null,null,null,null,null,null,null,null,null,null,null,null,null,null,null,null,null,null,null,null,null,null,null,null,null,null,"Services professionnels, scientifiques et techniques","Activités des sièges sociaux ; conseil de gestion","Conseil en relations publiques et communication","70.21Z"]
[null,null,null,null,null,null,null,null,null,null,null,null,null,null,null,null,null,null,null,null,null,null,null,null,null,null,null,null,null,null,null,null,null,null,null,null,null,null,null,null,null,"Services professionnels, scientifiques et techniques","Activités des sièges sociaux ; conseil de gestion","Conseil pour les affaires et autres conseils de gestion","70.22Z"]
[null,null,null,null,null,null,null,null,null,null,null,null,null,null,null,null,null,null,null,null,null,null,null,null,null,null,null,null,null,null,null,null,null,null,null,null,null,null,null,null,null,"Services professionnels, scientifiques et techniques","Activités d'architecture et d'ingénierie ; activités de contrôle et analyses techniques","Activités d'architecture","71.11Z"]
[null,null,null,null,null,null,null,null,null,null,null,null,null,null,null,null,null,null,null,null,null,null,null,null,null,null,null,null,null,null,null,null,null,null,null,null,null,null,null,null,null,"Services professionnels, scientifiques et techniques","Activités d'architecture et d'ingénierie ; activités de contrôle et analyses techniques","Activité des géomètres","71.12A"]
[null,null,null,null,null,null,null,null,null,null,null,null,null,null,null,null,null,null,null,null,null,null,null,null,null,null,null,null,null,null,null,null,null,null,null,null,null,null,null,null,null,"Services professionnels, scientifiques et techniques","Activités d'architecture et d'ingénierie ; activités de contrôle et analyses techniques","Ingénierie, études techniques","71.12B"]
[null,null,null,null,null,null,null,null,null,null,null,null,null,null,null,null,null,null,null,null,null,null,null,null,null,null,null,null,null,null,null,null,null,null,null,null,null,null,null,null,null,"Services professionnels, scientifiques et techniques","Activités d'architecture et d'ingénierie ; activités de contrôle et analyses techniques","Contrôle technique automobile","71.20A"]
[null,null,null,null,null,null,null,null,null,null,null,null,null,null,null,null,null,null,null,null,null,null,null,null,null,null,null,null,null,null,null,null,null,null,null,null,null,null,null,null,null,"Services professionnels, scientifiques et techniques","Activités d'architecture et d'ingénierie ; activités de contrôle et analyses techniques","Analyses, essais et inspections techniques","71.20B"]
[null,null,null,null,null,null,null,null,null,null,null,null,null,null,null,null,null,null,null,null,null,null,null,null,null,null,null,null,null,null,null,null,null,null,null,null,null,null,null,null,null,"Services professionnels, scientifiques et techniques","Recherche-développement scientifique","Recherche-développement en biotechnologie","72.11Z"]
[null,null,null,null,null,null,null,null,null,null,null,null,null,null,null,null,null,null,null,null,null,null,null,null,null,null,null,null,null,null,null,null,null,null,null,null,null,null,null,null,null,"Services professionnels, scientifiques et techniques","Recherche-développement scientifique","Recherche-développement en autres sciences physiques et naturelles","72.19Z"]
[null,null,null,null,null,null,null,null,null,null,null,null,null,null,null,null,null,null,null,null,null,null,null,null,null,null,null,null,null,null,null,null,null,null,null,null,null,null,null,null,null,"Services professionnels, scientifiques et techniques","Recherche-développement scientifique","Recherche-développement en sciences humaines et sociales","72.20Z"]
[null,null,null,null,null,null,null,null,null,null,null,null,null,null,null,null,null,null,null,null,null,null,null,null,null,null,null,null,null,null,null,null,null,null,null,null,null,null,null,null,null,"Services professionnels, scientifiques et techniques","Publicité et études de marché","Activités des agences de publicité","73.11Z"]
[null,null,null,null,null,null,null,null,null,null,null,null,null,null,null,null,null,null,null,null,null,null,null,null,null,null,null,null,null,null,null,null,null,null,null,null,null,null,null,null,null,"Services professionnels, scientifiques et techniques","Publicité et études de marché","Régie publicitaire de médias","73.12Z"]
[null,null,null,null,null,null,null,null,null,null,null,null,null,null,null,null,null,null,null,null,null,null,null,null,null,null,null,null,null,null,null,null,null,null,null,null,null,null,null,null,null,"Services professionnels, scientifiques et techniques","Publicité et études de marché","Études de marché et sondages","73.20Z"]
[null,null,null,null,null,null,null,null,null,null,null,null,null,null,null,null,null,null,null,null,null,null,null,null,null,null,null,null,null,null,null,null,null,null,null,null,null,null,null,null,null,"Services professionnels, scientifiques et techniques","Autres activités spécialisées, scientifiques et techniques","Activités spécialisées de design","74.10Z"]
[null,null,null,null,null,null,null,null,null,null,null,null,null,null,null,null,null,null,null,null,null,null,null,null,null,null,null,null,null,null,null,null,null,null,null,null,null,null,null,null,null,"Services professionnels, scientifiques et techniques","Autres activités spécialisées, scientifiques et techniques","Activités photographiques","74.20Z"]
[null,null,null,null,null,null,null,null,null,null,null,null,null,null,null,null,null,null,null,null,null,null,null,null,null,null,null,null,null,null,null,null,null,null,null,null,null,null,null,null,null,"Services professionnels, scientifiques et techniques","Autres activités spécialisées, scientifiques et techniques","Traduction et interprétation","74.30Z"]
[null,null,null,null,null,null,null,null,null,null,null,null,null,null,null,null,null,null,null,null,null,null,null,null,null,null,null,null,null,null,null,null,null,null,null,null,null,null,null,null,null,"Services professionnels, scientifiques et techniques","Autres activités spécialisées, scientifiques et techniques","Activité des économistes de la construction","74.90A"]
[null,null,null,null,null,null,null,null,null,null,null,null,null,null,null,null,null,null,null,null,null,null,null,null,null,null,null,null,null,null,null,null,null,null,null,null,null,null,null,null,null,"Services professionnels, scientifiques et techniques","Autres activités spécialisées, scientifiques et techniques","Activités spécialisées, scientifiques et techniques diverses","74.90B"]
[null,null,null,null,null,null,null,null,null,null,null,null,null,null,null,null,null,null,null,null,null,null,null,null,null,null,null,null,null,null,null,null,null,null,null,null,null,null,null,null,null,"Services professionnels, scientifiques et techniques","Activités vétérinaires","Activités vétérinaires","75.00Z"]
[null,null,null,null,null,null,null,null,null,null,null,null,null,null,null,null,null,null,null,null,null,null,null,null,null,null,null,null,null,null,null,null,null,null,null,null,null,null,null,null,null,"Services administratifs et d’assistance","Activités de location et location-bail","Location de courte durée de voitures et de véhicules automobiles légers","77.11A"]
[null,null,null,null,null,null,null,null,null,null,null,null,null,null,null,null,null,null,null,null,null,null,null,null,null,null,null,null,null,null,null,null,null,null,null,null,null,null,null,null,null,"Services administratifs et d’assistance","Activités de location et location-bail","Location de longue durée de voitures et de véhicules automobiles légers","77.11B"]
[null,null,null,null,null,null,null,null,null,null,null,null,null,null,null,null,null,null,null,null,null,null,null,null,null,null,null,null,null,null,null,null,null,null,null,null,null,null,null,null,null,"Services administratifs et d’assistance","Activités de location et location-bail","Location et location-bail de camions","77.12Z"]
[null,null,null,null,null,null,null,null,null,null,null,null,null,null,null,null,null,null,null,null,null,null,null,null,null,null,null,null,null,null,null,null,null,null,null,null,null,null,null,null,null,"Services administratifs et d’assistance","Activités de location et location-bail","Location et location-bail d'articles de loisirs et de sport","77.21Z"]
[null,null,null,null,null,null,null,null,null,null,null,null,null,null,null,null,null,null,null,null,null,null,null,null,null,null,null,null,null,null,null,null,null,null,null,null,null,null,null,null,null,"Services administratifs et d’assistance","Activités de location et location-bail","Location de vidéocassettes et disques vidéo","77.22Z"]
[null,null,null,null,null,null,null,null,null,null,null,null,null,null,null,null,null,null,null,null,null,null,null,null,null,null,null,null,null,null,null,null,null,null,null,null,null,null,null,null,null,"Services administratifs et d’assistance","Activités de location et location-bail","Location et location-bail d'autres biens personnels et domestiques","77.29Z"]
[null,null,null,null,null,null,null,null,null,null,null,null,null,null,null,null,null,null,null,null,null,null,null,null,null,null,null,null,null,null,null,null,null,null,null,null,null,null,null,null,null,"Services administratifs et d’assistance","Activités de location et location-bail","Location et location-bail de machines et équipements agricoles","77.31Z"]
[null,null,null,null,null,null,null,null,null,null,null,null,null,null,null,null,null,null,null,null,null,null,null,null,null,null,null,null,null,null,null,null,null,null,null,null,null,null,null,null,null,"Services administratifs et d’assistance","Activités de location et location-bail","Location et location-bail de machines et équipements pour la construction","77.32Z"]
[null,null,null,null,null,null,null,null,null,null,null,null,null,null,null,null,null,null,null,null,null,null,null,null,null,null,null,null,null,null,null,null,null,null,null,null,null,null,null,null,null,"Services administratifs et d’assistance","Activités de location et location-bail","Location et location-bail de machines de bureau et de matériel informatique","77.33Z"]
[null,null,null,null,null,null,null,null,null,null,null,null,null,null,null,null,null,null,null,null,null,null,null,null,null,null,null,null,null,null,null,null,null,null,null,null,null,null,null,null,null,"Services administratifs et d’assistance","Activités de location et location-bail","Location et location-bail de matériels de transport par eau","77.34Z"]
[null,null,null,null,null,null,null,null,null,null,null,null,null,null,null,null,null,null,null,null,null,null,null,null,null,null,null,null,null,null,null,null,null,null,null,null,null,null,null,null,null,"Services administratifs et d’assistance","Activités de location et location-bail","Location et location-bail de matériels de transport aérien","77.35Z"]
[null,null,null,null,null,null,null,null,null,null,null,null,null,null,null,null,null,null,null,null,null,null,null,null,null,null,null,null,null,null,null,null,null,null,null,null,null,null,null,null,null,"Services administratifs et d’assistance","Activités de location et location-bail","Location et location-bail d'autres machines, équipements et biens matériels n.c.a.","77.39Z"]
[null,null,null,null,null,null,null,null,null,null,null,null,null,null,null,null,null,null,null,null,null,null,null,null,null,null,null,null,null,null,null,null,null,null,null,null,null,null,null,null,null,"Services administratifs et d’assistance","Activités de location et location-bail","Location-bail de propriété intellectuelle et de produits similaires, à l'exception des œuvres soumises à copyright","77.40Z"]
[null,null,null,null,null,null,null,null,null,null,null,null,null,null,null,null,null,null,null,null,null,null,null,null,null,null,null,null,null,null,null,null,null,null,null,null,null,null,null,null,null,"Services administratifs et d’assistance","Activités liées à l'emploi","Activités des agences de placement de main-d'œuvre","78.10Z"]
[null,null,null,null,null,null,null,null,null,null,null,null,null,null,null,null,null,null,null,null,null,null,null,null,null,null,null,null,null,null,null,null,null,null,null,null,null,null,null,null,null,"Services administratifs et d’assistance","Activités liées à l'emploi","Activités des agences de travail temporaire","78.20Z"]
[null,null,null,null,null,null,null,null,null,null,null,null,null,null,null,null,null,null,null,null,null,null,null,null,null,null,null,null,null,null,null,null,null,null,null,null,null,null,null,null,null,"Services administratifs et d’assistance","Activités liées à l'emploi","Autre mise à disposition de ressources humaines","78.30Z"]
[null,null,null,null,null,null,null,null,null,null,null,null,null,null,null,null,null,null,null,null,null,null,null,null,null,null,null,null,null,null,null,null,null,null,null,null,null,null,null,null,null,"Services administratifs et d’assistance","Activités des agences de voyage, voyagistes, services de réservation et activités connexes","Activités des agences de voyage","79.11Z"]
[null,null,null,null,null,null,null,null,null,null,null,null,null,null,null,null,null,null,null,null,null,null,null,null,null,null,null,null,null,null,null,null,null,null,null,null,null,null,null,null,null,"Services administratifs et d’assistance","Activités des agences de voyage, voyagistes, services de réservation et activités connexes","Activités des voyagistes","79.12Z"]
[null,null,null,null,null,null,null,null,null,null,null,null,null,null,null,null,null,null,null,null,null,null,null,null,null,null,null,null,null,null,null,null,null,null,null,null,null,null,null,null,null,"Services administratifs et d’assistance","Activités des agences de voyage, voyagistes, services de réservation et activités connexes","Autres services de réservation et activités connexes","79.90Z"]
[null,null,null,null,null,null,null,null,null,null,null,null,null,null,null,null,null,null,null,null,null,null,null,null,null,null,null,null,null,null,null,null,null,null,null,null,null,null,null,null,null,"Services administratifs et d’assistance","Enquêtes et sécurité","Activités de sécurité privée","80.10Z"]
[null,null,null,null,null,null,null,null,null,null,null,null,null,null,null,null,null,null,null,null,null,null,null,null,null,null,null,null,null,null,null,null,null,null,null,null,null,null,null,null,null,"Services administratifs et d’assistance","Enquêtes et sécurité","Activités liées aux systèmes de sécurité","80.20Z"]
[null,null,null,null,null,null,null,null,null,null,null,null,null,null,null,null,null,null,null,null,null,null,null,null,null,null,null,null,null,null,null,null,null,null,null,null,null,null,null,null,null,"Services administratifs et d’assistance","Enquêtes et sécurité","Activités d'enquête","80.30Z"]
[null,null,null,null,null,null,null,null,null,null,null,null,null,null,null,null,null,null,null,null,null,null,null,null,null,null,null,null,null,null,null,null,null,null,null,null,null,null,null,null,null,"Services administratifs et d’assistance","Services relatifs aux bâtiments et aménagement paysager","Activités combinées de soutien lié aux bâtiments","81.10Z"]
[null,null,null,null,null,null,null,null,null,null,null,null,null,null,null,null,null,null,null,null,null,null,null,null,null,null,null,null,null,null,null,null,null,null,null,null,null,null,null,null,null,"Services administratifs et d’assistance","Services relatifs aux bâtiments et aménagement paysager","Nettoyage courant des bâtiments","81.21Z"]
[null,null,null,null,null,null,null,null,null,null,null,null,null,null,null,null,null,null,null,null,null,null,null,null,null,null,null,null,null,null,null,null,null,null,null,null,null,null,null,null,null,"Services administratifs et d’assistance","Services relatifs aux bâtiments et aménagement paysager","Autres activités de nettoyage des bâtiments et nettoyage industriel","81.22Z"]
[null,null,null,null,null,null,null,null,null,null,null,null,null,null,null,null,null,null,null,null,null,null,null,null,null,null,null,null,null,null,null,null,null,null,null,null,null,null,null,null,null,"Services administratifs et d’assistance","Services relatifs aux bâtiments et aménagement paysager","Désinfection, désinsectisation, dératisation","81.29A"]
[null,null,null,null,null,null,null,null,null,null,null,null,null,null,null,null,null,null,null,null,null,null,null,null,null,null,null,null,null,null,null,null,null,null,null,null,null,null,null,null,null,"Services administratifs et d’assistance","Services relatifs aux bâtiments et aménagement paysager","Autres activités de nettoyage n.c.a.","81.29B"]
[null,null,null,null,null,null,null,null,null,null,null,null,null,null,null,null,null,null,null,null,null,null,null,null,null,null,null,null,null,null,null,null,null,null,null,null,null,null,null,null,null,"Services administratifs et d’assistance","Services relatifs aux bâtiments et aménagement paysager","Services d'aménagement paysager","81.30Z"]
[null,null,null,null,null,null,null,null,null,null,null,null,null,null,null,null,null,null,null,null,null,null,null,null,null,null,null,null,null,null,null,null,null,null,null,null,null,null,null,null,null,"Services administratifs et d’assistance","Activités administratives et autres activités de soutien aux entreprises","Services administratifs combinés de bureau","82.11Z"]
[null,null,null,null,null,null,null,null,null,null,null,null,null,null,null,null,null,null,null,null,null,null,null,null,null,null,null,null,null,null,null,null,null,null,null,null,null,null,null,null,null,"Services administratifs et d’assistance","Activités administratives et autres activités de soutien aux entreprises","Photocopie, préparation de documents et autres activités spécialisées de soutien de bureau","82.19Z"]
[null,null,null,null,null,null,null,null,null,null,null,null,null,null,null,null,null,null,null,null,null,null,null,null,null,null,null,null,null,null,null,null,null,null,null,null,null,null,null,null,null,"Services administratifs et d’assistance","Activités administratives et autres activités de soutien aux entreprises","Activités de centres d'appels","82.20Z"]
[null,null,null,null,null,null,null,null,null,null,null,null,null,null,null,null,null,null,null,null,null,null,null,null,null,null,null,null,null,null,null,null,null,null,null,null,null,null,null,null,null,"Services administratifs et d’assistance","Activités administratives et autres activités de soutien aux entreprises","Organisation de foires, salons professionnels et congrès","82.30Z"]
[null,null,null,null,null,null,null,null,null,null,null,null,null,null,null,null,null,null,null,null,null,null,null,null,null,null,null,null,null,null,null,null,null,null,null,null,null,null,null,null,null,"Services administratifs et d’assistance","Activités administratives et autres activités de soutien aux entreprises","Activités des agences de recouvrement de factures et des sociétés d'information financière sur la clientèle","82.91Z"]
[null,null,null,null,null,null,null,null,null,null,null,null,null,null,null,null,null,null,null,null,null,null,null,null,null,null,null,null,null,null,null,null,null,null,null,null,null,null,null,null,null,"Services administratifs et d’assistance","Activités administratives et autres activités de soutien aux entreprises","Activités de conditionnement","82.92Z"]
[null,null,null,null,null,null,null,null,null,null,null,null,null,null,null,null,null,null,null,null,null,null,null,null,null,null,null,null,null,null,null,null,null,null,null,null,null,null,null,null,null,"Services administratifs et d’assistance","Activités administratives et autres activités de soutien aux entreprises","Autres activités de soutien aux entreprises n.c.a.","82.99Z"]
[null,null,null,null,null,null,null,null,null,null,null,null,null,null,null,null,null,null,null,null,null,null,null,null,null,null,null,null,null,null,null,null,null,null,null,null,null,null,null,null,null,"Services d’administration publique et de défense ; services de sécurité sociale obligatoire","Administration publique et défense ; sécurité sociale obligatoire","Administration publique générale","84.11Z"]
[null,null,null,null,null,null,null,null,null,null,null,null,null,null,null,null,null,null,null,null,null,null,null,null,null,null,null,null,null,null,null,null,null,null,null,null,null,null,null,null,null,"Services d’administration publique et de défense ; services de sécurité sociale obligatoire","Administration publique et défense ; sécurité sociale obligatoire","Administration publique (tutelle) de la santé, de la formation, de la culture et des services sociaux, autre que sécurité sociale","84.12Z"]
[null,null,null,null,null,null,null,null,null,null,null,null,null,null,null,null,null,null,null,null,null,null,null,null,null,null,null,null,null,null,null,null,null,null,null,null,null,null,null,null,null,"Services d’administration publique et de défense ; services de sécurité sociale obligatoire","Administration publique et défense ; sécurité sociale obligatoire","Administration publique (tutelle) des activités économiques","84.13Z"]
[null,null,null,null,null,null,null,null,null,null,null,null,null,null,null,null,null,null,null,null,null,null,null,null,null,null,null,null,null,null,null,null,null,null,null,null,null,null,null,null,null,"Services d’administration publique et de défense ; services de sécurité sociale obligatoire","Administration publique et défense ; sécurité sociale obligatoire","Affaires étrangères","84.21Z"]
[null,null,null,null,null,null,null,null,null,null,null,null,null,null,null,null,null,null,null,null,null,null,null,null,null,null,null,null,null,null,null,null,null,null,null,null,null,null,null,null,null,"Services d’administration publique et de défense ; services de sécurité sociale obligatoire","Administration publique et défense ; sécurité sociale obligatoire","Défense","84.22Z"]
[null,null,null,null,null,null,null,null,null,null,null,null,null,null,null,null,null,null,null,null,null,null,null,null,null,null,null,null,null,null,null,null,null,null,null,null,null,null,null,null,null,"Services d’administration publique et de défense ; services de sécurité sociale obligatoire","Administration publique et défense ; sécurité sociale obligatoire","Justice","84.23Z"]
[null,null,null,null,null,null,null,null,null,null,null,null,null,null,null,null,null,null,null,null,null,null,null,null,null,null,null,null,null,null,null,null,null,null,null,null,null,null,null,null,null,"Services d’administration publique et de défense ; services de sécurité sociale obligatoire","Administration publique et défense ; sécurité sociale obligatoire","Activités d'ordre public et de sécurité","84.24Z"]
[null,null,null,null,null,null,null,null,null,null,null,null,null,null,null,null,null,null,null,null,null,null,null,null,null,null,null,null,null,null,null,null,null,null,null,null,null,null,null,null,null,"Services d’administration publique et de défense ; services de sécurité sociale obligatoire","Administration publique et défense ; sécurité sociale obligatoire","Services du feu et de secours","84.25Z"]
[null,null,null,null,null,null,null,null,null,null,null,null,null,null,null,null,null,null,null,null,null,null,null,null,null,null,null,null,null,null,null,null,null,null,null,null,null,null,null,null,null,"Services d’administration publique et de défense ; services de sécurité sociale obligatoire","Administration publique et défense ; sécurité sociale obligatoire","Activités générales de sécurité sociale","84.30A"]
[null,null,null,null,null,null,null,null,null,null,null,null,null,null,null,null,null,null,null,null,null,null,null,null,null,null,null,null,null,null,null,null,null,null,null,null,null,null,null,null,null,"Services d’administration publique et de défense ; services de sécurité sociale obligatoire","Administration publique et défense ; sécurité sociale obligatoire","Gestion des retraites complémentaires","84.30B"]
[null,null,null,null,null,null,null,null,null,null,null,null,null,null,null,null,null,null,null,null,null,null,null,null,null,null,null,null,null,null,null,null,null,null,null,null,null,null,null,null,null,"Services d’administration publique et de défense ; services de sécurité sociale obligatoire","Administration publique et défense ; sécurité sociale obligatoire","Distribution sociale de revenus","84.30C"]
[null,null,null,null,null,null,null,null,null,null,null,null,null,null,null,null,null,null,null,null,null,null,null,null,null,null,null,null,null,null,null,null,null,null,null,null,null,null,null,null,null,"Services de l’éducation","Enseignement","Enseignement pré-primaire","85.10Z"]
[null,null,null,null,null,null,null,null,null,null,null,null,null,null,null,null,null,null,null,null,null,null,null,null,null,null,null,null,null,null,null,null,null,null,null,null,null,null,null,null,null,"Services de l’éducation","Enseignement","Enseignement primaire","85.20Z"]
[null,null,null,null,null,null,null,null,null,null,null,null,null,null,null,null,null,null,null,null,null,null,null,null,null,null,null,null,null,null,null,null,null,null,null,null,null,null,null,null,null,"Services de l’éducation","Enseignement","Enseignement secondaire général","85.31Z"]
[null,null,null,null,null,null,null,null,null,null,null,null,null,null,null,null,null,null,null,null,null,null,null,null,null,null,null,null,null,null,null,null,null,null,null,null,null,null,null,null,null,"Services de l’éducation","Enseignement","Enseignement secondaire technique ou professionnel","85.32Z"]
[null,null,null,null,null,null,null,null,null,null,null,null,null,null,null,null,null,null,null,null,null,null,null,null,null,null,null,null,null,null,null,null,null,null,null,null,null,null,null,null,null,"Services de l’éducation","Enseignement","Enseignement post-secondaire non supérieur","85.41Z"]
[null,null,null,null,null,null,null,null,null,null,null,null,null,null,null,null,null,null,null,null,null,null,null,null,null,null,null,null,null,null,null,null,null,null,null,null,null,null,null,null,null,"Services de l’éducation","Enseignement","Enseignement supérieur","85.42Z"]
[null,null,null,null,null,null,null,null,null,null,null,null,null,null,null,null,null,null,null,null,null,null,null,null,null,null,null,null,null,null,null,null,null,null,null,null,null,null,null,null,null,"Services de l’éducation","Enseignement","Enseignement de disciplines sportives et d'activités de loisirs","85.51Z"]
[null,null,null,null,null,null,null,null,null,null,null,null,null,null,null,null,null,null,null,null,null,null,null,null,null,null,null,null,null,null,null,null,null,null,null,null,null,null,null,null,null,"Services de l’éducation","Enseignement","Enseignement culturel","85.52Z"]
[null,null,null,null,null,null,null,null,null,null,null,null,null,null,null,null,null,null,null,null,null,null,null,null,null,null,null,null,null,null,null,null,null,null,null,null,null,null,null,null,null,"Services de l’éducation","Enseignement","Enseignement de la conduite","85.53Z"]
[null,null,null,null,null,null,null,null,null,null,null,null,null,null,null,null,null,null,null,null,null,null,null,null,null,null,null,null,null,null,null,null,null,null,null,null,null,null,null,null,null,"Services de l’éducation","Enseignement","Formation continue d'adultes","85.59A"]
[null,null,null,null,null,null,null,null,null,null,null,null,null,null,null,null,null,null,null,null,null,null,null,null,null,null,null,null,null,null,null,null,null,null,null,null,null,null,null,null,null,"Services de l’éducation","Enseignement","Autres enseignements","85.59B"]
[null,null,null,null,null,null,null,null,null,null,null,null,null,null,null,null,null,null,null,null,null,null,null,null,null,null,null,null,null,null,null,null,null,null,null,null,null,null,null,null,null,"Services de l’éducation","Enseignement","Activités de soutien à l'enseignement","85.60Z"]
[null,null,null,null,null,null,null,null,null,null,null,null,null,null,null,null,null,null,null,null,null,null,null,null,null,null,null,null,null,null,null,null,null,null,null,null,null,null,null,null,null,"Services de santé et d’action sociale","Activités pour la santé humaine","Activités hospitalières","86.10Z"]
[null,null,null,null,null,null,null,null,null,null,null,null,null,null,null,null,null,null,null,null,null,null,null,null,null,null,null,null,null,null,null,null,null,null,null,null,null,null,null,null,null,"Services de santé et d’action sociale","Activités pour la santé humaine","Activité des médecins généralistes","86.21Z"]
[null,null,null,null,null,null,null,null,null,null,null,null,null,null,null,null,null,null,null,null,null,null,null,null,null,null,null,null,null,null,null,null,null,null,null,null,null,null,null,null,null,"Services de santé et d’action sociale","Activités pour la santé humaine","Activités de radiodiagnostic et de radiothérapie","86.22A"]
[null,null,null,null,null,null,null,null,null,null,null,null,null,null,null,null,null,null,null,null,null,null,null,null,null,null,null,null,null,null,null,null,null,null,null,null,null,null,null,null,null,"Services de santé et d’action sociale","Activités pour la santé humaine","Activités chirurgicales","86.22B"]
[null,null,null,null,null,null,null,null,null,null,null,null,null,null,null,null,null,null,null,null,null,null,null,null,null,null,null,null,null,null,null,null,null,null,null,null,null,null,null,null,null,"Services de santé et d’action sociale","Activités pour la santé humaine","Autres activités des médecins spécialistes","86.22C"]
[null,null,null,null,null,null,null,null,null,null,null,null,null,null,null,null,null,null,null,null,null,null,null,null,null,null,null,null,null,null,null,null,null,null,null,null,null,null,null,null,null,"Services de santé et d’action sociale","Activités pour la santé humaine","Pratique dentaire","86.23Z"]
[null,null,null,null,null,null,null,null,null,null,null,null,null,null,null,null,null,null,null,null,null,null,null,null,null,null,null,null,null,null,null,null,null,null,null,null,null,null,null,null,null,"Services de santé et d’action sociale","Activités pour la santé humaine","Ambulances","86.90A"]
[null,null,null,null,null,null,null,null,null,null,null,null,null,null,null,null,null,null,null,null,null,null,null,null,null,null,null,null,null,null,null,null,null,null,null,null,null,null,null,null,null,"Services de santé et d’action sociale","Activités pour la santé humaine","Laboratoires d'analyses médicales","86.90B"]
[null,null,null,null,null,null,null,null,null,null,null,null,null,null,null,null,null,null,null,null,null,null,null,null,null,null,null,null,null,null,null,null,null,null,null,null,null,null,null,null,null,"Services de santé et d’action sociale","Activités pour la santé humaine","Centres de collecte et banques d'organes","86.90C"]
[null,null,null,null,null,null,null,null,null,null,null,null,null,null,null,null,null,null,null,null,null,null,null,null,null,null,null,null,null,null,null,null,null,null,null,null,null,null,null,null,null,"Services de santé et d’action sociale","Activités pour la santé humaine","Activités des infirmiers et des sages-femmes","86.90D"]
[null,null,null,null,null,null,null,null,null,null,null,null,null,null,null,null,null,null,null,null,null,null,null,null,null,null,null,null,null,null,null,null,null,null,null,null,null,null,null,null,null,"Services de santé et d’action sociale","Activités pour la santé humaine","Activités des professionnels de la rééducation, de l'appareillage et des pédicures-podologues","86.90E"]
[null,null,null,null,null,null,null,null,null,null,null,null,null,null,null,null,null,null,null,null,null,null,null,null,null,null,null,null,null,null,null,null,null,null,null,null,null,null,null,null,null,"Services de santé et d’action sociale","Activités pour la santé humaine","Activités de santé humaine non classées ailleurs","86.90F"]
[null,null,null,null,null,null,null,null,null,null,null,null,null,null,null,null,null,null,null,null,null,null,null,null,null,null,null,null,null,null,null,null,null,null,null,null,null,null,null,null,null,"Services de santé et d’action sociale","Hébergement médico-social et social","Hébergement médicalisé pour personnes âgées","87.10A"]
[null,null,null,null,null,null,null,null,null,null,null,null,null,null,null,null,null,null,null,null,null,null,null,null,null,null,null,null,null,null,null,null,null,null,null,null,null,null,null,null,null,"Services de santé et d’action sociale","Hébergement médico-social et social","Hébergement médicalisé pour enfants handicapés","87.10B"]
[null,null,null,null,null,null,null,null,null,null,null,null,null,null,null,null,null,null,null,null,null,null,null,null,null,null,null,null,null,null,null,null,null,null,null,null,null,null,null,null,null,"Services de santé et d’action sociale","Hébergement médico-social et social","Hébergement médicalisé pour adultes handicapés et autre hébergement médicalisé","87.10C"]
[null,null,null,null,null,null,null,null,null,null,null,null,null,null,null,null,null,null,null,null,null,null,null,null,null,null,null,null,null,null,null,null,null,null,null,null,null,null,null,null,null,"Services de santé et d’action sociale","Hébergement médico-social et social","Hébergement social pour handicapés mentaux et malades mentaux","87.20A"]
[null,null,null,null,null,null,null,null,null,null,null,null,null,null,null,null,null,null,null,null,null,null,null,null,null,null,null,null,null,null,null,null,null,null,null,null,null,null,null,null,null,"Services de santé et d’action sociale","Hébergement médico-social et social","Hébergement social pour toxicomanes","87.20B"]
[null,null,null,null,null,null,null,null,null,null,null,null,null,null,null,null,null,null,null,null,null,null,null,null,null,null,null,null,null,null,null,null,null,null,null,null,null,null,null,null,null,"Services de santé et d’action sociale","Hébergement médico-social et social","Hébergement social pour personnes âgées","87.30A"]
[null,null,null,null,null,null,null,null,null,null,null,null,null,null,null,null,null,null,null,null,null,null,null,null,null,null,null,null,null,null,null,null,null,null,null,null,null,null,null,null,null,"Services de santé et d’action sociale","Hébergement médico-social et social","Hébergement social pour handicapés physiques","87.30B"]
[null,null,null,null,null,null,null,null,null,null,null,null,null,null,null,null,null,null,null,null,null,null,null,null,null,null,null,null,null,null,null,null,null,null,null,null,null,null,null,null,null,"Services de santé et d’action sociale","Hébergement médico-social et social","Hébergement social pour enfants en difficultés","87.90A"]
[null,null,null,null,null,null,null,null,null,null,null,null,null,null,null,null,null,null,null,null,null,null,null,null,null,null,null,null,null,null,null,null,null,null,null,null,null,null,null,null,null,"Services de santé et d’action sociale","Hébergement médico-social et social","Hébergement social pour adultes et familles en difficultés et autre hébergement social","87.90B"]
[null,null,null,null,null,null,null,null,null,null,null,null,null,null,null,null,null,null,null,null,null,null,null,null,null,null,null,null,null,null,null,null,null,null,null,null,null,null,null,null,null,"Services de santé et d’action sociale","Action sociale sans hébergement","Aide à domicile","88.10A"]
[null,null,null,null,null,null,null,null,null,null,null,null,null,null,null,null,null,null,null,null,null,null,null,null,null,null,null,null,null,null,null,null,null,null,null,null,null,null,null,null,null,"Services de santé et d’action sociale","Action sociale sans hébergement","Accueil ou accompagnement sans hébergement d'adultes handicapés ou de personnes âgées","88.10B"]
[null,null,null,null,null,null,null,null,null,null,null,null,null,null,null,null,null,null,null,null,null,null,null,null,null,null,null,null,null,null,null,null,null,null,null,null,null,null,null,null,null,"Services de santé et d’action sociale","Action sociale sans hébergement","Aide par le travail","88.10C"]
[null,null,null,null,null,null,null,null,null,null,null,null,null,null,null,null,null,null,null,null,null,null,null,null,null,null,null,null,null,null,null,null,null,null,null,null,null,null,null,null,null,"Services de santé et d’action sociale","Action sociale sans hébergement","Accueil de jeunes enfants","88.91A"]
[null,null,null,null,null,null,null,null,null,null,null,null,null,null,null,null,null,null,null,null,null,null,null,null,null,null,null,null,null,null,null,null,null,null,null,null,null,null,null,null,null,"Services de santé et d’action sociale","Action sociale sans hébergement","Accueil ou accompagnement sans hébergement d'enfants handicapés","88.91B"]
[null,null,null,null,null,null,null,null,null,null,null,null,null,null,null,null,null,null,null,null,null,null,null,null,null,null,null,null,null,null,null,null,null,null,null,null,null,null,null,null,null,"Services de santé et d’action sociale","Action sociale sans hébergement","Autre accueil ou accompagnement sans hébergement d'enfants et d'adolescents","88.99A"]
[null,null,null,null,null,null,null,null,null,null,null,null,null,null,null,null,null,null,null,null,null,null,null,null,null,null,null,null,null,null,null,null,null,null,null,null,null,null,null,null,null,"Services de santé et d’action sociale","Action sociale sans hébergement","Action sociale sans hébergement n.c.a.","88.99B"]
[null,null,null,null,null,null,null,null,null,null,null,null,null,null,null,null,null,null,null,null,null,null,null,null,null,null,null,null,null,null,null,null,null,null,null,null,null,null,null,null,null,"Services artistiques et du spectacle et services récréatifs","Activités créatives, artistiques et de spectacle","Arts du spectacle vivant","90.01Z"]
[null,null,null,null,null,null,null,null,null,null,null,null,null,null,null,null,null,null,null,null,null,null,null,null,null,null,null,null,null,null,null,null,null,null,null,null,null,null,null,null,null,"Services artistiques et du spectacle et services récréatifs","Activités créatives, artistiques et de spectacle","Activités de soutien au spectacle vivant","90.02Z"]
[null,null,null,null,null,null,null,null,null,null,null,null,null,null,null,null,null,null,null,null,null,null,null,null,null,null,null,null,null,null,null,null,null,null,null,null,null,null,null,null,null,"Services artistiques et du spectacle et services récréatifs","Activités créatives, artistiques et de spectacle","Création artistique relevant des arts plastiques","90.03A"]
[null,null,null,null,null,null,null,null,null,null,null,null,null,null,null,null,null,null,null,null,null,null,null,null,null,null,null,null,null,null,null,null,null,null,null,null,null,null,null,null,null,"Services artistiques et du spectacle et services récréatifs","Activités créatives, artistiques et de spectacle","Autre création artistique","90.03B"]
[null,null,null,null,null,null,null,null,null,null,null,null,null,null,null,null,null,null,null,null,null,null,null,null,null,null,null,null,null,null,null,null,null,null,null,null,null,null,null,null,null,"Services artistiques et du spectacle et services récréatifs","Activités créatives, artistiques et de spectacle","Gestion de salles de spectacles","90.04Z"]
[null,null,null,null,null,null,null,null,null,null,null,null,null,null,null,null,null,null,null,null,null,null,null,null,null,null,null,null,null,null,null,null,null,null,null,null,null,null,null,null,null,"Services artistiques et du spectacle et services récréatifs","Bibliothèques, archives, musées et autres activités culturelles","Gestion des bibliothèques et des archives","91.01Z"]
[null,null,null,null,null,null,null,null,null,null,null,null,null,null,null,null,null,null,null,null,null,null,null,null,null,null,null,null,null,null,null,null,null,null,null,null,null,null,null,null,null,"Services artistiques et du spectacle et services récréatifs","Bibliothèques, archives, musées et autres activités culturelles","Gestion des musées","91.02Z"]
[null,null,null,null,null,null,null,null,null,null,null,null,null,null,null,null,null,null,null,null,null,null,null,null,null,null,null,null,null,null,null,null,null,null,null,null,null,null,null,null,null,"Services artistiques et du spectacle et services récréatifs","Bibliothèques, archives, musées et autres activités culturelles","Gestion des sites et monuments historiques et des attractions touristiques similaires","91.03Z"]
[null,null,null,null,null,null,null,null,null,null,null,null,null,null,null,null,null,null,null,null,null,null,null,null,null,null,null,null,null,null,null,null,null,null,null,null,null,null,null,null,null,"Services artistiques et du spectacle et services récréatifs","Bibliothèques, archives, musées et autres activités culturelles","Gestion des jardins botaniques et zoologiques et des réserves naturelles","91.04Z"]
[null,null,null,null,null,null,null,null,null,null,null,null,null,null,null,null,null,null,null,null,null,null,null,null,null,null,null,null,null,null,null,null,null,null,null,null,null,null,null,null,null,"Services artistiques et du spectacle et services récréatifs","Organisation de jeux de hasard et d'argent","Organisation de jeux de hasard et d'argent","92.00Z"]
[null,null,null,null,null,null,null,null,null,null,null,null,null,null,null,null,null,null,null,null,null,null,null,null,null,null,null,null,null,null,null,null,null,null,null,null,null,null,null,null,null,"Services artistiques et du spectacle et services récréatifs","Activités sportives, récréatives et de loisirs","Gestion d'installations sportives","93.11Z"]
[null,null,null,null,null,null,null,null,null,null,null,null,null,null,null,null,null,null,null,null,null,null,null,null,null,null,null,null,null,null,null,null,null,null,null,null,null,null,null,null,null,"Services artistiques et du spectacle et services récréatifs","Activités sportives, récréatives et de loisirs","Activités de clubs de sports","93.12Z"]
[null,null,null,null,null,null,null,null,null,null,null,null,null,null,null,null,null,null,null,null,null,null,null,null,null,null,null,null,null,null,null,null,null,null,null,null,null,null,null,null,null,"Services artistiques et du spectacle et services récréatifs","Activités sportives, récréatives et de loisirs","Activités des centres de culture physique","93.13Z"]
[null,null,null,null,null,null,null,null,null,null,null,null,null,null,null,null,null,null,null,null,null,null,null,null,null,null,null,null,null,null,null,null,null,null,null,null,null,null,null,null,null,"Services artistiques et du spectacle et services récréatifs","Activités sportives, récréatives et de loisirs","Autres activités liées au sport","93.19Z"]
[null,null,null,null,null,null,null,null,null,null,null,null,null,null,null,null,null,null,null,null,null,null,null,null,null,null,null,null,null,null,null,null,null,null,null,null,null,null,null,null,null,"Services artistiques et du spectacle et services récréatifs","Activités sportives, récréatives et de loisirs","Activités des parcs d'attractions et parcs à thèmes","93.21Z"]
[null,null,null,null,null,null,null,null,null,null,null,null,null,null,null,null,null,null,null,null,null,null,null,null,null,null,null,null,null,null,null,null,null,null,null,null,null,null,null,null,null,"Services artistiques et du spectacle et services récréatifs","Activités sportives, récréatives et de loisirs","Autres activités récréatives et de loisirs","93.29Z"]
[null,null,null,null,null,null,null,null,null,null,null,null,null,null,null,null,null,null,null,null,null,null,null,null,null,null,null,null,null,null,null,null,null,null,null,null,null,null,null,null,null,"Autres services","Activités des organisations associatives","Activités des organisations patronales et consulaires","94.11Z"]
[null,null,null,null,null,null,null,null,null,null,null,null,null,null,null,null,null,null,null,null,null,null,null,null,null,null,null,null,null,null,null,null,null,null,null,null,null,null,null,null,null,"Autres services","Activités des organisations associatives","Activités des organisations professionnelles","94.12Z"]
[null,null,null,null,null,null,null,null,null,null,null,null,null,null,null,null,null,null,null,null,null,null,null,null,null,null,null,null,null,null,null,null,null,null,null,null,null,null,null,null,null,"Autres services","Activités des organisations associatives","Activités des syndicats de salariés","94.20Z"]
[null,null,null,null,null,null,null,null,null,null,null,null,null,null,null,null,null,null,null,null,null,null,null,null,null,null,null,null,null,null,null,null,null,null,null,null,null,null,null,null,null,"Autres services","Activités des organisations associatives","Activités des organisations religieuses","94.91Z"]
[null,null,null,null,null,null,null,null,null,null,null,null,null,null,null,null,null,null,null,null,null,null,null,null,null,null,null,null,null,null,null,null,null,null,null,null,null,null,null,null,null,"Autres services","Activités des organisations associatives","Activités des organisations politiques","94.92Z"]
[null,null,null,null,null,null,null,null,null,null,null,null,null,null,null,null,null,null,null,null,null,null,null,null,null,null,null,null,null,null,null,null,null,null,null,null,null,null,null,null,null,"Autres services","Activités des organisations associatives","Autres organisations fonctionnant par adhésion volontaire","94.99Z"]
[null,null,null,null,null,null,null,null,null,null,null,null,null,null,null,null,null,null,null,null,null,null,null,null,null,null,null,null,null,null,null,null,null,null,null,null,null,null,null,null,null,"Autres services","Réparation d'ordinateurs et de biens personnels et domestiques","Réparation d'ordinateurs et d'équipements périphériques","95.11Z"]
[null,null,null,null,null,null,null,null,null,null,null,null,null,null,null,null,null,null,null,null,null,null,null,null,null,null,null,null,null,null,null,null,null,null,null,null,null,null,null,null,null,"Autres services","Réparation d'ordinateurs et de biens personnels et domestiques","Réparation d'équipements de communication","95.12Z"]
[null,null,null,null,null,null,null,null,null,null,null,null,null,null,null,null,null,null,null,null,null,null,null,null,null,null,null,null,null,null,null,null,null,null,null,null,null,null,null,null,null,"Autres services","Réparation d'ordinateurs et de biens personnels et domestiques","Réparation de produits électroniques grand public","95.21Z"]
[null,null,null,null,null,null,null,null,null,null,null,null,null,null,null,null,null,null,null,null,null,null,null,null,null,null,null,null,null,null,null,null,null,null,null,null,null,null,null,null,null,"Autres services","Réparation d'ordinateurs et de biens personnels et domestiques","Réparation d'appareils électroménagers et d'équipements pour la maison et le jardin","95.22Z"]
[null,null,null,null,null,null,null,null,null,null,null,null,null,null,null,null,null,null,null,null,null,null,null,null,null,null,null,null,null,null,null,null,null,null,null,null,null,null,null,null,null,"Autres services","Réparation d'ordinateurs et de biens personnels et domestiques","Réparation de chaussures et d'articles en cuir","95.23Z"]
[null,null,null,null,null,null,null,null,null,null,null,null,null,null,null,null,null,null,null,null,null,null,null,null,null,null,null,null,null,null,null,null,null,null,null,null,null,null,null,null,null,"Autres services","Réparation d'ordinateurs et de biens personnels et domestiques","Réparation de meubles et d'équipements du foyer","95.24Z"]
[null,null,null,null,null,null,null,null,null,null,null,null,null,null,null,null,null,null,null,null,null,null,null,null,null,null,null,null,null,null,null,null,null,null,null,null,null,null,null,null,null,"Autres services","Réparation d'ordinateurs et de biens personnels et domestiques","Réparation d'articles d'horlogerie et de bijouterie","95.25Z"]
[null,null,null,null,null,null,null,null,null,null,null,null,null,null,null,null,null,null,null,null,null,null,null,null,null,null,null,null,null,null,null,null,null,null,null,null,null,null,null,null,null,"Autres services","Réparation d'ordinateurs et de biens personnels et domestiques","Réparation d'autres biens personnels et domestiques","95.29Z"]
[null,null,null,null,null,null,null,null,null,null,null,null,null,null,null,null,null,null,null,null,null,null,null,null,null,null,null,null,null,null,null,null,null,null,null,null,null,null,null,null,null,"Autres services","Autres services personnels","Blanchisserie-teinturerie de gros","96.01A"]
[null,null,null,null,null,null,null,null,null,null,null,null,null,null,null,null,null,null,null,null,null,null,null,null,null,null,null,null,null,null,null,null,null,null,null,null,null,null,null,null,null,"Autres services","Autres services personnels","Blanchisserie-teinturerie de détail","96.01B"]
[null,null,null,null,null,null,null,null,null,null,null,null,null,null,null,null,null,null,null,null,null,null,null,null,null,null,null,null,null,null,null,null,null,null,null,null,null,null,null,null,null,"Autres services","Autres services personnels","Coiffure","96.02A"]
[null,null,null,null,null,null,null,null,null,null,null,null,null,null,null,null,null,null,null,null,null,null,null,null,null,null,null,null,null,null,null,null,null,null,null,null,null,null,null,null,null,"Autres services","Autres services personnels","Soins de beauté","96.02B"]
[null,null,null,null,null,null,null,null,null,null,null,null,null,null,null,null,null,null,null,null,null,null,null,null,null,null,null,null,null,null,null,null,null,null,null,null,null,null,null,null,null,"Autres services","Autres services personnels","Services funéraires","96.03Z"]
[null,null,null,null,null,null,null,null,null,null,null,null,null,null,null,null,null,null,null,null,null,null,null,null,null,null,null,null,null,null,null,null,null,null,null,null,null,null,null,null,null,"Autres services","Autres services personnels","Entretien corporel","96.04Z"]
[null,null,null,null,null,null,null,null,null,null,null,null,null,null,null,null,null,null,null,null,null,null,null,null,null,null,null,null,null,null,null,null,null,null,null,null,null,null,null,null,null,"Autres services","Autres services personnels","Autres services personnels n.c.a.","96.09Z"]
[null,null,null,null,null,null,null,null,null,null,null,null,null,null,null,null,null,null,null,null,null,null,null,null,null,null,null,null,null,null,null,null,null,null,null,null,null,null,null,null,null,"Services des ménages en tant qu’employeurs ; biens et services divers produits par les ménages pour leur consommation propre","Activités des ménages en tant qu'employeurs de personnel domestique","Activités des ménages en tant qu'employeurs de personnel domestique","97.00Z"]
[null,null,null,null,null,null,null,null,null,null,null,null,null,null,null,null,null,null,null,null,null,null,null,null,null,null,null,null,null,null,null,null,null,null,null,null,null,null,null,null,null,"Services des ménages en tant qu’employeurs ; biens et services divers produits par les ménages pour leur consommation propre","Activités indifférenciées des ménages en tant que producteurs de biens et services pour usage propre","Activités indifférenciées des ménages en tant que producteurs de biens pour usage propre","98.10Z"]
[null,null,null,null,null,null,null,null,null,null,null,null,null,null,null,null,null,null,null,null,null,null,null,null,null,null,null,null,null,null,null,null,null,null,null,null,null,null,null,null,null,"Services des ménages en tant qu’employeurs ; biens et services divers produits par les ménages pour leur consommation propre","Activités indifférenciées des ménages en tant que producteurs de biens et services pour usage propre","Activités indifférenciées des ménages en tant que producteurs de services pour usage propre","98.20Z"]
[null,null,null,null,null,null,null,null,null,null,null,null,null,null,null,null,null,null,null,null,null,null,null,null,null,null,null,null,null,null,null,null,null,null,null,null,null,null,null,null,null,"Services extra-territoriaux ","Activités des organisations et organismes extraterritoriaux","Activités des organisations et organismes extraterritoriaux","99.00Z"]